Workbook

Sheet Auswahl (hidden)
A1: Rechtskreis | E1: Überschriften Blätter
A2: =INDEX(A4:A6,A3) -> Insgesamt | E2: 1.1 Bestand an Arbeitsuchenden und Arbeitslosen | F2: =E2&$B$3 -> 1.1 Bestand an Arbeitsuchenden und Arbeitslosen
A3: 1 | B3: =INDEX(B4:B6,A3) ->  | C3: =INDEX(C4:C6,A3) ->  | E3: 1.2 Zugänge in und Abgänge aus Arbeitslosigkeit | F3: =E3&$B$3 -> 1.2 Zugänge in und Abgänge aus Arbeitslosigkeit
A4: Insgesamt | E4: 2 Unterbeschäftigung | F4: 2 Unterbeschäftigung
A5: SGB III | B5: - Rechtskreis SGB III | C5: - Kostenträgerschaft SGB III | E5: 8.1 Bestand in ausgewählten arbeitsmarktpolitischen Instrumenten | F5: =E5&$C$3 -> 8.1 Bestand in ausgewählten arbeitsmarktpolitischen Instrumenten
A6: SGB II | B6: - Rechtskreis SGB II | C6: - Kostenträgerschaft SGB II | E6: 8.2 Eintritte in ausgewählte arbeitsmarktpolitische Instrumente | F6: =E6&$C$3 -> 8.2 Eintritte in ausgewählte arbeitsmarktpolitische Instrumente

Sheet Deckblatt

Sheet Impressum
A4: Impressum
A6: Produktlinie/Reihe: | C6: Tabellen
A8: Titel: | C8: Frauen und Männer
A10: Region: | C10: Deutschland (Gebietsstand: August 2020)
A12: Berichtsmonat: | C12: August 2020
A14: Erstellungsdatum: | C14: 2020-09-15
A16: Periodizität: | C16: zum 20. eines Monats oder zum nächsten darauffolgenden Werktag
A18: Herausgeberin: | C18: Bundesagentur für Arbeit
C19: Statistik
A21: Rückfragen an: | C21: Zentraler Statistik-Service
C22: Regensburger Straße 104
C23: 90478 Nürnberg
A24: E-Mail: | C24: Zentraler-Statistik-Service@arbeitsagentur.de
A25: Hotline: | C25: 0911/179-3632
A26: Fax: | C26: 0911/179-1131
A29: Internet: | C29: http://statistik.arbeitsagentur.de
A31: Zitierhinweis: | C31: Statistik der Bundesagentur für Arbeit
C32: Frauen und Männer, Deutschland, Nürnberg, August 2020
A34: Nutzungsbedingungen: | C34: © Statistik der Bundesagentur für Arbeit
C35: Sie können Informationen speichern, (auch auszugsweise) mit Quellen-
C36: angabe weitergeben, vervielfältigen und verbreiten. Die Inhalte dürfen
C37: nicht verändert oder verfälscht werden. Eigene Berechnungen sind
C38: erlaubt, jedoch als solche kenntlich zu machen.
C39: Im Falle einer Zugänglichmachung im Internet soll dies in Form einer
C40: Verlinkung auf die Homepage der Statistik der Bundesagentur für Arbeit
C41: erfolgen.
C42: Die Nutzung der Inhalte für gewerbliche Zwecke, ausgenommen Presse,
C43: Rundfunk und Fernsehen und wissenschaftliche Publikationen, bedarf
C44: der Genehmigung durch die Statistik der Bundesagentur für Arbeit.

Sheet Inhaltsverzeichnis
A4: Inhaltsverzeichnis
A7: Frauen und Männer
A8: Deutschland (Gebietsstand: August 2020)
A9: August 2020
A11: Tabelle
A13: Tab 1.1 | B13: 1.1 Bestand an Arbeitsuchenden und Arbeitslosen nach Rechtskreis
A14: Tab 1.2 | B14: 1.2 Zugänge in und Abgänge aus Arbeitslosigkeit nach Rechtskreis
A15: Tab 2 | B15: 2 Unterbeschäftigung nach Rechtskreis
A16: Tab 3 | B16: 3 Gemeldete Arbeitsstellen
A17: Tab 4 | B17: 4 Beschäftigte am Arbeitsort
A18: Tab 5 | B18: 5 Gemeldete Bewerber für Berufsausbildungsstellen und gemeldete Berufsausbildungsstellen
A19: Tab 6 | B19: 6 Leistungs- und Nichtleistungsempfänger im Rechtskreis SGB III
A20: Tab 7.1 | B20: 7.1 Grundsicherung für Arbeitsuchende
A21: Tab 7.2 | B21: 7.2 Erwerbstätige erwerbsfähige Leistungsberechtigte (ELB)
A22: Tab 8.1 | B22: 8.1 Bestand in ausgewählten arbeitsmarktpolitischen Instrumenten nach Rechtskreis
A23: Tab 8.2 | B23: 8.2 Eintritte in ausgewählte arbeitsmarktpolitische Instrumente nach Rechtskreis
A25: Statistik-Info
A28: Zeichenerklärungen
A30: X | B30: Nachweis nicht sinnvoll
A31: .X | B31: Veränderung größer 250 Prozent
A32: … | B32: Angaben fallen später an
A33: - | B33: nichts vorhanden
A34: . | B34: auf Grund unvollständiger Daten ist kein Nachweis sinnvoll
A35: * | B35: Die erhobenen Daten unterliegen grundsätzlich der Geheimhaltung nach § 16 BStatG. Eine Übermittlung von Einzelangaben ist daher ausgeschlossen. Aus diesem Grund werden bei den Ihnen zur Verfügung gestellten Daten auch Zahlenwerte kleiner 3 und Daten, aus denen rechnerisch auf einen Zahlenwert kleiner 3 geschlossen werden kann, anonymisiert oder zu Gruppen zusammengefasst.

Sheet Tab 1.1_roh (hidden)
C1: TabSpalten | AW1: XXX
C2: Hilfsspalten
C3: Überschrift | D3: 1.1 Bestand an Arbeitsuchenden und Arbeitslosen
C4: Gebiet | D4: Deutschland (Gebietsstand: August 2020)
C5: BM | D5: 2020-08-01
C7: Deutschland
C8: 1
C9: Frauen | D9: Frauen | E9: Frauen | F9: Frauen | G9: Frauen | H9: Frauen | I9: Männer | J9: Männer | K9: Männer | L9: Männer | M9: Frauen | N9: Frauen | O9: Frauen | P9: Frauen | Q9: Frauen | R9: Frauen | S9: Männer | T9: Männer | U9: Männer | V9: Männer | W9: Frauen | X9: Frauen | Y9: Frauen | Z9: Frauen | AA9: Frauen | AB9: Frauen | AC9: Männer | AD9: Männer | AE9: Männer | AF9: Männer | AH9: Frauen | AI9: Frauen | AJ9: Frauen | AK9: Männer | AL9: Männer | AM9: Frauen | AN9: Frauen | AO9: Frauen | AP9: Männer | AQ9: Männer | AR9: Frauen | AS9: Frauen | AT9: Frauen | AU9: Männer | AV9: Männer
B10: Tab/DS | C10: Anzahl | D10: VJM | E10: Anteil der Personen- gruppe an Insgesamt in % | F10: Verände- rung zum Vorjahr in % | G10: Gesamt | H10: Anteil an Frauen und Männer insgesamt in % | I10: Anzahl | J10: VJM | K10: Anteil der Personen- gruppe an Insgesamt in % | L10: Verände- rung zum Vorjahr in % | M10: Anzahl | N10: VJM | O10: Anteil der Personen- gruppe an Insgesamt in % | P10: Verände- rung zum Vorjahr in % | Q10: Gesamt | R10: Anteil an Frauen und Männer insgesamt in % | S10: Anzahl | T10: VJM | U10: Anteil der Personen- gruppe an Insgesamt in % | V10: Verände- rung zum Vorjahr in % | W10: Anzahl | X10: VJM | Y10: Anteil der Personen- gruppe an Insgesamt in % | Z10: Verände- rung zum Vorjahr in % | AA10: Gesamt | AB10: Anteil an Frauen und Männer insgesamt in % | AC10: Anzahl | AD10: VJM | AE10: Anteil der Personen- gruppe an Insgesamt in % | AF10: Verände- rung zum Vorjahr in % | AH10: Anteil der Personen- gruppe an Insgesamt in % | AI10: Verände- rung zum Vorjahr in % | AJ10: Anteil an Frauen und Männer insgesamt in % | AK10: Anteil der Personen- gruppe an Insgesamt in % | AL10: Verände- rung zum Vorjahr in % | AM10: Anteil der Personen- gruppe an Insgesamt in % | AN10: Verände- rung zum Vorjahr in % | AO10: Anteil an Frauen und Männer insgesamt in % | AP10: Anteil der Personen- gruppe an Insgesamt in % | AQ10: Verände- rung zum Vorjahr in % | AR10: Anteil der Personen- gruppe an Insgesamt in % | AS10: Verände- rung zum Vorjahr in % | AT10: Anteil an Frauen und Männer insgesamt in % | AU10: Anteil der Personen- gruppe an Insgesamt in % | AV10: Verände- rung zum Vorjahr in %
C11: 1 | D11: 0 | E11: 2 | F11: 3 | G11: 0 | H11: 4 | I11: 5 | J11: 0 | K11: 6 | L11: 7 | AH11: 2 | AI11: 3 | AJ11: 4 | AK11: 6 | AL11: 7
C12: 1 | D12: 2 | E12: 3 | F12: 4 | G12: 5 | H12: 6 | I12: 7 | J12: 8 | K12: 9 | L12: 10 | M12: 1 | N12: 2 | O12: 3 | P12: 4 | Q12: 5 | R12: 6 | S12: 7 | T12: 8 | U12: 9 | V12: 10 | W12: 1 | X12: 2 | Y12: 3 | Z12: 4 | AA12: 5 | AB12: 6 | AC12: 7 | AD12: 8 | AE12: 9 | AF12: 10 | AH12: 3 | AI12: 4 | AJ12: 6 | AK12: 9 | AL12: 10 | AM12: 3 | AN12: 4 | AO12: 6 | AP12: 9 | AQ12: 10 | AR12: 3 | AS12: 4 | AT12: 6 | AU12: 9 | AV12: 10
C13: 1Insgesamt | D13: 2Insgesamt | G13: 5Insgesamt | I13: 7Insgesamt | J13: 8Insgesamt | M13: 1SGB III | N13: 2SGB III | Q13: 5SGB III | S13: 7SGB III | T13: 8SGB III | W13: 1SGB II | X13: 2SGB II | AA13: 5SGB II | AC13: 7SGB II | AD13: 8SGB II | AH13: 3Insgesamt | AI13: 4Insgesamt | AJ13: 6Insgesamt | AK13: 9Insgesamt | AL13: 10Insgesamt | AM13: 3SGB III | AN13: 4SGB III | AO13: 6SGB III | AP13: 9SGB III | AQ13: 10SGB III | AR13: 3SGB II | AS13: 4SGB II | AT13: 6SGB II | AU13: 9SGB II | AV13: 10SGB II
B14: ID für Auswahl | C14: Insgesamt | M14: SGB III | W14: SGB II
C15: 2179119 | D15: 1944174 | G15: 4795271 | I15: 2616119 | J15: 2271727 | M15: 857224 | N15: 672356 | Q15: 1911028 | S15: 1053772 | T15: 762980 | W15: 1321895 | X15: 1271818 | AA15: 2884243 | AC15: 1562347 | AD15: 1508747 | AH15: X | AI15: 12.0845665 | AJ15: 45.4430834 | AK15: X | AL15: 15.15992018 | AM15: X | AN15: 27.49555295 | AO15: 44.85669493 | AP15: X | AQ15: 38.1126635 | AR15: X | AS15: 3.937434444 | AT15: 45.83160989 | AU15: X | AV15: 3.55261684
C16: 1305023 | D16: 1050360 | G16: 2955487 | I16: 1650451 | J16: 1269045 | M16: 558404 | N16: 380778 | Q16: 1302314 | S16: 743897 | T16: 467347 | W16: 746619 | X16: 669582 | AA16: 1653173 | AC16: 906554 | AD16: 801698 | AH16: 100 | AI16: 24.24530637 | AJ16: 44.15593775 | AK16: 100 | AL16: 30.05456859 | AM16: 100 | AN16: 46.6481782 | AO16: 42.87783131 | AP16: 100 | AQ16: 59.1744464 | AR16: 100 | AS16: 11.5052376 | AT16: 45.16278696 | AU16: 100 | AV16: 13.07923931
C17: 0 | D17: 0 | G17: 0 | I17: 0 | J17: 0 | M17: 0 | N17: 0 | Q17: 0 | S17: 0 | T17: 0 | W17: 0 | X17: 0 | AA17: 0 | AC17: 0 | AD17: 0
C18: 125329 | D18: 97371 | G18: 324139 | I18: 198806 | J18: 145461 | M18: 63393 | N18: 43725 | Q18: 170539 | S18: 107142 | T18: 66976 | W18: 61936 | X18: 53646 | AA18: 153600 | AC18: 91664 | AD18: 78485 | AH18: 9.603585531 | AI18: 28.71286112 | AJ18: 38.66520227 | AK18: 12.04555603 | AL18: 36.67306013 | AM18: 11.35253329 | AN18: 44.98113208 | AO18: 37.17214244 | AP18: 14.40280039 | AQ18: 59.97073579 | AR18: 8.295529581 | AS18: 15.45315587 | AT18: 40.32291667 | AU18: 10.11125647 | AV18: 16.79174365
C19: 314619 | D19: 250132 | G19: 741317 | I19: 426695 | J19: 315575 | M19: 130609 | N19: 85965 | Q19: 321595 | S19: 190983 | T19: 111443 | W19: 184010 | X19: 164167 | AA19: 419722 | AC19: 235712 | AD19: 204132 | AH19: 24.10831073 | AI19: 25.78118753 | AJ19: 42.44054838 | AK19: 25.85323648 | AL19: 35.21191476 | AM19: 23.38969635 | AN19: 51.93276333 | AO19: 40.61288266 | AP19: 25.6733123 | AQ19: 71.37280942 | AR19: 24.6457698 | AS19: 12.08708206 | AT19: 43.84092328 | AU19: 26.00087805 | AV19: 15.47038191
C20: 319405 | D20: 251402 | G20: 682687 | I20: 363279 | J20: 270393 | M20: 115157 | N20: 72210 | Q20: 257454 | S20: 142294 | T20: 81282 | W20: 204248 | X20: 179192 | AA20: 425233 | AC20: 220985 | AD20: 189111 | AH20: 24.47504757 | AI20: 27.04950637 | AJ20: 46.78644826 | AK20: 22.01089278 | AL20: 34.35222066 | AM20: 20.62252419 | AN20: 59.47514195 | AO20: 44.7291555 | AP20: 19.12818576 | AQ20: 75.06212938 | AR20: 27.35638927 | AS20: 13.98276709 | AT20: 48.03202009 | AU20: 24.37637471 | AV20: 16.8546515
C21: 277947 | D21: 228730 | G21: 603410 | I21: 325461 | J21: 264426 | M21: 106895 | N21: 71900 | Q21: 231350 | S21: 124453 | T21: 78150 | W21: 171052 | X21: 156830 | AA21: 372060 | AC21: 201008 | AD21: 186276 | AH21: 21.29824532 | AI21: 21.51750973 | AJ21: 46.06271026 | AK21: 19.71951909 | AL21: 23.08207211 | AM21: 19.14295027 | AN21: 48.67176634 | AO21: 46.20488437 | AP21: 16.72986986 | AQ21: 59.24888036 | AR21: 22.91021257 | AS21: 9.068418032 | AT21: 45.97430522 | AU21: 22.17275529 | AV21: 7.908694625
C22: 267646 | D22: 222649 | G22: 603787 | I22: 336140 | J22: 273119 | M22: 142350 | N22: 106978 | Q22: 321376 | S22: 179025 | T22: 129496 | W22: 125296 | X22: 115671 | AA22: 282411 | AC22: 157115 | AD22: 143623 | AH22: 20.50891057 | AI22: 20.20983701 | AJ22: 44.32788384 | AK22: 20.36655435 | AL22: 23.07455724 | AM22: 25.4922959 | AN22: 33.06474228 | AO22: 44.29391118 | AP22: 24.06583169 | AQ22: 38.24751344 | AR22: 16.78178562 | AS22: 8.32101391 | AT22: 44.3665438 | AU22: 17.33101393 | AV22: 9.394038559
C23: 391150 | D23: 300043 | G23: 877316 | I23: 486161 | J23: 355380 | M23: 107299 | N23: 63172 | Q23: 285821 | S23: 178517 | T23: 95940 | W23: 283851 | X23: 236871 | AA23: 591495 | AC23: 307644 | AD23: 259440 | AH23: 29.97265182 | AI23: 30.36464773 | AJ23: 44.58484742 | AK23: 29.45625165 | AL23: 36.80032641 | AM23: 19.21529932 | AN23: 69.85214969 | AO23: 37.54062858 | AP23: 23.99754267 | AQ23: 86.07150302 | AR23: 38.01818598 | AS23: 19.8335803 | AT23: 47.9887404 | AU23: 33.93554052 | AV23: 18.5800185
C24: 72194 | D24: 63303 | G24: 177722 | I24: 105528 | J24: 93149 | M24: 35012 | N24: 28457 | Q24: 83587 | S24: 48575 | T24: 39182 | W24: 37182 | X24: 34846 | AA24: 94135 | AC24: 56953 | AD24: 53967 | AH24: 5.532009781 | AI24: 14.04514794 | AJ24: 40.62187011 | AK24: 6.393888701 | AL24: 13.28946097 | AM24: 6.270012392 | AN24: 23.03475419 | AO24: 41.88689629 | AP24: 6.529801841 | AQ24: 23.97274259 | AR24: 4.980050066 | AS24: 6.703782357 | AT24: 39.49859245 | AU24: 6.282361558 | AV24: 5.533010914
B25: 1 | C25: 42718 | D25: 34944 | G25: 46267 | I25: 3549 | J25: 2279 | M25: 24931 | N25: 18511 | Q25: 27336 | S25: 2405 | T25: 1289 | W25: 17787 | X25: 16433 | AA25: 18931 | AC25: 1144 | AD25: 990 | AH25: 3.27335227 | AI25: 22.24702381 | AJ25: 92.32930598 | AK25: 0.2150321336 | AL25: 55.7261957 | AM25: 4.464688648 | AN25: 34.68208092 | AO25: 91.20207785 | AP25: 0.3232974457 | AQ25: 86.57874321 | AR25: 2.382339587 | AS25: 8.239518043 | AT25: 93.95700174 | AU25: 0.1261921518 | AV25: 15.55555556
B26: 1 | C26: 201731 | D26: 176377 | G26: 220968 | I26: 19237 | J26: 16066 | M26: 38603 | N26: 25110 | Q26: 43047 | S26: 4444 | T26: 2715 | W26: 163128 | X26: 151267 | AA26: 177921 | AC26: 14793 | AD26: 13351 | AH26: 15.45804174 | AI26: 14.37489015 | AJ26: 91.29421455 | AK26: 1.165560201 | AL26: 19.7373335 | AM26: 6.913095178 | AN26: 53.73556352 | AO26: 89.67640021 | AP26: 0.5973945318 | AQ26: 63.68324125 | AR26: 21.84889482 | AS26: 7.841102157 | AT26: 91.68563576 | AU26: 1.631783655 | AV26: 10.80068909
B27: 1 | C27: 676025 | D27: 546094 | G27: 1537978 | I27: 861947 | J27: 660047 | M27: 162383 | N27: 95615 | Q27: 436396 | S27: 274007 | T27: 150246 | W27: 513642 | X27: 450479 | AA27: 1101582 | AC27: 587940 | AD27: 509801 | AH27: 51.80176901 | AI27: 23.79279025 | AJ27: 43.95544019 | AK27: 52.22493731 | AL27: 30.5887308 | AM27: 29.07984183 | AN27: 69.83004759 | AO27: 37.21001109 | AP27: 36.83399718 | AQ27: 82.37224286 | AR27: 68.79573116 | AS27: 14.02129733 | AT27: 46.62766821 | AU27: 64.85438264 | AV27: 15.32735322
B28: 1 | C28: 527544 | D28: 463201 | G28: 1227060 | I28: 699514 | J28: 607513 | M28: 106923 | N28: 77327 | Q28: 200640 | S28: 93715 | T28: 62409 | W28: 420621 | X28: 385874 | AA28: 1026420 | AC28: 605799 | AD28: 545104 | AH28: 40.42411513 | AI28: 13.89094583 | AJ28: 42.9925187 | AK28: 42.38320314 | AL28: 15.14387346 | AM28: 19.14796456 | AN28: 38.27382415 | AO28: 53.2909689 | AP28: 12.59784621 | AQ28: 50.1626368 | AR28: 56.33676614 | AS28: 9.004752847 | AT28: 40.97942363 | AU28: 66.82437009 | AV28: 11.13457249
B29: 1 | C29: 398228 | D29: 323462 | G29: 485923 | I29: 87695 | J29: 73488 | M29: 186451 | N29: 133294 | Q29: 215237 | S29: 28786 | T29: 20450 | W29: 211777 | X29: 190168 | AA29: 270686 | AC29: 58909 | AD29: 53038 | AH29: 30.51501774 | AI29: 23.11430709 | AJ29: 81.952902 | AK29: 5.313396157 | AL29: 19.33240801 | AM29: 33.38998288 | AN29: 39.87951446 | AO29: 86.6259054 | AP29: 3.869621735 | AQ29: 40.76283619 | AR29: 28.36480186 | AS29: 11.36311051 | AT29: 78.23714562 | AU29: 6.498123664 | AV29: 11.06942192
C30: 384960 | D30: 334150 | G30: 862610 | I30: 477650 | J30: 389788 | M30: 55748 | N30: 36855 | Q30: 123821 | S30: 68073 | T30: 42120 | W30: 329212 | X30: 297295 | AA30: 738789 | AC30: 409577 | AD30: 347668 | AH30: 29.49833068 | AI30: 15.20574592 | AJ30: 44.62735187 | AK30: 28.94057442 | AL30: 22.54097099 | AM30: 9.983452841 | AN30: 51.26305793 | AO30: 45.02305748 | AP30: 9.150863628 | AQ30: 61.61680912 | AR30: 44.09370777 | AS30: 10.73580114 | AT30: 44.56103163 | AU30: 45.17954805 | AV30: 17.80693075
B31: 1 | C31: 685967 | D31: 526809 | G31: 1442359 | I31: 756389 | J31: 549524 | M31: 183520 | N31: 94799 | Q31: 416644 | S31: 233121 | T31: 115150 | W31: 502447 | X31: 432010 | AA31: 1025715 | AC31: 523268 | AD31: 434374 | AH31: 52.56359466 | AI31: X | AJ31: 47.55868685 | AK31: 45.82923092 | AL31: X | AM31: 32.86509409 | AN31: X | AO31: 44.04719617 | AP31: 31.33780617 | AQ31: X | AR31: 67.29630508 | AS31: X | AT31: 48.98504945 | AU31: 57.72055498 | AV31: X
B32: 1 | C32: 389227 | D32: 353586 | G32: 978454 | I32: 589226 | J32: 494025 | M32: 241302 | N32: 194676 | Q32: 564007 | S32: 322704 | T32: 226083 | W32: 147925 | X32: 158910 | AA32: 414447 | AC32: 266522 | AD32: 267942 | AH32: 29.8252981 | AI32: X | AJ32: 39.77979547 | AK32: 35.70090842 | AL32: X | AM32: 43.21279934 | AN32: X | AO32: 42.78351155 | AP32: 43.38019914 | AQ32: X | AR32: 19.81264875 | AS32: X | AT32: 35.69213916 | AU32: 29.39946214 | AV32: X
B33: 1 | C33: 149428 | D33: 107321 | G33: 374023 | I33: 224590 | J33: 162535 | M33: 116770 | N33: 81563 | Q33: 285083 | S33: 168308 | T33: 114923 | W33: 32658 | X33: 25758 | AA33: 88940 | AC33: 56282 | AD33: 47612 | AH33: 11.45021965 | AI33: 39.23463255 | AJ33: 39.95155378 | AK33: 13.60779569 | AL33: 38.17946904 | AM33: 20.91138316 | AN33: 43.16540588 | AO33: 40.96000112 | AP33: 22.62517526 | AQ33: 46.45284234 | AR33: 4.374118526 | AS33: 26.78779408 | AT33: 36.7191365 | AU33: 6.208345008 | AV33: 18.20969503
B34: 1 | C34: 80401 | D34: 62644 | G34: 160651 | I34: 80246 | J34: 62961 | M34: 16812 | N34: 9740 | Q34: 36580 | S34: 19764 | T34: 11191 | W34: 63589 | X34: 52904 | AA34: 124071 | AC34: 60482 | AD34: 51770 | AH34: 6.160887586 | AI34: 28.34589107 | AJ34: 50.04699628 | AK34: 4.862064975 | AL34: 27.45350296 | AM34: 3.010723419 | AN34: 72.60780287 | AO34: 45.95954073 | AP34: 2.656819425 | AQ34: 76.60620141 | AR34: 8.516927643 | AS34: 20.19696053 | AT34: 51.25210565 | AU34: 6.671637873 | AV34: 16.82827893
B35: 1 | C35: 52243 | D35: 38272 | G35: 364251 | I35: 312008 | J35: 227759 | M35: 38988 | N35: 26755 | Q35: 241516 | S35: 202528 | T35: 128565 | W35: 13255 | X35: 11517 | AA35: 122735 | AC35: 109480 | AD35: 99194 | AH35: 4.003224464 | AI35: 36.50449415 | AJ35: 14.34258245 | AK35: 18.90440855 | AL35: 36.99041531 | AM35: 6.982041676 | AN35: 45.7222949 | AO35: 16.14302986 | AP35: 27.22527447 | AQ35: 57.52965426 | AR35: 1.775336551 | AS35: 15.09073543 | AT35: 10.79969039 | AU35: 12.07650068 | AV35: 10.36957881
B36: 1 | C36: 97753 | D36: 76811 | G36: 652781 | I36: 555028 | J36: 430156 | M36: 51549 | N36: 34581 | Q36: 312038 | S36: 260489 | T36: 160707 | W36: 46204 | X36: 42230 | AA36: 340743 | AC36: 294539 | AD36: 269449 | AH36: 7.490519324 | AI36: 27.26432412 | AJ36: 14.97485374 | AK36: 33.62886872 | AL36: 29.02946838 | AM36: 9.231488313 | AN36: 49.06740696 | AO36: 16.52010332 | AP36: 35.01681012 | AQ36: 62.0893925 | AR36: 6.188430779 | AS36: 9.410371774 | AT36: 13.55977966 | AU36: 32.48995647 | AV36: 9.311595144
B37: 1 | C37: 417317 | D37: 332277 | G37: 624804 | I37: 207485 | J37: 150086 | M37: 183652 | N37: 124778 | Q37: 279753 | S37: 96099 | T37: 55577 | W37: 233665 | X37: 207499 | AA37: 345051 | AC37: 111386 | AD37: 94509 | AH37: 31.97775058 | AI37: 25.59310455 | AJ37: 66.79166587 | AK37: 12.5714123 | AL37: 38.2440734 | AM37: 32.88873289 | AN37: 47.182997 | AO37: 65.64791084 | AP37: 12.91832068 | AQ37: 72.91145618 | AR37: 31.29641758 | AS37: 12.61018125 | AT37: 67.71897488 | AU37: 12.2867474 | AV37: 17.85755854
B38: 1 | C38: 419526 | D38: 335609 | G38: 674698 | I38: 255166 | J38: 197308 | M38: 226057 | N38: 156795 | Q38: 366205 | S38: 140142 | T38: 94911 | W38: 193469 | X38: 178814 | AA38: 308493 | AC38: 115024 | AD38: 102397 | AH38: 32.14701963 | AI38: 25.004395 | AJ38: 62.17981971 | AK38: 15.46038022 | AL38: 29.32369696 | AM38: 40.48269712 | AN38: 44.17360247 | AO38: 61.72963231 | AP38: 18.8388984 | AQ38: 47.65622531 | AR38: 25.91268103 | AS38: 8.195667006 | AT38: 62.7142269 | AU38: 12.68804726 | AV38: 12.33141596
B39: 1 | C39: 13752 | D39: 10772 | G39: 57425 | I39: 43673 | J39: 33325 | M39: 10137 | N39: 7622 | Q39: 38260 | S39: 28123 | T39: 19735 | W39: 3615 | X39: 3150 | AA39: 19165 | AC39: 15550 | AD39: 13590 | AH39: 1.053774531 | AI39: 27.66431489 | AJ39: 23.94775795 | AK39: 2.646125211 | AL39: 31.05176294 | AM39: 1.815352326 | AN39: 32.99658882 | AO39: 26.49503398 | AP39: 3.780496493 | AQ39: 42.50316696 | AR39: 0.4841826956 | AS39: 14.76190476 | AT39: 18.86250978 | AU39: 1.715286679 | AV39: 14.42236939
B40: 1 | C40: 276274 | D40: 232247 | G40: 785128 | I40: 508853 | J40: 395209 | M40: 70197 | N40: 47262 | Q40: 269478 | S40: 199280 | T40: 125226 | W40: 206077 | X40: 184985 | AA40: 515650 | AC40: 309573 | AD40: 269983 | AH40: 21.17004834 | AI40: 18.95697253 | AJ40: 35.1884024 | AK40: 30.83114858 | AL40: 28.75541802 | AM40: 12.57100594 | AN40: 48.52735813 | AO40: 26.04925077 | AP40: 26.78865488 | AQ40: 59.1362816 | AR40: 27.60136027 | AS40: 11.40200557 | AT40: 39.96451081 | AU40: 34.14832431 | AV40: 14.66388624
B41: 1 | C41: 80401 | D41: 62644 | G41: 160651 | I41: 80246 | J41: 62961 | M41: 16812 | N41: 9740 | Q41: 36580 | S41: 19764 | T41: 11191 | W41: 63589 | X41: 52904 | AA41: 124071 | AC41: 60482 | AD41: 51770 | AH41: 6.160887586 | AI41: 28.34589107 | AJ41: 50.04699628 | AK41: 4.862064975 | AL41: 27.45350296 | AM41: 3.010723419 | AN41: 72.60780287 | AO41: 45.95954073 | AP41: 2.656819425 | AQ41: 76.60620141 | AR41: 8.516927643 | AS41: 20.19696053 | AT41: 51.25210565 | AU41: 6.671637873 | AV41: 16.82827893
C48: 6.1 | D48: 4.9 | G48: X | I48: 6.8 | J48: 5.3 | M48: 2.6 | N48: 1.8 | Q48: X | S48: 3.1 | T48: 1.9 | W48: 3.5 | X48: 3.1 | AA48: X | AC48: 3.7 | AD48: 3.3 | AH48: X | AI48: 1.2 | AJ48: X | AK48: X | AL48: 1.5 | AM48: X | AN48: 0.8 | AO48: X | AP48: X | AQ48: 1.2 | AR48: X | AS48: 0.4 | AT48: X | AU48: X | AV48: 0.4
B51: DiaDatRoh | H51: DiaDatRohDS
E54: Frauen | F54: Männer | J54: Frauen | K54: Männer
A55: 1 | B55: X | C55: Insgesamt | D55: XInsgesamt | E55: 0 | F55: 0 | H55: insg | I55: XInsgesamt | J55: 0 | K55: 0
A56: 1 | B56: S1 | C56: Insgesamt | D56: S1Insgesamt | E56: 97753 | F56: 555028 | I56: S1Insgesamt | J56: 97753 | K56: 555028
A57: 1 | B57: S2 | C57: Insgesamt | D57: S2Insgesamt | E57: 417317 | F57: 207485 | I57: S2Insgesamt | J57: 417317 | K57: 207485
A58: 1 | B58: S3 | C58: Insgesamt | D58: S3Insgesamt | E58: 419526 | F58: 255166 | I58: S3Insgesamt | J58: 419526 | K58: 255166
A59: 1 | B59: S4 | C59: Insgesamt | D59: S4Insgesamt | E59: 13752 | F59: 43673 | I59: S4Insgesamt | J59: 13752 | K59: 43673
A60: 1 | B60: S5 | C60: Insgesamt | D60: S5Insgesamt | E60: 276274 | F60: 508853 | I60: S5Insgesamt | J60: 276274 | K60: 508853
A61: 1 | B61: X | C61: SGB III | D61: XSGB III | E61: 0 | F61: 0 | H61: III | I61: XSGB III | J61: 0 | K61: 0
A62: 1 | B62: S1 | C62: SGB III | D62: S1SGB III | E62: 51549 | F62: 260489 | I62: S1SGB III | J62: 51549 | K62: 260489
A63: 1 | B63: S2 | C63: SGB III | D63: S2SGB III | E63: 183652 | F63: 96099 | I63: S2SGB III | J63: 183652 | K63: 96099
A64: 1 | B64: S3 | C64: SGB III | D64: S3SGB III | E64: 226057 | F64: 140142 | I64: S3SGB III | J64: 226057 | K64: 140142
A65: 1 | B65: S4 | C65: SGB III | D65: S4SGB III | E65: 10137 | F65: 28123 | I65: S4SGB III | J65: 10137 | K65: 28123
A66: 1 | B66: S5 | C66: SGB III | D66: S5SGB III | E66: 70197 | F66: 199280 | I66: S5SGB III | J66: 70197 | K66: 199280
A67: 1 | B67: X | C67: SGB II | D67: XSGB II | E67: 0 | F67: 0 | H67: II | I67: XSGB II | J67: 0 | K67: 0
A68: 1 | B68: S1 | C68: SGB II | D68: S1SGB II | E68: 46204 | F68: 294539 | I68: S1SGB II | J68: 46204 | K68: 294539
A69: 1 | B69: S2 | C69: SGB II | D69: S2SGB II | E69: 233665 | F69: 111386 | I69: S2SGB II | J69: 233665 | K69: 111386
A70: 1 | B70: S3 | C70: SGB II | D70: S3SGB II | E70: 193469 | F70: 115024 | I70: S3SGB II | J70: 193469 | K70: 115024
A71: 1 | B71: S4 | C71: SGB II | D71: S4SGB II | E71: 3615 | F71: 15550 | I71: S4SGB II | J71: 3615 | K71: 15550
A72: 1 | B72: S5 | C72: SGB II | D72: S5SGB II | E72: 206077 | F72: 309573 | I72: S5SGB II | J72: 206077 | K72: 309573
B76: Tab/Ausw | C76: Frauen | D76: Frauen | E76: Frauen | F76: Frauen | G76: Männer | H76: Männer | I76: Männer
C77: Zugang/ Abgang | D77: Anteil der Merkmals- gruppe an Insgesamt in % | E77: Verände- rung zum Vorjahr in % | F77: Anteil an allen Personen in % | G77: Zugang/ Abgang | H77: Anteil der Merkmals- gruppe an Insgesamt in % | I77: Verände- rung zum Vorjahr in %
C78: 1 | D78: 2 | E78: 3 | F78: 4 | G78: 5 | H78: 6 | I78: 7
B79: =Auswahl!$A$2 -> Insgesamt | C79: 1 | D79: 3 | E79: 4 | F79: 6 | G79: 7 | H79: 9 | I79: 10 | J79: Spalte in der Tabelle Tab/DS für Insgesamt
C80: =MATCH(C79&$B$79,$C$13:$AV$13,0) -> 1 | D80: =MATCH(D79&$B$79,$C$13:$AV$13,0) -> 32 | E80: 33 | F80: 34 | G80: 7 | H80: 35 | I80: 36 | J80: ID
A81: 1 | B81: Insgesamt | C81: =INDEX($C$15:$AV$41,$A81,C$80) -> 2179119 | D81: X | E81: 12.0845665 | F81: 45.4430834 | G81: 2616119 | H81: X | I81: 15.15992018
A82: 2 | B82: Insgesamt | C82: 1305023 | D82: 100 | E82: 24.24530637 | F82: 44.15593775 | G82: 1650451 | H82: 100 | I82: 30.05456859
A83: 4 | B83: 15 bis unter 25 Jahre | C83: 125329 | D83: 9.603585531 | E83: 28.71286112 | F83: 38.66520227 | G83: 198806 | H83: 12.04555603 | I83: 36.67306013
A84: 5 | B84: 25 bis unter 35 Jahre | C84: 314619 | D84: 24.10831073 | E84: 25.78118753 | F84: 42.44054838 | G84: 426695 | H84: 25.85323648 | I84: 35.21191476
A85: 6 | B85: 35 bis unter 45 Jahre | C85: 319405 | D85: 24.47504757 | E85: 27.04950637 | F85: 46.78644826 | G85: 363279 | H85: 22.01089278 | I85: 34.35222066
A86: 7 | B86: 45 bis unter 55 Jahre | C86: 277947 | D86: 21.29824532 | E86: 21.51750973 | F86: 46.06271026 | G86: 325461 | H86: 19.71951909 | I86: 23.08207211
A87: 8 | B87: 55 Jahre und älter | C87: 267646 | D87: 20.50891057 | E87: 20.20983701 | F87: 44.32788384 | G87: 336140 | H87: 20.36655435 | I87: 23.07455724
A88: 16 | B88: Langzeitarbeitslose | C88: 384960 | D88: 29.49833068 | E88: 15.20574592 | F88: 44.62735187 | G88: 477650 | H88: 28.94057442 | I88: 22.54097099
A89: 12 | B89: Alleinerziehende | C89: 201731 | D89: 15.45804174 | E89: 14.37489015 | F89: 91.29421455 | G89: 19237 | H89: 1.165560201 | I89: 19.7373335
A90: 10 | B90: Schwerbeheinderte Menschen | C90: 72194 | D90: 5.532009781 | E90: 14.04514794 | F90: 40.62187011 | G90: 105528 | H90: 6.393888701 | I90: 13.28946097
A91: 11 | B91: Berufsrückkehrende | C91: 42718 | D91: 3.27335227 | E91: 22.24702381 | F91: 92.32930598 | G91: 3549 | H91: 0.2150321336 | I91: 55.7261957
A92: 13 | B92: Ohne abgeschlossene Berufsausbildung | C92: 676025 | D92: 51.80176901 | E92: 23.79279025 | F92: 43.95544019 | G92: 861947 | H92: 52.22493731 | I92: 30.5887308
A93: 9 | B93: Ausländer | C93: 391150 | D93: 29.97265182 | E93: 30.36464773 | F93: 44.58484742 | G93: 486161 | H93: 29.45625165 | I93: 36.80032641
A95: 14 | B95: Teilzeit | C95: =INDEX($C$15:$AV$41,$A95,C$80) -> 527544 | D95: 40.42411513 | E95: 13.89094583 | F95: 42.9925187 | G95: 699514 | H95: 42.38320314 | I95: 15.14387346
A96: 15 | B96: Teilzeit oder Vollzeit | C96: 398228 | D96: 30.51501774 | E96: 23.11430709 | F96: 81.952902 | G96: 87695 | H96: 5.313396157 | I96: 19.33240801
A98: 17 | B98: Helfer | C98: =INDEX($C$15:$AV$41,$A98,C$80) -> 685967 | D98: 52.56359466 | E98: X | F98: 47.55868685 | G98: 756389 | H98: 45.82923092 | I98: X
A99: 18 | B99: Fachkraft | C99: 389227 | D99: 29.8252981 | E99: X | F99: 39.77979547 | G99: 589226 | H99: 35.70090842 | I99: X
A100: 19 | B100: Spezialist/Experte | C100: 149428 | D100: 11.45021965 | E100: 39.23463255 | F100: 39.95155378 | G100: 224590 | H100: 13.60779569 | I100: 38.17946904
A101: 20 | B101: keine Angabe zum Anforderungsniveau | C101: 80401 | D101: 6.160887586 | E101: 28.34589107 | F101: 50.04699628 | G101: 80246 | H101: 4.862064975 | I101: 27.45350296
A103: 21 | B103: MINT-Berufe | C103: =INDEX($C$15:$AV$41,$A103,C$80) -> 52243 | D103: 4.003224464 | E103: 36.50449415 | F103: 14.34258245 | G103: 312008 | H103: 18.90440855 | I103: 36.99041531
A104: 1 | B104: Arbeitslosenquote | C104: =INDEX($C$48:$AU$48,$A104,C$80) -> 6.1 | D104: X | E104: 1.2 | F104: X | G104: 6.8 | H104: X | I104: =INDEX($C$48:$AV$48,$A104,I$80) -> 1.5
A106: 22 | B106: S1 | C106: =INDEX($C$15:$AV$41,$A106,C$80) -> 97753 | D106: 7.490519324 | E106: 27.26432412 | F106: 14.97485374 | G106: 555028 | H106: 33.62886872 | I106: 29.02946838
A107: 23 | B107: S2 | C107: 417317 | D107: 31.97775058 | E107: 25.59310455 | F107: 66.79166587 | G107: 207485 | H107: 12.5714123 | I107: 38.2440734
A108: 24 | B108: S3 | C108: 419526 | D108: 32.14701963 | E108: 25.004395 | F108: 62.17981971 | G108: 255166 | H108: 15.46038022 | I108: 29.32369696
A109: 25 | B109: S4 | C109: 13752 | D109: 1.053774531 | E109: 27.66431489 | F109: 23.94775795 | G109: 43673 | H109: 2.646125211 | I109: 31.05176294
A110: 26 | B110: S5 | C110: 276274 | D110: 21.17004834 | E110: 18.95697253 | F110: 35.1884024 | G110: 508853 | H110: 30.83114858 | I110: 28.75541802
A111: 27 | B111: kA_SX | C111: 80401 | D111: 6.160887586 | E111: 28.34589107 | F111: 50.04699628 | G111: 80246 | H111: 4.862064975 | I111: 27.45350296
B114: DiaDat
E115: 2 | F115: 3
E116: Frauen | F116: Männer
B117: X | D117: =B117&$B$79 -> XInsgesamt | E117: =VLOOKUP($D117,$D$55:$F$72,E$115,0) -> 0 | F117: =VLOOKUP($D117,$D$55:$F$72,F$115,0) -> 0
B118: S1 | C118: =$C$8 -> 1 | D118: =B118&$B$79 -> S1Insgesamt | E118: =IF(AND($C118=0,E$117>0),#N/A,VLOOKUP($D118,$D$55:$F$72,E$115,0)) -> 97753 | F118: 555028
B119: S2 | C119: =$C$8 -> 1 | D119: =B119&$B$79 -> S2Insgesamt | E119: 417317 | F119: 207485
B120: S3 | C120: =$C$8 -> 1 | D120: S3Insgesamt | E120: 419526 | F120: 255166
B121: S4 | C121: =$C$8 -> 1 | D121: S4Insgesamt | E121: 13752 | F121: 43673
B122: S5 | C122: =$C$8 -> 1 | D122: S5Insgesamt | E122: 276274 | F122: 508853
B125: DiaDS, DatenBeschriftungen
E126: 2 | F126: 3
E127: Frauen | F127: Männer
B128: S1 | C128: =$C$8 -> 1 | D128: =B128&$B$79 -> S1Insgesamt | E128: =IF(AND($C128=0,E$117>0),"","Frauen"&CHAR(10)&TEXT(VLOOKUP($D128,$I$55:$K$72,E$126,0),"###.###")) -> Frauen 97.753 | F128: =IF(AND($C128=0,F$117>0),"","Männer"&CHAR(10)&TEXT(VLOOKUP($D128,$I$55:$K$72,F$126,0),"###.###")) -> Männer 555.028 | G128: Produktionsberufe
B129: S2 | C129: =$C$8 -> 1 | D129: =B129&$B$79 -> S2Insgesamt | E129: =IF(AND($C129=0,E$117>0),"",VLOOKUP($D129,$I$55:$K$72,E$126,0)) -> 417317 | F129: 207485 | G129: personenbezogene Dienstleistungsberufe
B130: S3 | C130: =$C$8 -> 1 | D130: S3Insgesamt | E130: 419526 | F130: 255166 | G130: kaufmännische und unternehmensbezogene Dienstleistungsberufe
B131: S4 | C131: =$C$8 -> 1 | D131: S4Insgesamt | E131: 13752 | F131: 43673 | G131: IT- und naturwissenschaftl. Dienstleistungsberufe
B132: S5 | C132: =$C$8 -> 1 | D132: S5Insgesamt | E132: 276274 | F132: 508853 | G132: sonstige wirtschaftl. Dienstleistungsberufe
B134: Text bei unvollständiger Datenlieferung
B135: =IF(E128="",B136,"") -> 
B136: Auf Grund unvollständiger Daten kann keine Grafik angezeigt werden.

Sheet Tab 1.1
I1: Frauen und Männer
A3: =Auswahl!F2 -> 1.1 Bestand an Arbeitsuchenden und Arbeitslosen
A4: ='Tab 1.1_roh'!D4 -> Deutschland (Gebietsstand: August 2020)
A5: ='Tab 1.1_roh'!D5 -> 2020-08-01
A23: Die Arbeitsuchenden setzen sich zusammen aus Arbeitslosen und nichtarbeitslosen Arbeitsuchenden. Als Arbeitslose zählen Personen, die die Arbeitslosenkriterien Beschäftigungslosigkeit, Verfügbarkeit und Arbeitssuche erfüllen und nicht an einer arbeitsmarktpolitischen Maßnahme teilnehmen. Arbeitslosenquoten zeigen die relative Unterauslastung des Arbeitskräfteangebots an, indem sie die (registrierten) Arbeitslosen zu den Erwerbspersonen (EP = Erwerbstätige + Arbeitslose) in Beziehung setzen.
A32: Merkmale | C32: Frauen | G32: Männer
C33: Bestand | D33: Anteil an Merkmals- gruppe in % | E33: Verände- rung zum Vorjahr in %(-punkten) | F33: Anteil Frauen an allen Personen in % | G33: Bestand | H33: Anteil an Merkmals- gruppe in % | I33: Verände- rung zum Vorjahr in %(-punkten)
C34: 1 | D34: 2 | E34: 3 | F34: 4 | G34: 5 | H34: 6 | I34: 7
A35: Arbeitsuchende | C35: ='Tab 1.1_roh'!C81 -> 2179119 | D35: ='Tab 1.1_roh'!D81 -> X | E35: ='Tab 1.1_roh'!E81 -> 12.0845665 | F35: ='Tab 1.1_roh'!F81 -> 45.4430834 | G35: ='Tab 1.1_roh'!G81 -> 2616119 | H35: ='Tab 1.1_roh'!H81 -> X | I35: ='Tab 1.1_roh'!I81 -> 15.15992018
A36: Arbeitslose | C36: ='Tab 1.1_roh'!C82 -> 1305023 | D36: ='Tab 1.1_roh'!D82 -> 100 | E36: ='Tab 1.1_roh'!E82 -> 24.24530637 | F36: ='Tab 1.1_roh'!F82 -> 44.15593775 | G36: ='Tab 1.1_roh'!G82 -> 1650451 | H36: ='Tab 1.1_roh'!H82 -> 100 | I36: ='Tab 1.1_roh'!I82 -> 30.05456859
A37: dav.: | B37: unter 25 Jahre | C37: ='Tab 1.1_roh'!C83 -> 125329 | D37: ='Tab 1.1_roh'!D83 -> 9.603585531 | E37: ='Tab 1.1_roh'!E83 -> 28.71286112 | F37: ='Tab 1.1_roh'!F83 -> 38.66520227 | G37: ='Tab 1.1_roh'!G83 -> 198806 | H37: ='Tab 1.1_roh'!H83 -> 12.04555603 | I37: ='Tab 1.1_roh'!I83 -> 36.67306013
B38: 25 bis unter 35 Jahre | C38: ='Tab 1.1_roh'!C84 -> 314619 | D38: ='Tab 1.1_roh'!D84 -> 24.10831073 | E38: ='Tab 1.1_roh'!E84 -> 25.78118753 | F38: ='Tab 1.1_roh'!F84 -> 42.44054838 | G38: ='Tab 1.1_roh'!G84 -> 426695 | H38: ='Tab 1.1_roh'!H84 -> 25.85323648 | I38: ='Tab 1.1_roh'!I84 -> 35.21191476
B39: 35 bis unter 45 Jahre | C39: ='Tab 1.1_roh'!C85 -> 319405 | D39: ='Tab 1.1_roh'!D85 -> 24.47504757 | E39: ='Tab 1.1_roh'!E85 -> 27.04950637 | F39: ='Tab 1.1_roh'!F85 -> 46.78644826 | G39: ='Tab 1.1_roh'!G85 -> 363279 | H39: ='Tab 1.1_roh'!H85 -> 22.01089278 | I39: ='Tab 1.1_roh'!I85 -> 34.35222066
B40: 45 bis unter 55 Jahre | C40: ='Tab 1.1_roh'!C86 -> 277947 | D40: ='Tab 1.1_roh'!D86 -> 21.29824532 | E40: ='Tab 1.1_roh'!E86 -> 21.51750973 | F40: ='Tab 1.1_roh'!F86 -> 46.06271026 | G40: ='Tab 1.1_roh'!G86 -> 325461 | H40: ='Tab 1.1_roh'!H86 -> 19.71951909 | I40: ='Tab 1.1_roh'!I86 -> 23.08207211
B41: 55 Jahre und älter | C41: ='Tab 1.1_roh'!C87 -> 267646 | D41: ='Tab 1.1_roh'!D87 -> 20.50891057 | E41: ='Tab 1.1_roh'!E87 -> 20.20983701 | F41: ='Tab 1.1_roh'!F87 -> 44.32788384 | G41: ='Tab 1.1_roh'!G87 -> 336140 | H41: ='Tab 1.1_roh'!H87 -> 20.36655435 | I41: ='Tab 1.1_roh'!I87 -> 23.07455724
A42: dar.: | B42: Langzeitarbeitslose | C42: ='Tab 1.1_roh'!C88 -> 384960 | D42: ='Tab 1.1_roh'!D88 -> 29.49833068 | E42: ='Tab 1.1_roh'!E88 -> 15.20574592 | F42: ='Tab 1.1_roh'!F88 -> 44.62735187 | G42: ='Tab 1.1_roh'!G88 -> 477650 | H42: ='Tab 1.1_roh'!H88 -> 28.94057442 | I42: ='Tab 1.1_roh'!I88 -> 22.54097099
B43: Alleinerziehende | C43: ='Tab 1.1_roh'!C89 -> 201731 | D43: ='Tab 1.1_roh'!D89 -> 15.45804174 | E43: ='Tab 1.1_roh'!E89 -> 14.37489015 | F43: ='Tab 1.1_roh'!F89 -> 91.29421455 | G43: ='Tab 1.1_roh'!G89 -> 19237 | H43: ='Tab 1.1_roh'!H89 -> 1.165560201 | I43: ='Tab 1.1_roh'!I89 -> 19.7373335
B44: Schwerbehinderte Menschen | C44: ='Tab 1.1_roh'!C90 -> 72194 | D44: ='Tab 1.1_roh'!D90 -> 5.532009781 | E44: ='Tab 1.1_roh'!E90 -> 14.04514794 | F44: ='Tab 1.1_roh'!F90 -> 40.62187011 | G44: ='Tab 1.1_roh'!G90 -> 105528 | H44: ='Tab 1.1_roh'!H90 -> 6.393888701 | I44: ='Tab 1.1_roh'!I90 -> 13.28946097
B45: Berufsrückkehrende | C45: ='Tab 1.1_roh'!C91 -> 42718 | D45: ='Tab 1.1_roh'!D91 -> 3.27335227 | E45: ='Tab 1.1_roh'!E91 -> 22.24702381 | F45: ='Tab 1.1_roh'!F91 -> 92.32930598 | G45: ='Tab 1.1_roh'!G91 -> 3549 | H45: ='Tab 1.1_roh'!H91 -> 0.2150321336 | I45: ='Tab 1.1_roh'!I91 -> 55.7261957
B46: ohne abgeschlossene Berufsausbildung | C46: ='Tab 1.1_roh'!C92 -> 676025 | D46: ='Tab 1.1_roh'!D92 -> 51.80176901 | E46: ='Tab 1.1_roh'!E92 -> 23.79279025 | F46: ='Tab 1.1_roh'!F92 -> 43.95544019 | G46: ='Tab 1.1_roh'!G92 -> 861947 | H46: ='Tab 1.1_roh'!H92 -> 52.22493731 | I46: ='Tab 1.1_roh'!I92 -> 30.5887308
B47: Ausländer | C47: ='Tab 1.1_roh'!C93 -> 391150 | D47: ='Tab 1.1_roh'!D93 -> 29.97265182 | E47: ='Tab 1.1_roh'!E93 -> 30.36464773 | F47: ='Tab 1.1_roh'!F93 -> 44.58484742 | G47: ='Tab 1.1_roh'!G93 -> 486161 | H47: ='Tab 1.1_roh'!H93 -> 29.45625165 | I47: ='Tab 1.1_roh'!I93 -> 36.80032641
A48: nach Arbeitszeit 1)
A49: dar.: | B49: Vollzeit oder Teilzeit | C49: ='Tab 1.1_roh'!C95 -> 527544 | D49: ='Tab 1.1_roh'!D95 -> 40.42411513 | E49: ='Tab 1.1_roh'!E95 -> 13.89094583 | F49: ='Tab 1.1_roh'!F95 -> 42.9925187 | G49: ='Tab 1.1_roh'!G95 -> 699514 | H49: ='Tab 1.1_roh'!H95 -> 42.38320314 | I49: ='Tab 1.1_roh'!I95 -> 15.14387346
B50: Teilzeit | C50: ='Tab 1.1_roh'!C96 -> 398228 | D50: ='Tab 1.1_roh'!D96 -> 30.51501774 | E50: ='Tab 1.1_roh'!E96 -> 23.11430709 | F50: ='Tab 1.1_roh'!F96 -> 81.952902 | G50: ='Tab 1.1_roh'!G96 -> 87695 | H50: ='Tab 1.1_roh'!H96 -> 5.313396157 | I50: ='Tab 1.1_roh'!I96 -> 19.33240801
A51: nach Anforderungsniveau
A52: dav.: | B52: Helfer 2) | C52: ='Tab 1.1_roh'!C98 -> 685967 | D52: ='Tab 1.1_roh'!D98 -> 52.56359466 | E52: ='Tab 1.1_roh'!E98 -> X | F52: ='Tab 1.1_roh'!F98 -> 47.55868685 | G52: ='Tab 1.1_roh'!G98 -> 756389 | H52: ='Tab 1.1_roh'!H98 -> 45.82923092 | I52: ='Tab 1.1_roh'!I98 -> X
B53: Fachkraft 2) | C53: ='Tab 1.1_roh'!C99 -> 389227 | D53: ='Tab 1.1_roh'!D99 -> 29.8252981 | E53: ='Tab 1.1_roh'!E99 -> X | F53: ='Tab 1.1_roh'!F99 -> 39.77979547 | G53: ='Tab 1.1_roh'!G99 -> 589226 | H53: ='Tab 1.1_roh'!H99 -> 35.70090842 | I53: ='Tab 1.1_roh'!I99 -> X
B54: Spezialist/Experte | C54: ='Tab 1.1_roh'!C100 -> 149428 | D54: ='Tab 1.1_roh'!D100 -> 11.45021965 | E54: ='Tab 1.1_roh'!E100 -> 39.23463255 | F54: ='Tab 1.1_roh'!F100 -> 39.95155378 | G54: ='Tab 1.1_roh'!G100 -> 224590 | H54: ='Tab 1.1_roh'!H100 -> 13.60779569 | I54: ='Tab 1.1_roh'!I100 -> 38.17946904
B55: keine Angabe zum Anforderungsniveau | C55: ='Tab 1.1_roh'!C101 -> 80401 | D55: ='Tab 1.1_roh'!D101 -> 6.160887586 | E55: ='Tab 1.1_roh'!E101 -> 28.34589107 | F55: ='Tab 1.1_roh'!F101 -> 50.04699628 | G55: ='Tab 1.1_roh'!G101 -> 80246 | H55: ='Tab 1.1_roh'!H101 -> 4.862064975 | I55: ='Tab 1.1_roh'!I101 -> 27.45350296
A56: nach ausgewählten Merkmalen der Berufsklassifikation
A57: dar.: | B57: MINT-Berufe 3) | C57: ='Tab 1.1_roh'!C103 -> 52243 | D57: ='Tab 1.1_roh'!D103 -> 4.003224464 | E57: ='Tab 1.1_roh'!E103 -> 36.50449415 | F57: ='Tab 1.1_roh'!F103 -> 14.34258245 | G57: ='Tab 1.1_roh'!G103 -> 312008 | H57: ='Tab 1.1_roh'!H103 -> 18.90440855 | I57: ='Tab 1.1_roh'!I103 -> 36.99041531
A58: =IF('Tab 1.1_roh'!B79="Insgesamt","Arbeitslosenquote (in %)","Arbeitslosenquote (rechtskreisanteilig, in %)") -> Arbeitslosenquote (in %) | C58: ='Tab 1.1_roh'!C104 -> 6.1 | D58: ='Tab 1.1_roh'!D104 -> X | E58: ='Tab 1.1_roh'!E104 -> 1.2 | F58: ='Tab 1.1_roh'!F104 -> X | G58: ='Tab 1.1_roh'!G104 -> 6.8 | H58: ='Tab 1.1_roh'!H104 -> X | I58: ='Tab 1.1_roh'!I104 -> 1.5
I59: © Statistik der Bundesagentur für Arbeit
A60: =IF('Tab 1.1_roh'!B135<>"","Aufgrund unvollständiger Daten können einige Merkmale nicht ausgewertet werden, da diese nicht geschätzt werden.","") -> 
A61: 1) Angaben zur gewünschten Arbeitszeit sind nicht im Lieferumfang der zugelassenen kommunalen Träger (zkT) an die Bundesagentur für Arbeit enthalten. Daher werden die gemeldeten Arbeitslosen und Arbeitsuchenden bei zkT grundsätzlich der Kategorie „Vollzeit oder Teilzeit“ (Oberkategorie "Vollzeit") zugeordnet.
A62: 2) Ab Januar 2020 gehören einige Berufspositionen nach der KldB 2010 zum Anforderungsniveau „Helfer“, die bisher dem Anforderungsniveau „Fachkraft“ zugeordnet waren. Nähere Informationen finden Sie in der Kurzinfo unter https://statistik.arbeitsagentur.de/DE/Statischer-Content/Statistiken/Fachstatistiken/Arbeitsuche-Arbeitslosigkeit-Unterbeschaeftigung/Generische-Publikationen/Kurzinfo-DKZ-Aenderungen.pdf
A63: 3) Weiterführende Hinweise zu Berufsaggregaten

Sheet Tab 1.2_roh (hidden)
C1: TabSpalten | AW1: XXX
C2: Hilfsspalten
C3: Überschrift | D3: 1.2 Zugänge in und Abgänge aus Arbeitslosigkeit
C4: Gebiet | D4: Deutschland (Gebietsstand: August 2020)
C5: BM | D5: 2020-08-01
C7: Deutschland
C8: 1
C9: Frauen | D9: Frauen | E9: Frauen | F9: Frauen | G9: Frauen | H9: Frauen | I9: Männer | J9: Männer | K9: Männer | L9: Männer | M9: Frauen | N9: Frauen | O9: Frauen | P9: Frauen | Q9: Frauen | R9: Frauen | S9: Männer | T9: Männer | U9: Männer | V9: Männer | W9: Frauen | X9: Frauen | Y9: Frauen | Z9: Frauen | AA9: Frauen | AB9: Frauen | AC9: Männer | AD9: Männer | AE9: Männer | AF9: Männer | AH9: Frauen | AI9: Frauen | AJ9: Frauen | AK9: Männer | AL9: Männer | AM9: Frauen | AN9: Frauen | AO9: Frauen | AP9: Männer | AQ9: Männer | AR9: Frauen | AS9: Frauen | AT9: Frauen | AU9: Männer | AV9: Männer
B10: Tab/DS | C10: Anzahl | D10: VJM | E10: Anteil der Personen- gruppe an Insgesamt in % | F10: Verände- rung zum Vorjahr in % | G10: Gesamt | H10: Anteil an Frauen und Männer insgesamt in % | I10: Anzahl | J10: VJM | K10: Anteil der Personen- gruppe an Insgesamt in % | L10: Verände- rung zum Vorjahr in % | M10: Anzahl | N10: VJM | O10: Anteil der Personen- gruppe an Insgesamt in % | P10: Verände- rung zum Vorjahr in % | Q10: Gesamt | R10: Anteil an Frauen und Männer insgesamt in % | S10: Anzahl | T10: VJM | U10: Anteil der Personen- gruppe an Insgesamt in % | V10: Verände- rung zum Vorjahr in % | W10: Anzahl | X10: VJM | Y10: Anteil der Personen- gruppe an Insgesamt in % | Z10: Verände- rung zum Vorjahr in % | AA10: Gesamt | AB10: Anteil an Frauen und Männer insgesamt in % | AC10: Anzahl | AD10: VJM | AE10: Anteil der Personen- gruppe an Insgesamt in % | AF10: Verände- rung zum Vorjahr in % | AH10: Anteil der Personen- gruppe an Insgesamt in % | AI10: Verände- rung zum Vorjahr in % | AJ10: Anteil an Frauen und Männer insgesamt in % | AK10: Anteil der Personen- gruppe an Insgesamt in % | AL10: Verände- rung zum Vorjahr in % | AM10: Anteil der Personen- gruppe an Insgesamt in % | AN10: Verände- rung zum Vorjahr in % | AO10: Anteil an Frauen und Männer insgesamt in % | AP10: Anteil der Personen- gruppe an Insgesamt in % | AQ10: Verände- rung zum Vorjahr in % | AR10: Anteil der Personen- gruppe an Insgesamt in % | AS10: Verände- rung zum Vorjahr in % | AT10: Anteil an Frauen und Männer insgesamt in % | AU10: Anteil der Personen- gruppe an Insgesamt in % | AV10: Verände- rung zum Vorjahr in %
C11: 1 | D11: 0 | E11: 2 | F11: 3 | G11: 0 | H11: 4 | I11: 5 | J11: 0 | K11: 6 | L11: 7 | M11: 1 | N11: 0 | O11: 2 | P11: 3 | Q11: 0 | R11: 4 | S11: 5 | T11: 0 | U11: 6 | V11: 7 | W11: 1 | X11: 0 | Y11: 2 | Z11: 3 | AA11: 0 | AB11: 4 | AC11: 5 | AD11: 0 | AE11: 6 | AF11: 7 | AH11: 2 | AI11: 3 | AJ11: 4 | AK11: 6 | AL11: 7 | AM11: 2 | AN11: 3 | AO11: 4 | AP11: 6 | AQ11: 7 | AR11: 2 | AS11: 3 | AT11: 4 | AU11: 6 | AV11: 7
C12: 1 | D12: 2 | E12: 3 | F12: 4 | G12: 5 | H12: 6 | I12: 7 | J12: 8 | K12: 9 | L12: 10 | M12: 1 | N12: 2 | O12: 3 | P12: 4 | Q12: 5 | R12: 6 | S12: 7 | T12: 8 | U12: 9 | V12: 10 | W12: 1 | X12: 2 | Y12: 3 | Z12: 4 | AA12: 5 | AB12: 6 | AC12: 7 | AD12: 8 | AE12: 9 | AF12: 10 | AH12: 3 | AI12: 4 | AJ12: 6 | AK12: 9 | AL12: 10 | AM12: 3 | AN12: 4 | AO12: 6 | AP12: 9 | AQ12: 10 | AR12: 3 | AS12: 4 | AT12: 6 | AU12: 9 | AV12: 10
C13: 1Insgesamt | D13: 2Insgesamt | G13: 5Insgesamt | I13: 7Insgesamt | J13: 8Insgesamt | M13: 1SGB III | N13: 2SGB III | Q13: 5SGB III | S13: 7SGB III | T13: 8SGB III | W13: 1SGB II | X13: 2SGB II | AA13: 5SGB II | AC13: 7SGB II | AD13: 8SGB II | AH13: 3Insgesamt | AI13: 4Insgesamt | AJ13: 6Insgesamt | AK13: 9Insgesamt | AL13: 10Insgesamt | AM13: 3SGB III | AN13: 4SGB III | AO13: 6SGB III | AP13: 9SGB III | AQ13: 10SGB III | AR13: 3SGB II | AS13: 4SGB II | AT13: 6SGB II | AU13: 9SGB II | AV13: 10SGB II
B14: ID für Auswahl | C14: Insgesamt | M14: SGB III | W14: SGB II
C15: 238322 | D15: 290411 | G15: 524589 | I15: 286263 | J15: 353139 | M15: 135779 | N15: 143026 | Q15: 302960 | S15: 167177 | T15: 172087 | W15: 102543 | X15: 147385 | AA15: 221629 | AC15: 119086 | AD15: 181052 | AH15: 100 | AI15: -17.93630407 | AJ15: 45.43023205 | AK15: 100 | AL15: -18.93758548 | AM15: 100 | AN15: -5.066910911 | AO15: 44.81746765 | AP15: 100 | AQ15: -2.85320797 | AR15: 100 | AS15: -30.42507718 | AT15: 46.26786206 | AU15: 100 | AV15: -34.22552637
C16: 237 | D16: 0 | G16: 505 | I16: 268 | J16: 0 | M16: 0 | N16: 0 | Q16: 0 | S16: 0 | T16: 0 | W16: 237 | X16: 0 | AA16: 505 | AC16: 268 | AD16: 0
B17: 1 | C17: 87521 | D17: 95026 | G17: 202419 | I17: 114898 | J17: 127255 | M17: 73839 | N17: 77606 | Q17: 165980 | S17: 92141 | T17: 95816 | W17: 13682 | X17: 17420 | AA17: 36439 | AC17: 22757 | AD17: 31439 | AH17: 36.72384421 | AI17: -7.897838486 | AJ17: 43.23754193 | AK17: 40.13721648 | AL17: -9.710423952 | AM17: 54.3817527 | AN17: -4.854006134 | AO17: 44.48668514 | AP17: 55.11583531 | AQ17: -3.83547633 | AR17: 13.34269526 | AS17: -21.45809414 | AT17: 37.54768243 | AU17: 19.10971903 | AV17: -27.61538217
B18: 1 | C18: 80767 | D18: 86306 | G18: 186807 | I18: 106040 | J18: 115440 | M18: 70647 | N18: 74017 | Q18: 159300 | S18: 88653 | T18: 91876 | W18: 10120 | X18: 12289 | AA18: 27507 | AC18: 17387 | AD18: 23564 | AH18: 33.88986329 | AI18: -6.417862026 | AJ18: 43.23553186 | AK18: 37.04285919 | AL18: -8.142758143 | AM18: 52.0308737 | AN18: -4.553008093 | AO18: 44.34839925 | AP18: 53.0294239 | AQ18: -3.507989029 | AR18: 9.869030553 | AS18: -17.64993083 | AT18: 36.79063511 | AU18: 14.60037284 | AV18: -26.21371584
B19: 1 | C19: 2855 | D19: 2922 | G19: 6525 | I19: 3670 | J19: 4238 | M19: 2296 | N19: 2322 | Q19: 4922 | S19: 2626 | T19: 2801 | W19: 559 | X19: 600 | AA19: 1603 | AC19: 1044 | AD19: 1437 | AH19: 1.197959064 | AI19: -2.292950034 | AJ19: 43.75478927 | AK19: 1.282037846 | AL19: -13.40254837 | AM19: 1.690983142 | AN19: -1.119724376 | AO19: 46.64770419 | AP19: 1.57079024 | AQ19: -6.247768654 | AR19: 0.545137162 | AS19: -6.833333333 | AT19: 34.87211478 | AU19: 0.8766773592 | AV19: -27.34864301
B20: 1 | C20: 77720 | D20: 86776 | G20: 175552 | I20: 97829 | J20: 112536 | M20: 39659 | N20: 36497 | Q20: 89820 | S20: 50158 | T20: 44771 | W20: 38061 | X20: 50279 | AA20: 85732 | AC20: 47671 | AD20: 67765 | AH20: 32.61134096 | AI20: -10.43606527 | AJ20: 44.27178272 | AK20: 34.17451784 | AL20: -13.0687069 | AM20: 29.20849321 | AN20: 8.663725786 | AO20: 44.15386328 | AP20: 30.00293103 | AQ20: 12.03234236 | AR20: 37.11711185 | AS20: -24.30040375 | AT20: 44.39532497 | AU20: 40.03073409 | AV20: -29.65247547
B21: 1 | C21: 62723 | D21: 99023 | G21: 125152 | I21: 62429 | J21: 102702 | M21: 20655 | N21: 27615 | Q21: 43864 | S21: 23209 | T21: 30295 | W21: 42068 | X21: 71408 | AA21: 81288 | AC21: 39220 | AD21: 72407 | AH21: 26.31859417 | AI21: -36.65815013 | AJ21: 50.11745717 | AK21: 21.80826722 | AL21: -39.21345251 | AM21: 15.21221986 | AN21: -25.20369364 | AO21: 47.0887288 | AP21: 13.88289059 | AQ21: -23.38999835 | AR21: 41.02474084 | AS21: -41.0878333 | AT21: 51.75179608 | AU21: 32.93418202 | AV21: -45.83396633
B22: 1 | C22: 10358 | D22: 9586 | G22: 21466 | I22: 11107 | J22: 10646 | M22: 1626 | N22: 1308 | Q22: 3296 | S22: 1669 | T22: 1205 | W22: 8732 | X22: 8278 | AA22: 18170 | AC22: 9438 | AD22: 9441 | AH22: 4.346220659 | AI22: 8.053411225 | AJ22: 48.25305134 | AK22: 3.879998463 | AL22: 4.330264888 | AM22: 1.197534228 | AN22: 24.31192661 | AO22: 49.33252427 | AP22: 0.9983430735 | AQ22: 38.50622407 | AR22: 8.515452054 | AS22: 5.484416526 | AT22: 48.0572372 | AU22: 7.925364862 | AV22: -0.03177629488
C23: 208891 | D23: 263206 | G23: 479119 | I23: 270225 | J23: 336402 | M23: 112299 | N23: 125601 | Q23: 259354 | S23: 147052 | T23: 156464 | W23: 96592 | X23: 137605 | AA23: 219765 | AC23: 123173 | AD23: 179938 | AH23: 100 | AI23: -20.63592775 | AJ23: 43.59898063 | AK23: 100 | AL23: -19.67199957 | AM23: 100 | AN23: -10.59068001 | AO23: 43.29950569 | AP23: 100 | AQ23: -6.015441252 | AR23: 100 | AS23: -29.80487628 | AT23: 43.9524037 | AU23: 100 | AV23: -31.54697729
C24: 154 | D24: 0 | G24: 359 | I24: 205 | J24: 0 | M24: 0 | N24: 0 | Q24: 0 | S24: 0 | T24: 0 | W24: 154 | X24: 0 | AA24: 359 | AC24: 205 | AD24: 0
B25: 1 | C25: 73886 | D25: 75516 | G25: 179669 | I25: 105783 | J25: 106514 | M25: 58339 | N25: 55669 | Q25: 135458 | S25: 77119 | T25: 68741 | W25: 15547 | X25: 19847 | AA25: 44211 | AC25: 28664 | AD25: 37773 | AH25: 35.37059998 | AI25: -2.15848297 | AJ25: 41.12339914 | AK25: 39.146267 | AL25: -0.6862947594 | AM25: 51.9497057 | AN25: 4.796206147 | AO25: 43.06796203 | AP25: 52.44335337 | AQ25: 12.18777731 | AR25: 16.09553586 | AS25: -21.66574293 | AT25: 35.16545656 | AU25: 23.27133382 | AV25: -24.11510868
B26: 1 | C26: 66987 | D26: 67824 | G26: 161902 | I26: 94915 | J26: 94253 | M26: 54816 | N26: 52400 | Q26: 127061 | S26: 72245 | T26: 64175 | W26: 12171 | X26: 15424 | AA26: 34841 | AC26: 22670 | AD26: 30078 | AH26: 32.06792059 | AI26: -1.234076433 | AJ26: 41.37502934 | AK26: 35.12443334 | AL26: 0.7023649115 | AM26: 48.81254508 | AN26: 4.610687023 | AO26: 43.14148322 | AP26: 49.12887958 | AQ26: 12.57499026 | AR26: 12.6004224 | AS26: -21.0905083 | AT26: 34.93298126 | AU26: 18.40500759 | AV26: -24.62929716
B27: 1 | C27: 3869 | D27: 3570 | G27: 9662 | I27: 5793 | J27: 5430 | M27: 3323 | N27: 3099 | Q27: 7960 | S27: 4637 | T27: 4315 | W27: 546 | X27: 471 | AA27: 1702 | AC27: 1156 | AD27: 1115 | AH27: 1.852162132 | AI27: 8.37535014 | AJ27: 40.04346926 | AK27: 2.143769081 | AL27: 6.685082873 | AM27: 2.95906464 | AN27: 7.228138109 | AO27: 41.74623116 | AP27: 3.153306313 | AQ27: 7.462340672 | AR27: 0.5652642041 | AS27: 15.92356688 | AT27: 32.07990599 | AU27: 0.9385173699 | AV27: 3.677130045
B28: 1 | C28: 53104 | D28: 64888 | G28: 129215 | I28: 76110 | J28: 93927 | M28: 23608 | N28: 27131 | Q28: 57185 | S28: 33576 | T28: 36143 | W28: 29496 | X28: 37757 | AA28: 72030 | AC28: 42534 | AD28: 57784 | AH28: 25.42187074 | AI28: -18.16052275 | AJ28: 41.09739581 | AK28: 28.16541771 | AL28: -18.96898655 | AM28: 21.022449 | AN28: -12.98514614 | AO28: 41.28355338 | AP28: 22.83273944 | AQ28: -7.102343469 | AR28: 30.53669041 | AS28: -21.8793866 | AT28: 40.94960433 | AU28: 34.53191852 | AV28: -26.39138862
B29: 1 | C29: 64616 | D29: 105391 | G29: 134667 | I29: 70050 | J29: 116863 | M29: 27988 | N29: 40364 | Q29: 61237 | S29: 33248 | T29: 48221 | W29: 36628 | X29: 65027 | AA29: 73430 | AC29: 36802 | AD29: 68642 | AH29: 30.93287887 | AI29: -38.68926189 | AJ29: 47.98205945 | AK29: 25.92284208 | AL29: -40.05801665 | AM29: 24.92275087 | AN29: -30.66098504 | AO29: 45.7043944 | AP29: 22.60968909 | AQ29: -31.050787 | AR29: 37.92032466 | AS29: -43.67262829 | AT29: 49.88151981 | AU29: 29.87830125 | AV29: -46.38559483
B30: 1 | C30: 17285 | D30: 17411 | G30: 35568 | I30: 18282 | J30: 19098 | M30: 2364 | N30: 2437 | Q30: 5474 | S30: 3109 | T30: 3359 | W30: 14921 | X30: 14974 | AA30: 30094 | AC30: 15173 | AD30: 15739 | AH30: 8.274650416 | AI30: -0.7236804319 | AJ30: 48.59705353 | AK30: 6.765473217 | AL30: -4.272698712 | AM30: 2.105094435 | AN30: -2.995486254 | AO30: 43.18597004 | AP30: 2.1142181 | AQ30: -7.442691277 | AR30: 15.44744906 | AS30: -0.3539468412 | AT30: 49.58131189 | AU30: 12.31844641 | AV30: -3.596162399
B33: DiaDatRoh
E37: ID | G37: 2018-08-01 | H37: 2018-09-01 | I37: Okt 2018 | J37: 2018-11-01 | K37: Dez 2018 | L37: 2019-01-01 | M37: 2019-02-01 | N37: 2019-03-01 | O37: 2019-04-01 | P37: Mai 2019 | Q37: 2019-06-01 | R37: 2019-07-01 | S37: 2019-08-01 | T37: 2019-09-01 | U37: Okt 2019 | V37: 2019-11-01 | W37: Dez 2019 | X37: 2020-01-01 | Y37: 2020-02-01 | Z37: 2020-03-01 | AA37: 2020-04-01 | AB37: Mai 2020 | AC37: 2020-06-01 | AD37: 2020-07-01 | AE37: 2020-08-01
B38: X | C38: Abg | D38: G | E38: Insgesamt | G38: 1761 | H38: 3278 | I38: 2164 | J38: 1903 | K38: 186 | L38: 669 | M38: 815 | N38: 941 | O38: 1074 | P38: 0 | Q38: 0 | R38: 0 | S38: 0 | T38: 0 | U38: 0 | V38: 0 | W38: 0 | X38: 314 | Y38: 381 | Z38: 91 | AA38: 52 | AB38: 0 | AC38: 130 | AD38: 527 | AE38: 359
B39: Insgesamt | C39: Abg | D39: F | E39: Insgesamt | G39: 69223 | H39: 81613 | I39: 69342 | J39: 68147 | K39: 55777 | L39: 56411 | M39: 65684 | N39: 71252 | O39: 76202 | P39: 66035 | Q39: 58657 | R39: 55180 | S39: 67824 | T39: 81551 | U39: 72241 | V39: 64179 | W39: 53435 | X39: 54662 | Y39: 63996 | Z39: 70464 | AA39: 46598 | AB39: 42778 | AC39: 58769 | AD39: 54295 | AE39: 66987
B40: Insgesamt | C40: Abg | D40: M | E40: Insgesamt | G40: 95119 | H40: 98188 | I40: 91573 | J40: 89881 | K40: 75489 | L40: 74692 | M40: 97595 | N40: 127919 | O40: 131303 | P40: 103016 | Q40: 91362 | R40: 86006 | S40: 94253 | T40: 97885 | U40: 95620 | V40: 85141 | W40: 73078 | X40: 73343 | Y40: 100048 | Z40: 123922 | AA40: 83335 | AB40: 71627 | AC40: 82861 | AD40: 84291 | AE40: 94915
B41: X | C41: Abg | D41: G | E41: SGB III | G41: 0 | H41: 0 | I41: 0 | J41: 0 | K41: 0 | L41: 0 | M41: 0 | N41: 0 | O41: 0 | P41: 0 | Q41: 0 | R41: 0 | S41: 0 | T41: 0 | U41: 0 | V41: 0 | W41: 0 | X41: 0 | Y41: 0 | Z41: 0 | AA41: 0 | AB41: 0 | AC41: 0 | AD41: 0 | AE41: 0
B42: Insgesamt | C42: Abg | D42: F | E42: SGB III | G42: 52599 | H42: 62517 | I42: 51427 | J42: 50575 | K42: 40255 | L42: 43912 | M42: 51219 | N42: 56154 | O42: 59629 | P42: 50490 | Q42: 43404 | R42: 41264 | S42: 52400 | T42: 63081 | U42: 54619 | V42: 48228 | W42: 39098 | X42: 43123 | Y42: 50778 | Z42: 56092 | AA42: 37408 | AB42: 34793 | AC42: 48378 | AD42: 43602 | AE42: 54816
B43: Insgesamt | C43: Abg | D43: M | E43: SGB III | G43: 62296 | H43: 65077 | I43: 59243 | J43: 58568 | K43: 47948 | L43: 53791 | M43: 72113 | N43: 99592 | O43: 99128 | P43: 72543 | Q43: 60556 | R43: 56428 | S43: 64175 | T43: 67388 | U43: 64364 | V43: 57752 | W43: 48521 | X43: 54324 | Y43: 76228 | Z43: 96618 | AA43: 66073 | AB43: 56702 | AC43: 64006 | AD43: 63228 | AE43: 72245
B44: X | C44: Abg | D44: G | E44: SGB II | G44: 1761 | H44: 3278 | I44: 2164 | J44: 1903 | K44: 186 | L44: 669 | M44: 815 | N44: 941 | O44: 1074 | P44: 0 | Q44: 0 | R44: 0 | S44: 0 | T44: 0 | U44: 0 | V44: 0 | W44: 0 | X44: 314 | Y44: 381 | Z44: 91 | AA44: 52 | AB44: 0 | AC44: 130 | AD44: 527 | AE44: 359
B45: Insgesamt | C45: Abg | D45: F | E45: SGB II | G45: 16624 | H45: 19096 | I45: 17915 | J45: 17572 | K45: 15522 | L45: 12499 | M45: 14465 | N45: 15098 | O45: 16573 | P45: 15545 | Q45: 15253 | R45: 13916 | S45: 15424 | T45: 18470 | U45: 17622 | V45: 15951 | W45: 14337 | X45: 11539 | Y45: 13218 | Z45: 14372 | AA45: 9190 | AB45: 7985 | AC45: 10391 | AD45: 10693 | AE45: 12171
B46: Insgesamt | C46: Abg | D46: M | E46: SGB II | G46: 32823 | H46: 33111 | I46: 32330 | J46: 31313 | K46: 27541 | L46: 20901 | M46: 25482 | N46: 28327 | O46: 32175 | P46: 30473 | Q46: 30806 | R46: 29578 | S46: 30078 | T46: 30497 | U46: 31256 | V46: 27389 | W46: 24557 | X46: 19019 | Y46: 23820 | Z46: 27304 | AA46: 17262 | AB46: 14925 | AC46: 18855 | AD46: 21063 | AE46: 22670
G48: 2018-07-01 | H48: 2018-08-01 | I48: 2018-09-01 | J48: Okt 2018 | K48: 2018-11-01 | L48: Dez 2018 | M48: 2019-01-01 | N48: 2019-02-01 | O48: 2019-03-01 | P48: 2019-04-01 | Q48: Mai 2019 | R48: 2019-06-01 | S48: 2019-07-01 | T48: 2019-08-01 | U48: 2019-09-01 | V48: Okt 2019 | W48: 2019-11-01 | X48: Dez 2019 | Y48: 2020-01-01 | Z48: 2020-02-01 | AA48: 2020-03-01 | AB48: 2020-04-01 | AC48: Mai 2020 | AD48: 2020-06-01 | AE48: 2020-07-01
B49: X | C49: Bst | D49: G | E49: Insgesamt | G49: 3914 | H49: 10707 | I49: 10969 | J49: 3676 | K49: 1139 | L49: 1135 | M49: 4189 | N49: 0 | O49: 3804 | P49: 0 | Q49: 0 | R49: 0 | S49: 0 | T49: 0 | U49: 0 | V49: 0 | W49: 0 | X49: 0 | Y49: 3818 | Z49: 0 | AA49: 626 | AB49: 0 | AC49: 0 | AD49: 2453 | AE49: 5274
B50: Insgesamt | C50: Bst | D50: F | E50: Insgesamt | G50: 1058128 | H50: 1075905 | I50: 1028845 | J50: 1001403 | K50: 987301 | L50: 984864 | M50: 1046879 | N50: 1023769 | O50: 1002591 | P50: 982859 | Q50: 992681 | R50: 987831 | S50: 1023140 | T50: 1050360 | U50: 1005126 | V50: 987976 | W50: 967567 | X50: 975181 | Y50: 1039335 | Z50: 1020967 | AA50: 1000686 | AB50: 1145947 | AC50: 1224064 | AD50: 1243824 | AE50: 1275614
B51: Insgesamt | C51: Bst | D51: M | E51: Insgesamt | G51: 1266617 | H51: 1274969 | I51: 1227624 | J51: 1202445 | K51: 1198806 | L51: 1224682 | M51: 1358706 | N51: 1348930 | O51: 1298528 | P51: 1246013 | Q51: 1243285 | R51: 1228409 | S51: 1252316 | T51: 1269045 | U51: 1228900 | V51: 1216110 | W51: 1212429 | X51: 1251971 | Y51: 1386183 | Z51: 1374634 | AA51: 1334677 | AB51: 1497788 | AC51: 1588912 | AD51: 1609473 | AE51: 1634377
B52: X | C52: Bst | D52: G | E52: SGB III | G52: 0 | H52: 0 | I52: 0 | J52: 0 | K52: 0 | L52: 0 | M52: 0 | N52: 0 | O52: 0 | P52: 0 | Q52: 0 | R52: 0 | S52: 0 | T52: 0 | U52: 0 | V52: 0 | W52: 0 | X52: 0 | Y52: 0 | Z52: 0 | AA52: 0 | AB52: 0 | AC52: 0 | AD52: 0 | AE52: 0
B53: Insgesamt | C53: Bst | D53: F | E53: SGB III | G53: 362812 | H53: 373714 | I53: 349782 | J53: 339865 | K53: 337142 | L53: 341532 | M53: 382881 | N53: 372586 | O53: 357608 | P53: 343866 | Q53: 336810 | R53: 335788 | S53: 366559 | T53: 380778 | U53: 357752 | V53: 348778 | W53: 345289 | X53: 352891 | Y53: 395981 | Z53: 387503 | AA53: 373634 | AB53: 455351 | AC53: 494400 | AD53: 504494 | AE53: 534521
B54: Insgesamt | C54: Bst | D54: M | E54: SGB III | G54: 425138 | H54: 430227 | I54: 409543 | J54: 402418 | K54: 407456 | L54: 435312 | M54: 536375 | N54: 535068 | O54: 492170 | P54: 450912 | Q54: 435503 | R54: 430154 | S54: 458062 | T54: 467347 | U54: 450343 | V54: 446202 | W54: 454281 | X54: 485470 | Y54: 588582 | Z54: 583488 | AA54: 551240 | AB54: 637217 | AC54: 677930 | AD54: 692474 | AE54: 723946
B55: X | C55: Bst | D55: G | E55: SGB II | G55: 3914 | H55: 10707 | I55: 10969 | J55: 3676 | K55: 1139 | L55: 1135 | M55: 4189 | N55: 0 | O55: 3804 | P55: 0 | Q55: 0 | R55: 0 | S55: 0 | T55: 0 | U55: 0 | V55: 0 | W55: 0 | X55: 0 | Y55: 3818 | Z55: 0 | AA55: 626 | AB55: 0 | AC55: 0 | AD55: 2453 | AE55: 5274
B56: Insgesamt | C56: Bst | D56: F | E56: SGB II | G56: 695316 | H56: 702191 | I56: 679063 | J56: 661538 | K56: 650159 | L56: 643332 | M56: 663998 | N56: 651183 | O56: 644983 | P56: 638993 | Q56: 655871 | R56: 652043 | S56: 656581 | T56: 669582 | U56: 647374 | V56: 639198 | W56: 622278 | X56: 622290 | Y56: 643354 | Z56: 633464 | AA56: 627052 | AB56: 690596 | AC56: 729664 | AD56: 739330 | AE56: 741093
B57: Insgesamt | C57: Bst | D57: M | E57: SGB II | G57: 841479 | H57: 844742 | I57: 818081 | J57: 800027 | K57: 791350 | L57: 789370 | M57: 822331 | N57: 813862 | O57: 806358 | P57: 795101 | Q57: 807782 | R57: 798255 | S57: 794254 | T57: 801698 | U57: 778557 | V57: 769908 | W57: 758148 | X57: 766501 | Y57: 797601 | Z57: 791146 | AA57: 783437 | AB57: 860571 | AC57: 910982 | AD57: 916999 | AE57: 910431
B61: TabAusw | C61: Frauen | D61: Frauen | E61: Frauen | F61: Frauen | G61: Männer | H61: Männer | I61: Männer
C62: Zugang/ Abgang | D62: Anteil der Merkmals- gruppe an Insgesamt in % | E62: Verände- rung zum Vorjahr in % | F62: Anteil an allen Personen in % | G62: Zugang/ Abgang | H62: Anteil der Merkmals- gruppe an Insgesamt in % | I62: Verände- rung zum Vorjahr in %
C63: 1 | D63: 2 | E63: 3 | F63: 4 | G63: 5 | H63: 6 | I63: 7
B64: =Auswahl!$A$2 -> Insgesamt | C64: 1 | D64: 3 | E64: 4 | F64: 6 | G64: 7 | H64: 9 | I64: 10 | J64: Spalte in der Tabelle Tab/DS für Insgesamt
C65: =MATCH(C64&$B$64,$C$13:$AV$13,0) -> 1 | D65: =MATCH(D64&$B$64,$C$13:$AV$13,0) -> 32 | E65: 33 | F65: 34 | G65: 7 | H65: 35 | I65: 36 | J65: ID
A66: 1 | B66: Insgesamt | C66: =INDEX($C$15:$AV$30,$A66,C$65) -> 238322 | D66: 100 | E66: -17.93630407 | F66: 45.43023205 | G66: 286263 | H66: 100 | I66: -18.93758548
A67: 3 | B67: Erwerbstätigkeit | C67: 87521 | D67: 36.72384421 | E67: -7.897838486 | F67: 43.23754193 | G67: 114898 | H67: 40.13721648 | I67: -9.710423952
A68: 4 | B68: dar. Beschäftigung am 1. Arbeitsmarkt | C68: 80767 | D68: 33.88986329 | E68: -6.417862026 | F68: 43.23553186 | G68: 106040 | H68: 37.04285919 | I68: -8.142758143
A69: 5 | B69: Selbständigkeit | C69: 2855 | D69: 1.197959064 | E69: -2.292950034 | F69: 43.75478927 | G69: 3670 | H69: 1.282037846 | I69: -13.40254837
A70: 6 | B70: Ausbildung u. sonst. Maßnahmeteilnahme | C70: 77720 | D70: 32.61134096 | E70: -10.43606527 | F70: 44.27178272 | G70: 97829 | H70: 34.17451784 | I70: -13.0687069
A71: 7 | B71: Nichterwerbstätigkeit | C71: 62723 | D71: 26.31859417 | E71: -36.65815013 | F71: 50.11745717 | G71: 62429 | H71: 21.80826722 | I71: -39.21345251
A72: 8 | B72: Sonstiges/ Keine Angabe | C72: 10358 | D72: 4.346220659 | E72: 8.053411225 | F72: 48.25305134 | G72: 11107 | H72: 3.879998463 | I72: 4.330264888
A73: 9 | B73: Insgesamt | C73: 208891 | D73: 100 | E73: -20.63592775 | F73: 43.59898063 | G73: 270225 | H73: 100 | I73: -19.67199957
A74: 11 | B74: Erwerbstätigkeit | C74: 73886 | D74: 35.37059998 | E74: -2.15848297 | F74: 41.12339914 | G74: 105783 | H74: 39.146267 | I74: -0.6862947594
A75: 12 | B75: dar. Beschäftigung am 1. Arbeitsmarkt | C75: 66987 | D75: 32.06792059 | E75: -1.234076433 | F75: 41.37502934 | G75: 94915 | H75: 35.12443334 | I75: 0.7023649115
A76: 13 | B76: Selbständigkeit | C76: 3869 | D76: 1.852162132 | E76: 8.37535014 | F76: 40.04346926 | G76: 5793 | H76: 2.143769081 | I76: 6.685082873
A77: 14 | B77: Ausbildung u. sonst. Maßnahmeteilnahme | C77: 53104 | D77: 25.42187074 | E77: -18.16052275 | F77: 41.09739581 | G77: 76110 | H77: 28.16541771 | I77: -18.96898655
A78: 15 | B78: Nichterwerbstätigkeit | C78: 64616 | D78: 30.93287887 | E78: -38.68926189 | F78: 47.98205945 | G78: 70050 | H78: 25.92284208 | I78: -40.05801665
A79: 16 | B79: Sonstiges/ Keine Angabe | C79: 17285 | D79: 8.274650416 | E79: -0.7236804319 | F79: 48.59705353 | G79: 18282 | H79: 6.765473217 | I79: -4.272698712
B82: Berechnung Dia
G83: =TEXT(G37,"MMM JJJJ") -> Aug 2018 | H83: =TEXT(H37,"MMM JJJJ") -> Sep 2018 | I83: Okt 2018 | J83: Nov 2018 | K83: Dez 2018 | L83: Jan 2019 | M83: Feb 2019 | N83: Mrz 2019 | O83: Apr 2019 | P83: Mai 2019 | Q83: Jun 2019 | R83: Jul 2019 | S83: Aug 2019 | T83: Sep 2019 | U83: Okt 2019 | V83: Nov 2019 | W83: Dez 2019 | X83: Jan 2020 | Y83: Feb 2020 | Z83: Mrz 2020 | AA83: Apr 2020 | AB83: Mai 2020 | AC83: Jun 2020 | AD83: Jul 2020 | AE83: Aug 2020
B84: Insgesamt | C84: F | D84: Insgesamt | E84: InsgesamtFInsgesamt | F84: =$C$8 -> 1 | G84: =IF(AND($F84=0,OR(G$38>0,G$49>0)),#N/A,G39/G50*100) -> 6.542025161 | H84: =IF(AND($F84=0,OR(H$38>0,H$49>0)),#N/A,H39/H50*100) -> 7.585521026 | I84: 6.739790736 | J84: 6.805152371 | K84: 5.649442267 | L84: 5.727795919 | M84: 6.274268564 | N84: 6.959773152 | O84: 7.600507086 | P84: 6.71866463 | Q84: 5.908947587 | R84: 5.585975739 | S84: 6.629004828 | T84: 7.764099928 | U84: 7.187258115 | V84: 6.496008 | W84: 5.522614971 | X84: 5.605318397 | Y84: 6.157398721 | Z84: 6.901692219 | AA84: 4.656605569 | AB84: 3.732982415 | AC84: 4.801137849 | AD84: 4.365167419 | AE84: =IF(AND($F84=0,OR(AE$38>0,AE$49>0)),#N/A,AE39/AE50*100) -> 5.251353466 | AF84: =COUNTIF(G84:AE84,#N/A) -> 0
B85: Insgesamt | C85: M | D85: Insgesamt | E85: InsgesamtMInsgesamt | F85: 1 | G85: =IF(AND($F85=0,OR(G$38>0,G$49>0)),#N/A,G40/G51*100) -> 7.509689196 | H85: 7.701206853 | I85: 7.459368667 | J85: 7.47485332 | K85: 6.29701553 | L85: 6.098889344 | M85: 7.182937295 | N85: 9.482997635 | O85: 10.1116803 | P85: 8.267650498 | Q85: 7.348435797 | R85: 7.001414024 | S85: 7.52629528 | T85: 7.713280459 | U85: 7.780942306 | V85: 7.001093651 | W85: 6.027404491 | X85: 5.858202786 | Y85: 7.217517456 | Z85: 9.014908696 | AA85: 6.243832778 | AB85: 4.782185463 | AC85: 5.214952118 | AD85: 5.23718012 | AE85: =IF(AND($F85=0,OR(AE$38>0,AE$49>0)),#N/A,AE40/AE51*100) -> 5.807411631 | AF85: =COUNTIF(G85:AE85,#N/A) -> 0
B86: Insgesamt | C86: F | D86: SGB III | E86: InsgesamtFSGB III | F86: 1 | G86: =IF(AND($F86=0,OR(G$41>0,G$52>0)),#N/A,G42/G53*100) -> 14.49759104 | H86: 16.72856784 | I86: 14.70258618 | J86: 14.8809086 | K86: 11.94007273 | L86: 12.85736036 | M86: 13.37726343 | N86: 15.07141975 | O86: 16.67440326 | P86: 14.68304514 | Q86: 12.88679077 | R86: 12.28870597 | S86: 14.29510665 | T86: 16.56634574 | U86: 15.26728013 | V86: 13.82770702 | W86: 11.32326833 | X86: 12.2199206 | Y86: 12.82334253 | Z86: 14.47524277 | AA86: 10.01193682 | AB86: 7.640918764 | AC86: 9.785194175 | AD86: 8.642719239 | AE86: =IF(AND($F86=0,OR(AE$41>0,AE$52>0)),#N/A,AE42/AE53*100) -> 10.25516303 | AF86: 0
B87: Insgesamt | C87: M | D87: SGB III | E87: InsgesamtMSGB III | F87: 1 | G87: =IF(AND($F87=0,OR(G$41>0,G$52>0)),#N/A,G43/G54*100) -> 14.6531244 | H87: 15.12620082 | I87: 14.46563609 | J87: 14.55402094 | K87: 11.76765099 | L87: 12.35688426 | M87: 13.44451177 | N87: 18.61296134 | O87: 20.14100819 | P87: 16.08806153 | Q87: 13.90484107 | R87: 13.11809259 | S87: 14.01011217 | T87: 14.41926449 | U87: 14.29221727 | V87: 12.94301684 | W87: 10.68083411 | X87: 11.18998084 | Y87: 12.95112661 | Z87: 16.55869529 | AA87: 11.98624918 | AB87: 8.898381556 | AC87: 9.441387754 | AD87: 9.130739927 | AE87: =IF(AND($F87=0,OR(AE$41>0,AE$52>0)),#N/A,AE43/AE54*100) -> 9.979335475 | AF87: 0
B88: Insgesamt | C88: F | D88: SGB II | E88: InsgesamtFSGB II | F88: 1 | G88: =IF(AND($F88=0,OR(G$44>0,G$55>0)),#N/A,G45/G56*100) -> 2.390855381 | H88: 2.719488003 | I88: 2.6381941 | J88: 2.656234411 | K88: 2.387416001 | L88: 1.942853768 | M88: 2.178470417 | N88: 2.318549471 | O88: 2.569525088 | P88: 2.432734005 | Q88: 2.325609762 | R88: 2.134215075 | S88: 2.349138949 | T88: 2.758437353 | U88: 2.722074102 | V88: 2.495470887 | W88: 2.303954181 | X88: 1.854280159 | Y88: 2.054545398 | Z88: 2.26879507 | AA88: 1.465588181 | AB88: 1.156247647 | AC88: 1.424080125 | AD88: 1.446309496 | AE88: =IF(AND($F88=0,OR(AE$44>0,AE$55>0)),#N/A,AE45/AE56*100) -> 1.642304002 | AF88: 0
B89: Insgesamt | C89: M | D89: SGB II | E89: InsgesamtMSGB II | F89: 1 | G89: =IF(AND($F89=0,OR(G$44>0,G$55>0)),#N/A,G46/G57*100) -> 3.900632101 | H89: 3.91965831 | I89: 3.95193141 | J89: 3.913992903 | K89: 3.48025526 | L89: 2.647807745 | M89: 3.098752206 | N89: 3.480565501 | O89: 3.990163178 | P89: 3.832594853 | Q89: 3.813652693 | R89: 3.705332256 | S89: 3.786949767 | T89: 3.804050902 | U89: 4.014606509 | V89: 3.557438032 | W89: 3.239077331 | X89: 2.481275302 | Y89: 2.986455634 | Z89: 3.451196113 | AA89: 2.20336798 | AB89: 1.734313613 | AC89: 2.069744517 | AD89: 2.29694907 | AE89: =IF(AND($F89=0,OR(AE$44>0,AE$55>0)),#N/A,AE46/AE57*100) -> 2.490029448 | AF89: =COUNTIF(G89:AE89,#N/A) -> 0
B92: DiaDat_einfach | G92: =G94*1 -> 43313 | H92: =H94*1 -> 43344 | I92: 43374 | J92: 43405 | K92: 43435 | L92: 43466 | M92: 43497 | N92: 43525 | O92: 43556 | P92: 43586 | Q92: 43617 | R92: 43647 | S92: 43678 | T92: 43709 | U92: 43739 | V92: 43770 | W92: 43800 | X92: 43831 | Y92: 43862 | Z92: 43891 | AA92: 43922 | AB92: 43952 | AC92: 43983 | AD92: 44013 | AE92: 44044
G93: 3 | H93: 4 | I93: 5 | J93: 6 | K93: 7 | L93: 8 | M93: 9 | N93: 10 | O93: 11 | P93: 12 | Q93: 13 | R93: 14 | S93: 15 | T93: 16 | U93: 17 | V93: 18 | W93: 19 | X93: 20 | Y93: 21 | Z93: 22 | AA93: 23 | AB93: 24 | AC93: 25 | AD93: 26 | AE93: 27
G94: =TEXT(G83,"MMM JJJJ") -> Aug 2018 | H94: =TEXT(H83,"MMM JJJJ") -> Sep 2018 | I94: Okt 2018 | J94: Nov 2018 | K94: Dez 2018 | L94: Jan 2019 | M94: Feb 2019 | N94: Mrz 2019 | O94: Apr 2019 | P94: Mai 2019 | Q94: Jun 2019 | R94: Jul 2019 | S94: Aug 2019 | T94: Sep 2019 | U94: Okt 2019 | V94: Nov 2019 | W94: Dez 2019 | X94: Jan 2020 | Y94: Feb 2020 | Z94: Mrz 2020 | AA94: Apr 2020 | AB94: Mai 2020 | AC94: Jun 2020 | AD94: Jul 2020 | AE94: Aug 2020 | AF94: max
B95: Insgesamt | C95: F | D95: =$B$64 -> Insgesamt | E95: =B95&C95&D95 -> InsgesamtFInsgesamt | G95: =VLOOKUP($E95,$E$84:$AE$89,G$93,0) -> 6.542025161 | H95: =VLOOKUP($E95,$E$84:$AE$89,H$93,0) -> 7.585521026 | I95: 6.739790736 | J95: 6.805152371 | K95: 5.649442267 | L95: 5.727795919 | M95: 6.274268564 | N95: 6.959773152 | O95: 7.600507086 | P95: 6.71866463 | Q95: 5.908947587 | R95: =VLOOKUP($E95,$E$84:$AE$89,R$93,0) -> 5.585975739 | S95: 6.629004828 | T95: 7.764099928 | U95: 7.187258115 | V95: 6.496008 | W95: 5.522614971 | X95: 5.605318397 | Y95: 6.157398721 | Z95: 6.901692219 | AA95: 4.656605569 | AB95: 3.732982415 | AC95: 4.801137849 | AD95: 4.365167419 | AE95: 5.251353466 | AF95: =MAX(G95:AE96) -> 10.1116803
B96: Insgesamt | C96: M | D96: =$B$64 -> Insgesamt | E96: =B96&C96&D96 -> InsgesamtMInsgesamt | G96: =VLOOKUP($E96,$E$84:$AE$89,G$93,0) -> 7.509689196 | H96: 7.701206853 | I96: 7.459368667 | J96: 7.47485332 | K96: 6.29701553 | L96: 6.098889344 | M96: 7.182937295 | N96: 9.482997635 | O96: 10.1116803 | P96: 8.267650498 | Q96: 7.348435797 | R96: 7.001414024 | S96: 7.52629528 | T96: 7.713280459 | U96: 7.780942306 | V96: 7.001093651 | W96: 6.027404491 | X96: 5.858202786 | Y96: 7.217517456 | Z96: 9.014908696 | AA96: 6.243832778 | AB96: 4.782185463 | AC96: 5.214952118 | AD96: 5.23718012 | AE96: 5.807411631
B98: Datenbeschriftung DS
G99: =TEXT(G94,"MMM JJJJ") -> Aug 2018 | H99: =TEXT(H94,"MMM JJJJ") -> Sep 2018 | I99: Okt 2018 | J99: Nov 2018 | K99: Dez 2018 | L99: Jan 2019 | M99: Feb 2019 | N99: Mrz 2019 | O99: Apr 2019 | P99: Mai 2019 | Q99: Jun 2019 | R99: Jul 2019 | S99: Aug 2019 | T99: Sep 2019 | U99: Okt 2019 | V99: Nov 2019 | W99: Dez 2019 | X99: Jan 2020 | Y99: Feb 2020 | Z99: Mrz 2020 | AA99: Apr 2020 | AB99: Mai 2020 | AC99: Jun 2020 | AD99: Jul 2020 | AE99: Aug 2020
B100: Insgesamt | C100: F | D100: =$B$64 -> Insgesamt | E100: =B100&C100&D100 -> InsgesamtFInsgesamt | G100: =IFERROR(G95,"X") -> 6.542025161 | H100: =IFERROR(H95,"") -> 7.585521026 | I100: 6.739790736 | J100: 6.805152371 | K100: 5.649442267 | L100: 5.727795919 | M100: 6.274268564 | N100: 6.959773152 | O100: 7.600507086 | P100: 6.71866463 | Q100: 5.908947587 | R100: 5.585975739 | S100: 6.629004828 | T100: 7.764099928 | U100: 7.187258115 | V100: 6.496008 | W100: 5.522614971 | X100: 5.605318397 | Y100: 6.157398721 | Z100: 6.901692219 | AA100: 4.656605569 | AB100: 3.732982415 | AC100: 4.801137849 | AD100: 4.365167419 | AE100: 5.251353466
B101: Insgesamt | C101: M | D101: =$B$64 -> Insgesamt | E101: =B101&C101&D101 -> InsgesamtMInsgesamt | G101: =IFERROR(G96,"X") -> 7.509689196 | H101: =IFERROR(H96,"") -> 7.701206853 | I101: 7.459368667 | J101: 7.47485332 | K101: 6.29701553 | L101: 6.098889344 | M101: 7.182937295 | N101: 9.482997635 | O101: 10.1116803 | P101: 8.267650498 | Q101: 7.348435797 | R101: 7.001414024 | S101: 7.52629528 | T101: 7.713280459 | U101: 7.780942306 | V101: 7.001093651 | W101: 6.027404491 | X101: 5.858202786 | Y101: 7.217517456 | Z101: 9.014908696 | AA101: 6.243832778 | AB101: 4.782185463 | AC101: 5.214952118 | AD101: 5.23718012 | AE101: 5.807411631
B103: Text bei unvollständiger Datenlieferung | F103: Zählt Datenausfälle | H103: =SUMIF($E$84:$E$89,I103,AF84:AF89) -> 0 | I103: =E95 -> InsgesamtFInsgesamt
B104: =IF(H103>0,B105,"") -> 
B105: Lücken in der Grafik entstehen durch unvollständige Daten. Strukturen für Abgänge können dann nicht ausgewertet werden.
G106: =G100 -> 6.542025161 | H106: =H100 -> 7.585521026 | I106: 6.739790736 | J106: 6.805152371 | K106: 5.649442267 | L106: 5.727795919 | M106: 6.274268564 | N106: 6.959773152 | O106: 7.600507086 | P106: 6.71866463 | Q106: 5.908947587 | R106: 5.585975739 | S106: 6.629004828 | T106: 7.764099928 | U106: 7.187258115 | V106: 6.496008 | W106: 5.522614971 | X106: 5.605318397 | Y106: 6.157398721 | Z106: 6.901692219 | AA106: 4.656605569 | AB106: 3.732982415 | AC106: 4.801137849 | AD106: 4.365167419 | AE106: 5.251353466
G107: =G101 -> 7.509689196 | H107: 7.701206853 | I107: 7.459368667 | J107: 7.47485332 | K107: 6.29701553 | L107: 6.098889344 | M107: 7.182937295 | N107: 9.482997635 | O107: 10.1116803 | P107: 8.267650498 | Q107: 7.348435797 | R107: 7.001414024 | S107: 7.52629528 | T107: 7.713280459 | U107: 7.780942306 | V107: 7.001093651 | W107: 6.027404491 | X107: 5.858202786 | Y107: 7.217517456 | Z107: 9.014908696 | AA107: 6.243832778 | AB107: 4.782185463 | AC107: 5.214952118 | AD107: 5.23718012 | AE107: 5.807411631
AB108: =IF(COUNTIF(AC108:AE108,"")=3,"Frauen","") ->  | AC108: =IF(COUNTIF(AD108:AE108,"")=2,"Frauen","") ->  | AD108: =IF(AE108<>"","","Frauen") ->  | AE108: =IF(AE100="","","Frauen") -> Frauen
B109: Die Abgangsrate ist der Anteil des Abgangs Arbeitsoser eines Monats zum Bestand Arbeitsloser des Vormonats. | AB109: =IF(COUNTIF(AC109:AE109,"")=3,"Männer","") ->  | AC109: =IF(COUNTIF(AD109:AE109,"")=2,"Männer","") ->  | AD109: =IF(AE109<>"","","Männer") ->  | AE109: =IF(AE101="","","Männer") -> Männer
B111: DiaDat
C112: 'Tab 1.2_roh'!$AL$112:$BJ$112 | D112: 1 | E112: Frauen | F112: d01_F | G112: =G95 -> 6.542025161 | H112: =H95 -> 7.585521026
C113: 'Tab 1.2_roh'!$AL$113:$BJ$113 | D113: 2 | F113: d02_F | H113: =H95:I95 -> 7.585521026 | I113: =I95:J95 -> 6.739790736
C114: 'Tab 1.2_roh'!$AL$114:$BJ$114 | D114: 3 | F114: d03_F | I114: =I95 -> 6.739790736 | J114: =J95 -> 6.805152371
C115: 'Tab 1.2_roh'!$AL$115:$BJ$115 | D115: 4 | F115: d04_F | J115: =J95 -> 6.805152371 | K115: =K95 -> 5.649442267
C116: 'Tab 1.2_roh'!$AL$116:$BJ$116 | D116: 5 | F116: d05_F | K116: =K95 -> 5.649442267 | L116: =L95 -> 5.727795919
C117: 'Tab 1.2_roh'!$AL$117:$BJ$117 | D117: 6 | F117: d06_F | L117: =L95 -> 5.727795919 | M117: =M95 -> 6.274268564
C118: 'Tab 1.2_roh'!$AL$118:$BJ$118 | D118: 7 | F118: d07_F | M118: =M95 -> 6.274268564 | N118: =N95 -> 6.959773152
C119: 'Tab 1.2_roh'!$AL$119:$BJ$119 | D119: 8 | F119: d08_F | N119: =N95 -> 6.959773152 | O119: =O95 -> 7.600507086
C120: 'Tab 1.2_roh'!$AL$120:$BJ$120 | D120: 9 | F120: d09_F | O120: =O95 -> 7.600507086 | P120: =P95 -> 6.71866463
C121: 'Tab 1.2_roh'!$AL$121:$BJ$121 | D121: 10 | F121: d10_F | P121: =P95 -> 6.71866463 | Q121: =Q95 -> 5.908947587
C122: 'Tab 1.2_roh'!$AL$122:$BJ$122 | D122: 11 | F122: d11_F | Q122: =Q95 -> 5.908947587 | R122: =R95 -> 5.585975739
C123: 'Tab 1.2_roh'!$AL$123:$BJ$123 | D123: 12 | F123: d12_F | R123: =R95 -> 5.585975739 | S123: =S95 -> 6.629004828
C124: 'Tab 1.2_roh'!$AL$124:$BJ$124 | D124: 13 | F124: d13_F | S124: =S95 -> 6.629004828 | T124: =T95 -> 7.764099928
C125: 'Tab 1.2_roh'!$AL$125:$BJ$125 | D125: 14 | F125: d14_F | T125: =T95 -> 7.764099928 | U125: =U95 -> 7.187258115
C126: 'Tab 1.2_roh'!$AL$126:$BJ$126 | D126: 15 | F126: d15_F | U126: =U95 -> 7.187258115 | V126: =V95 -> 6.496008
C127: 'Tab 1.2_roh'!$AL$127:$BJ$127 | D127: 16 | F127: d16_F | V127: =V95 -> 6.496008 | W127: =W95 -> 5.522614971
C128: 'Tab 1.2_roh'!$AL$128:$BJ$128 | D128: 17 | F128: d17_F | W128: =W95 -> 5.522614971 | X128: =X95 -> 5.605318397
C129: 'Tab 1.2_roh'!$AL$129:$BJ$129 | D129: 18 | F129: d18_F | X129: =X95 -> 5.605318397 | Y129: =Y95 -> 6.157398721
C130: 'Tab 1.2_roh'!$AL$130:$BJ$130 | D130: 19 | F130: d19_F | Y130: =Y95 -> 6.157398721 | Z130: =Z95 -> 6.901692219
C131: 'Tab 1.2_roh'!$AL$131:$BJ$131 | D131: 20 | F131: d20_F | Z131: =Z95 -> 6.901692219 | AA131: =AA95 -> 4.656605569
C132: 'Tab 1.2_roh'!$AL$132:$BJ$132 | D132: 21 | F132: d21_F | AA132: =AA95 -> 4.656605569 | AB132: =AB95 -> 3.732982415
C133: 'Tab 1.2_roh'!$AL$133:$BJ$133 | D133: 22 | F133: d22_F | AB133: =AB95 -> 3.732982415 | AC133: =AC95 -> 4.801137849
C134: 'Tab 1.2_roh'!$AL$134:$BJ$134 | D134: 23 | F134: d23_F | AC134: =AC95 -> 4.801137849 | AD134: =AD95 -> 4.365167419
C135: 'Tab 1.2_roh'!$AL$135:$BJ$135 | D135: 24 | F135: d24_F | AD135: =AD95 -> 4.365167419 | AE135: =AE95 -> 5.251353466
C136: 'Tab 1.2_roh'!$AL$136:$BJ$136 | D136: 1 | E136: Männer | F136: d01_M | G136: =G96 -> 7.509689196 | H136: =H96 -> 7.701206853
C137: 'Tab 1.2_roh'!$AL$137:$BJ$137 | D137: 2 | F137: d02_M | H137: =H96 -> 7.701206853 | I137: =I96 -> 7.459368667
C138: 'Tab 1.2_roh'!$AL$138:$BJ$138 | D138: 3 | F138: d03_M | I138: =I96 -> 7.459368667 | J138: =J96 -> 7.47485332
C139: 'Tab 1.2_roh'!$AL$139:$BJ$139 | D139: 4 | F139: d04_M | J139: =J96 -> 7.47485332 | K139: =K96 -> 6.29701553
C140: 'Tab 1.2_roh'!$AL$140:$BJ$140 | D140: 5 | F140: d05_M | K140: =K96 -> 6.29701553 | L140: =L96 -> 6.098889344
C141: 'Tab 1.2_roh'!$AL$141:$BJ$141 | D141: 6 | F141: d06_M | L141: =L96 -> 6.098889344 | M141: =M96 -> 7.182937295
C142: 'Tab 1.2_roh'!$AL$142:$BJ$142 | D142: 7 | F142: d07_M | M142: =M96 -> 7.182937295 | N142: =N96 -> 9.482997635
C143: 'Tab 1.2_roh'!$AL$143:$BJ$143 | D143: 8 | F143: d08_M | N143: =N96 -> 9.482997635 | O143: =O96 -> 10.1116803
C144: 'Tab 1.2_roh'!$AL$144:$BJ$144 | D144: 9 | F144: d09_M | O144: =O96 -> 10.1116803 | P144: =P96 -> 8.267650498
C145: 'Tab 1.2_roh'!$AL$145:$BJ$145 | D145: 10 | F145: d10_M | P145: =P96 -> 8.267650498 | Q145: =Q96 -> 7.348435797
C146: 'Tab 1.2_roh'!$AL$146:$BJ$146 | D146: 11 | F146: d11_M | Q146: =Q96 -> 7.348435797 | R146: =R96 -> 7.001414024
C147: 'Tab 1.2_roh'!$AL$147:$BJ$147 | D147: 12 | F147: d12_M | R147: =R96 -> 7.001414024 | S147: =S96 -> 7.52629528
C148: 'Tab 1.2_roh'!$AL$148:$BJ$148 | D148: 13 | F148: d13_M | S148: =S96 -> 7.52629528 | T148: =T96 -> 7.713280459
C149: 'Tab 1.2_roh'!$AL$149:$BJ$149 | D149: 14 | F149: d14_M | T149: =T96 -> 7.713280459 | U149: =U96 -> 7.780942306
C150: 'Tab 1.2_roh'!$AL$150:$BJ$150 | D150: 15 | F150: d15_M | U150: =U96 -> 7.780942306 | V150: =V96 -> 7.001093651
C151: 'Tab 1.2_roh'!$AL$151:$BJ$151 | D151: 16 | F151: d16_M | V151: =V96 -> 7.001093651 | W151: =W96 -> 6.027404491
C152: 'Tab 1.2_roh'!$AL$152:$BJ$152 | D152: 17 | F152: d17_M | W152: =W96 -> 6.027404491 | X152: =X96 -> 5.858202786
C153: 'Tab 1.2_roh'!$AL$153:$BJ$153 | D153: 18 | F153: d18_M | X153: =X96 -> 5.858202786 | Y153: =Y96 -> 7.217517456
C154: 'Tab 1.2_roh'!$AL$154:$BJ$154 | D154: 19 | F154: d19_M | Y154: =Y96 -> 7.217517456 | Z154: =Z96 -> 9.014908696
C155: 'Tab 1.2_roh'!$AL$155:$BJ$155 | D155: 20 | F155: d20_M | Z155: =Z96 -> 9.014908696 | AA155: =AA96 -> 6.243832778
C156: 'Tab 1.2_roh'!$AL$156:$BJ$156 | D156: 21 | F156: d21_M | AA156: =AA96 -> 6.243832778 | AB156: =AB96 -> 4.782185463
C157: 'Tab 1.2_roh'!$AL$157:$BJ$157 | D157: 22 | F157: d22_M | AB157: =AB96 -> 4.782185463 | AC157: =AC96 -> 5.214952118
C158: 'Tab 1.2_roh'!$AL$158:$BJ$158 | D158: 23 | F158: d23_M | AC158: =AC96 -> 5.214952118 | AD158: =AD96 -> 5.23718012
C159: 'Tab 1.2_roh'!$AL$159:$BJ$159 | D159: 24 | F159: d24_M | AD159: =AD96 -> 5.23718012 | AE159: =AE96 -> 5.807411631

Sheet Tab 1.2
J1: Frauen und Männer
A3: =Auswahl!F3 -> 1.2 Zugänge in und Abgänge aus Arbeitslosigkeit
A4: ='Tab 1.2_roh'!D4 -> Deutschland (Gebietsstand: August 2020)
A5: ='Tab 1.2_roh'!D5 -> 2020-08-01
A23: Um ein Gesamtbild zur Arbeitslosigkeit zu erhalten, werden neben dem Bestand an Arbeitslosen die Zu- und Abgänge in und aus Arbeitslosigkeit abgebildet. Diese geben Informationen darüber, woher die Arbeitslosen kommen bzw. wohin sie gehen (Erwerbstätigkeit, Ausbildung/Maßnahmeteilnahme, Nichterwerbstätigkeit oder Sonstiges). Bei der Betrachtung der Bewegungen sind die saisonbedingten Einflüsse zu berücksichtigen. Im Frühjahr sind z.B. witterungsbedingt die Abgänge besonders hoch, insbesondere im Bau- und Gartenbaubereich. Das betrifft vor allem die Männer. Auch durch Einstellungstermine nach den Sommerferien und zu Jahresbeginn ergeben sich erhöhte Abgänge.
A33: Merkmale | D33: Frauen | H33: Männer
D34: Zugang/ Abgang | E34: Anteil an Merkmals- gruppe in % | F34: Verände- rung zum Vorjahr in % | G34: Anteil Frauen an allen Personen in % | H34: Zugang/ Abgang | I34: Anteil an Merkmals- gruppe in % | J34: Verände- rung zum Vorjahr in %
D35: 1 | E35: 2 | F35: 3 | G35: 4 | H35: 5 | I35: 6 | J35: 7
A36: Zugang an Arbeitslosen | D36: ='Tab 1.2_roh'!C66 -> 238322 | E36: ='Tab 1.2_roh'!D66 -> 100 | F36: ='Tab 1.2_roh'!E66 -> -17.93630407 | G36: ='Tab 1.2_roh'!F66 -> 45.43023205 | H36: ='Tab 1.2_roh'!G66 -> 286263 | I36: ='Tab 1.2_roh'!H66 -> 100 | J36: ='Tab 1.2_roh'!I66 -> -18.93758548
A37: dav.: | B37: Erwerbstätigkeit | D37: ='Tab 1.2_roh'!C67 -> 87521 | E37: ='Tab 1.2_roh'!D67 -> 36.72384421 | F37: ='Tab 1.2_roh'!E67 -> -7.897838486 | G37: ='Tab 1.2_roh'!F67 -> 43.23754193 | H37: ='Tab 1.2_roh'!G67 -> 114898 | I37: ='Tab 1.2_roh'!H67 -> 40.13721648 | J37: ='Tab 1.2_roh'!I67 -> -9.710423952
B38: dar.: | C38: Beschäftigung am 1. Arbeitsmarkt | D38: ='Tab 1.2_roh'!C68 -> 80767 | E38: ='Tab 1.2_roh'!D68 -> 33.88986329 | F38: ='Tab 1.2_roh'!E68 -> -6.417862026 | G38: ='Tab 1.2_roh'!F68 -> 43.23553186 | H38: ='Tab 1.2_roh'!G68 -> 106040 | I38: ='Tab 1.2_roh'!H68 -> 37.04285919 | J38: ='Tab 1.2_roh'!I68 -> -8.142758143
C39: Selbständigkeit | D39: ='Tab 1.2_roh'!C69 -> 2855 | E39: ='Tab 1.2_roh'!D69 -> 1.197959064 | F39: ='Tab 1.2_roh'!E69 -> -2.292950034 | G39: ='Tab 1.2_roh'!F69 -> 43.75478927 | H39: ='Tab 1.2_roh'!G69 -> 3670 | I39: ='Tab 1.2_roh'!H69 -> 1.282037846 | J39: ='Tab 1.2_roh'!I69 -> -13.40254837
B40: Ausbildung u. sonst. Maßnahmeteilnahme | D40: ='Tab 1.2_roh'!C70 -> 77720 | E40: ='Tab 1.2_roh'!D70 -> 32.61134096 | F40: ='Tab 1.2_roh'!E70 -> -10.43606527 | G40: ='Tab 1.2_roh'!F70 -> 44.27178272 | H40: ='Tab 1.2_roh'!G70 -> 97829 | I40: ='Tab 1.2_roh'!H70 -> 34.17451784 | J40: ='Tab 1.2_roh'!I70 -> -13.0687069
B41: Nichterwerbstätigkeit | D41: ='Tab 1.2_roh'!C71 -> 62723 | E41: ='Tab 1.2_roh'!D71 -> 26.31859417 | F41: ='Tab 1.2_roh'!E71 -> -36.65815013 | G41: ='Tab 1.2_roh'!F71 -> 50.11745717 | H41: ='Tab 1.2_roh'!G71 -> 62429 | I41: ='Tab 1.2_roh'!H71 -> 21.80826722 | J41: ='Tab 1.2_roh'!I71 -> -39.21345251
B42: Sonstiges/ Keine Angabe | D42: ='Tab 1.2_roh'!C72 -> 10358 | E42: ='Tab 1.2_roh'!D72 -> 4.346220659 | F42: ='Tab 1.2_roh'!E72 -> 8.053411225 | G42: ='Tab 1.2_roh'!F72 -> 48.25305134 | H42: ='Tab 1.2_roh'!G72 -> 11107 | I42: ='Tab 1.2_roh'!H72 -> 3.879998463 | J42: ='Tab 1.2_roh'!I72 -> 4.330264888
A43: Abgang an Arbeitslosen | D43: ='Tab 1.2_roh'!C73 -> 208891 | E43: ='Tab 1.2_roh'!D73 -> 100 | F43: ='Tab 1.2_roh'!E73 -> -20.63592775 | G43: ='Tab 1.2_roh'!F73 -> 43.59898063 | H43: ='Tab 1.2_roh'!G73 -> 270225 | I43: ='Tab 1.2_roh'!H73 -> 100 | J43: ='Tab 1.2_roh'!I73 -> -19.67199957
A44: dav.: | B44: Erwerbstätigkeit | D44: ='Tab 1.2_roh'!C74 -> 73886 | E44: ='Tab 1.2_roh'!D74 -> 35.37059998 | F44: ='Tab 1.2_roh'!E74 -> -2.15848297 | G44: ='Tab 1.2_roh'!F74 -> 41.12339914 | H44: ='Tab 1.2_roh'!G74 -> 105783 | I44: ='Tab 1.2_roh'!H74 -> 39.146267 | J44: ='Tab 1.2_roh'!I74 -> -0.6862947594
B45: dar.: | C45: Beschäftigung am 1. Arbeitsmarkt | D45: ='Tab 1.2_roh'!C75 -> 66987 | E45: ='Tab 1.2_roh'!D75 -> 32.06792059 | F45: ='Tab 1.2_roh'!E75 -> -1.234076433 | G45: ='Tab 1.2_roh'!F75 -> 41.37502934 | H45: ='Tab 1.2_roh'!G75 -> 94915 | I45: ='Tab 1.2_roh'!H75 -> 35.12443334 | J45: ='Tab 1.2_roh'!I75 -> 0.7023649115
C46: Selbständigkeit | D46: ='Tab 1.2_roh'!C76 -> 3869 | E46: ='Tab 1.2_roh'!D76 -> 1.852162132 | F46: ='Tab 1.2_roh'!E76 -> 8.37535014 | G46: ='Tab 1.2_roh'!F76 -> 40.04346926 | H46: ='Tab 1.2_roh'!G76 -> 5793 | I46: ='Tab 1.2_roh'!H76 -> 2.143769081 | J46: ='Tab 1.2_roh'!I76 -> 6.685082873
B47: Ausbildung u. sonst. Maßnahmeteilnahme | D47: ='Tab 1.2_roh'!C77 -> 53104 | E47: ='Tab 1.2_roh'!D77 -> 25.42187074 | F47: ='Tab 1.2_roh'!E77 -> -18.16052275 | G47: ='Tab 1.2_roh'!F77 -> 41.09739581 | H47: ='Tab 1.2_roh'!G77 -> 76110 | I47: ='Tab 1.2_roh'!H77 -> 28.16541771 | J47: ='Tab 1.2_roh'!I77 -> -18.96898655
B48: Nichterwerbstätigkeit | D48: ='Tab 1.2_roh'!C78 -> 64616 | E48: ='Tab 1.2_roh'!D78 -> 30.93287887 | F48: ='Tab 1.2_roh'!E78 -> -38.68926189 | G48: ='Tab 1.2_roh'!F78 -> 47.98205945 | H48: ='Tab 1.2_roh'!G78 -> 70050 | I48: ='Tab 1.2_roh'!H78 -> 25.92284208 | J48: ='Tab 1.2_roh'!I78 -> -40.05801665
B49: Sonstiges/ Keine Angabe | D49: ='Tab 1.2_roh'!C79 -> 17285 | E49: ='Tab 1.2_roh'!D79 -> 8.274650416 | F49: ='Tab 1.2_roh'!E79 -> -0.7236804319 | G49: ='Tab 1.2_roh'!F79 -> 48.59705353 | H49: ='Tab 1.2_roh'!G79 -> 18282 | I49: ='Tab 1.2_roh'!H79 -> 6.765473217 | J49: ='Tab 1.2_roh'!I79 -> -4.272698712
J50: © Statistik der Bundesagentur für Arbeit
A51: =IF('Tab 1.2_roh'!B104<>"","Aufgrund unvollständiger Daten können einige Merkmale nicht ausgewertet werden, da diese nicht geschätzt werden.","") -> 
A52: Hinweis zur Grafik Die Abgangsrate ist der Abgang Arbeitsloser eines Monats bezogen auf den Bestand des Vormonats.

Sheet Tab 2_roh (hidden)
C1: TabSpalten | AW1: XXX
C2: Hilfsspalten
C3: Überschrift | D3: 2 Unterbeschäftigung
C4: Gebiet | D4: Deutschland (Gebietsstand: August 2020)
C5: BM | D5: Mai 2020, Daten mit einer Wartezeit von 3 Monaten
C9: Frauen | D9: Frauen | E9: Frauen | F9: Frauen | G9: Frauen | H9: Frauen | I9: Männer | J9: Männer | K9: Männer | L9: Männer | M9: Frauen | N9: Frauen | O9: Frauen | P9: Frauen | Q9: Frauen | R9: Frauen | S9: Männer | T9: Männer | U9: Männer | V9: Männer | W9: Frauen | X9: Frauen | Y9: Frauen | Z9: Frauen | AA9: Frauen | AB9: Frauen | AC9: Männer | AD9: Männer | AE9: Männer | AF9: Männer | AH9: Frauen | AI9: Frauen | AJ9: Frauen | AK9: Männer | AL9: Männer | AM9: Frauen | AN9: Frauen | AO9: Frauen | AP9: Männer | AQ9: Männer | AR9: Frauen | AS9: Frauen | AT9: Frauen | AU9: Männer | AV9: Männer
B10: Tab/DS | C10: Anzahl | D10: VJM | E10: Anteil der Personen- gruppe an Insgesamt in % | F10: Verände- rung zum Vorjahr in % | G10: Gesamt | H10: Anteil an Frauen und Männer insgesamt in % | I10: Anzahl | J10: VJM | K10: Anteil der Personen- gruppe an Insgesamt in % | L10: Verände- rung zum Vorjahr in % | M10: Anzahl | N10: VJM | O10: Anteil der Personen- gruppe an Insgesamt in % | P10: Verände- rung zum Vorjahr in % | Q10: Gesamt | R10: Anteil an Frauen und Männer insgesamt in % | S10: Anzahl | T10: VJM | U10: Anteil der Personen- gruppe an Insgesamt in % | V10: Verände- rung zum Vorjahr in % | W10: Anzahl | X10: VJM | Y10: Anteil der Personen- gruppe an Insgesamt in % | Z10: Verände- rung zum Vorjahr in % | AA10: Gesamt | AB10: Anteil an Frauen und Männer insgesamt in % | AC10: Anzahl | AD10: VJM | AE10: Anteil der Personen- gruppe an Insgesamt in % | AF10: Verände- rung zum Vorjahr in % | AH10: Anteil der Personen- gruppe an Insgesamt in % | AI10: Verände- rung zum Vorjahr in % | AJ10: Anteil an Frauen und Männer insgesamt in % | AK10: Anteil der Personen- gruppe an Insgesamt in % | AL10: Verände- rung zum Vorjahr in % | AM10: Anteil der Personen- gruppe an Insgesamt in % | AN10: Verände- rung zum Vorjahr in % | AO10: Anteil an Frauen und Männer insgesamt in % | AP10: Anteil der Personen- gruppe an Insgesamt in % | AQ10: Verände- rung zum Vorjahr in % | AR10: Anteil der Personen- gruppe an Insgesamt in % | AS10: Verände- rung zum Vorjahr in % | AT10: Anteil an Frauen und Männer insgesamt in % | AU10: Anteil der Personen- gruppe an Insgesamt in % | AV10: Verände- rung zum Vorjahr in %
C11: 1 | D11: 0 | E11: 2 | F11: 3 | G11: 0 | H11: 4 | I11: 5 | J11: 0 | K11: 6 | L11: 7 | AH11: 2 | AI11: 3 | AJ11: 4 | AK11: 6 | AL11: 7
C12: 1 | D12: 2 | E12: 3 | F12: 4 | G12: 5 | H12: 6 | I12: 7 | J12: 8 | K12: 9 | L12: 10 | M12: 1 | N12: 2 | O12: 3 | P12: 4 | Q12: 5 | R12: 6 | S12: 7 | T12: 8 | U12: 9 | V12: 10 | W12: 1 | X12: 2 | Y12: 3 | Z12: 4 | AA12: 5 | AB12: 6 | AC12: 7 | AD12: 8 | AE12: 9 | AF12: 10 | AH12: 3 | AI12: 4 | AJ12: 6 | AK12: 9 | AL12: 10 | AM12: 3 | AN12: 4 | AO12: 6 | AP12: 9 | AQ12: 10 | AR12: 3 | AS12: 4 | AT12: 6 | AU12: 9 | AV12: 10
C13: 1Insgesamt | D13: 2Insgesamt | G13: 5Insgesamt | I13: 7Insgesamt | J13: 8Insgesamt | M13: 1SGB III | N13: 2SGB III | Q13: 5SGB III | S13: 7SGB III | T13: 8SGB III | W13: 1SGB II | X13: 2SGB II | AA13: 5SGB II | AC13: 7SGB II | AD13: 8SGB II | AH13: 3Insgesamt | AI13: 4Insgesamt | AJ13: 6Insgesamt | AK13: 9Insgesamt | AL13: 10Insgesamt | AM13: 3SGB III | AN13: 4SGB III | AO13: 6SGB III | AP13: 9SGB III | AQ13: 10SGB III | AR13: 3SGB II | AS13: 4SGB II | AT13: 6SGB II | AU13: 9SGB II | AV13: 10SGB II
B14: ID für Auswahl | C14: Insgesamt | M14: SGB III | W14: SGB II
C15: 1224064 | D15: 992681 | G15: 2812986 | I15: 1588912 | J15: 1243285 | M15: 494400 | N15: 336810 | Q15: 1172340 | S15: 677930 | T15: 435503 | W15: 729664 | X15: 655871 | AA15: 1640646 | AC15: 910982 | AD15: 807782 | AH15: 76.91003693 | AI15: 23.30889782 | AJ15: 43.51475621 | AK15: 79.83435338 | AL15: 27.79949891 | AM15: 84.77555227 | AN15: 46.78899083 | AO15: 42.17206612 | AP15: 88.27213542 | AQ15: 55.66597704 | AR15: 72.36102764 | AS15: 11.25114542 | AT15: 44.47418883 | AU15: 74.5325262 | AV15: 12.77572414
C16: 147385 | D16: 178750 | G16: 314668 | I16: 167281 | J16: 211481 | M16: 8213 | N16: 17949 | Q16: 19569 | S16: 11355 | T16: 23279 | W16: 139172 | X16: 160801 | AA16: 295099 | AC16: 155926 | AD16: 188202 | AH16: 9.260451898 | AI16: -17.54685315 | AJ16: 46.83825492 | AK16: 8.404978041 | AL16: -20.90022272 | AM16: 1.408296138 | AN16: -54.24257619 | AO16: 41.96944146 | AP16: 1.478515625 | AQ16: -51.22213153 | AR16: 13.80173469 | AS16: -13.450787 | AT16: 47.1611222 | AU16: 12.75717707 | AV16: -17.14965835
C17: 62487 | D17: 95542 | G17: 140923 | I17: 78434 | J17: 124761 | M17: 8206 | N17: 17944 | Q17: 19554 | S17: 11347 | T17: 23275 | W17: 54281 | X17: 77598 | AA17: 121369 | AC17: 67087 | AD17: 101486 | AH17: 3.926165198 | AI17: -34.59734986 | AJ17: 44.34123599 | AK17: 3.940890165 | AL17: -37.13259753 | AM17: 1.407095837 | AN17: -54.26883638 | AO17: 41.96583819 | AP17: 1.477473958 | AQ17: -51.2481203 | AR17: 5.383065276 | AS17: -30.04845486 | AT17: 44.72394104 | AU17: 5.48876222 | AV17: -33.89531561
C18: 84898 | D18: 83208 | G18: 173745 | I18: 88847 | J18: 86720 | M18: 7 | N18: 5 | Q18: 15 | S18: 8 | T18: 4 | W18: 84891 | X18: 83203 | AA18: 173730 | AC18: 88839 | AD18: 86716 | AH18: 5.3342867 | AI18: 2.031054706 | AJ18: 48.86356442 | AK18: 4.464087876 | AL18: 2.452721402 | AM18: 0.001200301104 | AN18: 40 | AO18: 46.66666667 | AP18: 0.001041666667 | AQ18: 100 | AR18: 8.418669412 | AS18: 2.028773001 | AT18: 48.8637541 | AU18: 7.268414848 | AV18: 2.448221781
C19: 1371449 | D19: 1171431 | G19: 3127654 | I19: 1756193 | J19: 1454766 | M19: 502613 | N19: 354759 | Q19: 1191909 | S19: 689285 | T19: 458782 | W19: 868836 | X19: 816672 | AA19: 1935745 | AC19: 1066908 | AD19: 995984 | AH19: 86.17048882 | AI19: 17.07467192 | AJ19: 43.84912781 | AK19: 88.23933142 | AL19: 20.71996459 | AM19: 86.18384841 | AN19: 41.67730769 | AO19: 42.16873939 | AP19: 89.75065104 | AQ19: 50.24238091 | AR19: 86.16276233 | AS19: 6.387386858 | AT19: 44.88380443 | AU19: 87.28970326 | AV19: 7.120997928
C20: 211552 | D20: 256564 | G20: 434999 | I20: 223446 | J20: 285766 | M20: 72473 | N20: 76438 | Q20: 141150 | S20: 68676 | T20: 73254 | W20: 139079 | X20: 180126 | AA20: 293849 | AC20: 154770 | AD20: 212512 | AH20: 13.29217437 | AI20: -17.54416052 | AJ20: 48.63275548 | AK20: 11.22696973 | AL20: -21.80805274 | AM20: 12.42706027 | AN20: -5.18721055 | AO20: 51.34466879 | AP20: 8.9421875 | AQ20: -6.249488083 | AR20: 13.79251185 | AS20: -22.78793733 | AT20: 47.33009131 | AU20: 12.66259825 | AV20: -27.17117151
C21: 77109 | D21: 84844 | G21: 154793 | I21: 77684 | J21: 86448 | M21: 55077 | N21: 57390 | Q21: 105357 | S21: 50280 | T21: 52726 | W21: 22032 | X21: 27454 | AA21: 49436 | AC21: 27404 | AD21: 33722 | AH21: 4.844890494 | AI21: -9.116731884 | AJ21: 49.81426809 | AK21: 3.903206665 | AL21: -10.13788636 | AM21: 9.444140559 | AN21: -4.030318871 | AO21: 52.27654546 | AP21: 6.546875 | AQ21: -4.639077495 | AR21: 2.184920951 | AS21: -19.74939899 | AT21: 44.56671252 | AU21: 2.24207432 | AV21: -18.73554356
C22: 20948 | D22: 30233 | G22: 52540 | I22: 31592 | J22: 46650 | M22: 0 | N22: 0 | Q22: 0 | S22: 0 | T22: 0 | W22: 20948 | X22: 30233 | AA22: 52540 | AC22: 31592 | AD22: 46650 | AH22: 1.316198707 | AI22: -30.71147422 | AJ22: 39.8705748 | AK22: 1.587329501 | AL22: -32.27867095 | AM22: 0 | AN22: X | AO22: X | AP22: 0 | AQ22: X | AR22: 2.077420302 | AS22: -30.71147422 | AT22: 39.8705748 | AU22: 2.584717994 | AV22: -32.27867095
C23: 77456 | D23: 100288 | G23: 142633 | I23: 65176 | J23: 102566 | M23: 9299 | N23: 8783 | Q23: 18240 | S23: 8940 | T23: 9198 | W23: 68157 | X23: 91505 | AA23: 124393 | AC23: 56236 | AD23: 93368 | AH23: 4.866693098 | AI23: -22.76643267 | AJ23: 54.30440361 | AK23: 3.274746377 | AL23: -36.45457559 | AM23: 1.594514281 | AN23: 5.874985768 | AO23: 50.98135965 | AP23: 1.1640625 | AQ23: -2.804957599 | AR23: 6.759152927 | AS23: -25.5155456 | AT23: 54.79166834 | AU23: 4.600981296 | AV23: -39.76951418
C24: 478 | D24: 1796 | G24: 1327 | I24: 849 | J24: 3455 | M24: 0 | N24: 0 | Q24: 0 | S24: 0 | T24: 0 | W24: 478 | X24: 1796 | AA24: 1327 | AC24: 849 | AD24: 3455 | AH24: 0.03003355842 | AI24: -73.38530067 | AJ24: 36.02110023 | AK24: 0.04265772178 | AL24: -75.42691751 | AM24: 0 | AN24: X | AO24: X | AP24: 0 | AQ24: X | AR24: 0.04740342296 | AS24: -73.38530067 | AT24: 36.02110023 | AU24: 0.06946143254 | AV24: -75.42691751
C25: 540 | D25: 636 | G25: 1599 | I25: 1059 | J25: 1221 | M25: 0 | N25: 0 | Q25: 0 | S25: 0 | T25: 0 | W25: 540 | X25: 636 | AA25: 1599 | AC25: 1059 | AD25: 1221 | AH25: 0.03392912457 | AI25: -15.09433962 | AJ25: 33.77110694 | AK25: 0.05320910172 | AL25: -13.26781327 | AM25: 0 | AN25: X | AO25: X | AP25: 0 | AQ25: X | AR25: 0.0535519841 | AS25: -15.09433962 | AT25: 33.77110694 | AU25: 0.08664270561 | AV25: -13.26781327
C26: 14776 | D26: 6030 | G26: 39209 | I26: 24433 | J26: 10317 | M26: 0 | N26: 0 | Q26: 0 | S26: 0 | T26: 0 | W26: 14776 | X26: 6030 | AA26: 39209 | AC26: 24433 | AD26: 10317 | AH26: 0.928401379 | AI26: 145.0414594 | AJ26: 37.68522533 | AK26: 1.227627934 | AL26: 136.8227198 | AM26: 0 | AN26: X | AO26: X | AP26: 0 | AQ26: X | AR26: 1.465340958 | AS26: 145.0414594 | AT26: 37.68522533 | AU26: 1.999000214 | AV26: 136.8227198
C27: 20245 | D27: 32737 | G27: 42898 | I27: 22653 | J27: 35109 | M27: 8097 | N27: 10265 | Q27: 17553 | S27: 9456 | T27: 11330 | W27: 12148 | X27: 22472 | AA27: 25345 | AC27: 13197 | AD27: 23779 | AH27: 1.272028013 | AI27: -38.1586584 | AJ27: 47.19334235 | AK27: 1.138192428 | AL27: -35.47808254 | AM27: 1.388405434 | AN27: -21.12031174 | AO27: 46.12886686 | AP27: 1.23125 | AQ27: -16.54015887 | AR27: 1.204721302 | AS27: -45.94161623 | AT27: 47.9305583 | AU27: 1.079720289 | AV27: -44.50145086
C28: 1583001 | D28: 1427995 | G28: 3562653 | I28: 1979639 | J28: 1740532 | M28: 575086 | N28: 431197 | Q28: 1333059 | S28: 757961 | T28: 532036 | W28: 1007915 | X28: 996798 | AA28: 2229594 | AC28: 1221678 | AD28: 1208496 | AH28: 99.4626632 | AI28: 10.85479991 | AJ28: 44.4332075 | AK28: 99.46630115 | AL28: 13.73758138 | AM28: 98.61090868 | AN28: 33.3696663 | AO28: 43.14032612 | AP28: 98.69283854 | AQ28: 42.46423174 | AR28: 99.95527418 | AS28: 1.115271098 | AT28: 45.20621243 | AU28: 99.95230151 | AV28: 1.090777297
C29: 8552 | D29: 9534 | G29: 19174 | I29: 10622 | J29: 11998 | M29: 8101 | N29: 9035 | Q29: 18140 | S29: 10039 | T29: 11344 | W29: 451 | X29: 499 | AA29: 1034 | AC29: 583 | AD29: 654 | AH29: 0.5373368025 | AI29: -10.29997902 | AJ29: 44.6020653 | AK29: 0.5336988465 | AL29: -11.4685781 | AM29: 1.389091321 | AN29: -10.33757609 | AO29: 44.65821389 | AP29: 1.307161458 | AQ29: -11.5038787 | AR29: 0.04472582376 | AS29: -9.619238477 | AT29: 43.61702128 | AU29: 0.04769848666 | AV29: -10.85626911
C30: 8101 | D30: 9035 | G30: 18140 | I30: 10039 | J30: 11344 | M30: 8101 | N30: 9035 | Q30: 18140 | S30: 10039 | T30: 11344 | W30: 0 | X30: 0 | AA30: 0 | AC30: 0 | AD30: 0 | AH30: 0.5089997003 | AI30: -10.33757609 | AJ30: 44.65821389 | AK30: 0.504406206 | AL30: -11.5038787 | AM30: 1.389091321 | AN30: -10.33757609 | AO30: 44.65821389 | AP30: 1.307161458 | AQ30: -11.5038787 | AR30: 0 | AS30: X | AT30: X | AU30: 0 | AV30: X
C31: 451 | D31: 499 | G31: 1034 | I31: 583 | J31: 654 | M31: 0 | N31: 0 | Q31: 0 | S31: 0 | T31: 0 | W31: 451 | X31: 499 | AA31: 1034 | AC31: 583 | AD31: 654 | AH31: 0.02833710219 | AI31: -9.619238477 | AJ31: 43.61702128 | AK31: 0.02929264051 | AL31: -10.85626911 | AM31: 0 | AN31: X | AO31: X | AP31: 0 | AQ31: X | AR31: 0.04472582376 | AS31: -9.619238477 | AT31: 43.61702128 | AU31: 0.04769848666 | AV31: -10.85626911
C32: 1591553 | D32: 1437529 | G32: 3581827 | I32: 1990261 | J32: 1752530 | M32: 583187 | N32: 440232 | Q32: 1351199 | S32: 768000 | T32: 543380 | W32: 1008366 | X32: 997297 | AA32: 2230628 | AC32: 1222261 | AD32: 1209150 | AH32: 100 | AI32: 10.71449689 | AJ32: 44.43411142 | AK32: 100 | AL32: 13.56501743 | AM32: 100 | AN32: 32.47265078 | AO32: 43.16070394 | AP32: 100 | AQ32: 41.33755383 | AR32: 100 | AS32: 1.10990006 | AT32: 45.20547577 | AU32: 100 | AV32: 1.084315428
B35: DiaDatRoh
B36: UB-Quote
E38: Dezember 2012 | F38: Dezember 2013 | G38: Dezember 2014 | H38: Dezember 2015 | I38: Dezember 2016 | J38: Dezember 2017 | K38: Dezember 2018 | L38: Dezember 2019
B39: Weiblich | C39: Insgesamt | D39: WeiblichInsgesamt | E39: 8.752541966 | F39: 8.609440439 | G39: 8.238572669 | H39: 7.69177487 | I39: 7.388395103 | J39: 7.058704144 | K39: 6.612813538 | L39: 6.558666701
B40: Männlich | C40: Insgesamt | D40: MännlichInsgesamt | E40: 8.965782004 | F40: 8.77299871 | G40: 8.39003776 | H40: 8.04298085 | I40: 8.352062027 | J40: 7.770891702 | K40: 7.084638058 | L40: 7.089968488
B41: Weiblich | C41: SGB III | D41: WeiblichSGB III | E41: 2.607374464 | F41: 2.579046335 | G41: 2.415168715 | H41: 2.161498502 | I41: 2.046943611 | J41: 2.11574259 | K41: 2.056930584 | L41: 2.11581272
B42: Männlich | C42: SGB III | D42: MännlichSGB III | E42: 2.823596089 | F42: 2.760858732 | G42: 2.552993797 | H42: 2.3243004 | I42: 2.405976463 | J42: 2.298451923 | K42: 2.206933543 | L42: 2.414169828
B43: Weiblich | C43: SGB II | D43: WeiblichSGB II | E43: 6.145167503 | F43: 6.030394104 | G43: 5.823403954 | H43: 5.530276368 | I43: 5.341451493 | J43: 4.942961553 | K43: 4.555882954 | L43: 4.442853981
B44: Männlich | C44: SGB II | D44: MännlichSGB II | E44: 6.142185915 | F44: 6.012139978 | G44: 5.837043964 | H44: 5.71868045 | I44: 5.946085563 | J44: 5.472439778 | K44: 4.877704515 | L44: 4.67579866
C57: Frauen | D57: Frauen | E57: Frauen | F57: Frauen | G57: Männer | H57: Männer | I57: Männer
B58: Tab | C58: Bestand | D58: Anteil der Merkmals- gruppe an Insgesamt in % | E58: Verände- rung zum Vorjahr in % | F58: Anteil an allen Personen in % | G58: Bestand | H58: Anteil der Merkmals- gruppe an Insgesamt in % | I58: Verände- rung zum Vorjahr in %
C59: 1 | D59: 2 | E59: 3 | F59: 4 | G59: 5 | H59: 6 | I59: 7
B60: =Auswahl!$A$2 -> Insgesamt | C60: 1 | D60: 3 | E60: 4 | F60: 6 | G60: 7 | H60: 9 | I60: 10 | J60: Spalte in der Tabelle Tab/DS für Insgesamt
C61: =MATCH(C60&$B$60,$C$13:$AV$13,0) -> 1 | D61: =MATCH(D60&$B$60,$C$13:$AV$13,0) -> 32 | E61: 33 | F61: 34 | G61: 7 | H61: 35 | I61: 36 | J61: Berechnete Spalte in Tab/DS (Merkmalsspalte+Auftreten der Merkmalsauswahl
A62: 1 | B62: Arbeitslose | C62: =INDEX($C$15:$AV$32,$A62,C$61) -> 1224064 | D62: 76.91003693 | E62: 23.30889782 | F62: 43.51475621 | G62: 1588912 | H62: 79.83435338 | I62: 27.79949891
A63: 2 | B63: Personen, die im weiteren Sinne arbeitslos sind | C63: 147385 | D63: 9.260451898 | E63: -17.54685315 | F63: 46.83825492 | G63: 167281 | H63: 8.404978041 | I63: -20.90022272
A64: 3 | B64: Aktivierung und berufliche Eingliederung | C64: 62487 | D64: 3.926165198 | E64: -34.59734986 | F64: 44.34123599 | G64: 78434 | H64: 3.940890165 | I64: -37.13259753
A65: 4 | B65: Sonderregelungen für Ältere (§ 53a Abs. 2 SGB II) | C65: 84898 | D65: 5.3342867 | E65: 2.031054706 | F65: 48.86356442 | G65: 88847 | H65: 4.464087876 | I65: 2.452721402
A66: 5 | B66: Arbeitslosigkeit im weiteren Sinne | C66: 1371449 | D66: 86.17048882 | E66: 17.07467192 | F66: 43.84912781 | G66: 1756193 | H66: 88.23933142 | I66: 20.71996459
A67: 6 | B67: Personen, die nahe am Arbeitslosenstatus sind | C67: 211552 | D67: 13.29217437 | E67: -17.54416052 | F67: 48.63275548 | G67: 223446 | H67: 11.22696973 | I67: -21.80805274
A68: 7 | B68: Berufliche Weiterbildung (einschl. Förderung behinderter Menschen) | C68: 77109 | D68: 4.844890494 | E68: -9.116731884 | F68: 49.81426809 | G68: 77684 | H68: 3.903206665 | I68: -10.13788636
A69: 8 | B69: Arbeitsgelegenheiten | C69: 20948 | D69: 1.316198707 | E69: -30.71147422 | F69: 39.8705748 | G69: 31592 | H69: 1.587329501 | I69: -32.27867095
A70: 9 | B70: Fremdförderung | C70: 77456 | D70: 4.866693098 | E70: -22.76643267 | F70: 54.30440361 | G70: 65176 | H70: 3.274746377 | I70: -36.45457559
A71: 10 | B71: Förderung von Arbeitsverhältnissen | C71: 478 | D71: 0.03003355842 | E71: -73.38530067 | F71: 36.02110023 | G71: 849 | H71: 0.04265772178 | I71: -75.42691751
A72: 11 | B72: Beschäftigungszuschuss | C72: =INDEX($C$15:$AV$32,$A72,C$61) -> 540 | D72: 0.03392912457 | E72: -15.09433962 | F72: 33.77110694 | G72: 1059 | H72: 0.05320910172 | I72: -13.26781327
A73: 12 | B73: Bundesprogramm ''Soziale Teilhabe am Arbeitsmarkt'' | C73: 14776 | D73: 0.928401379 | E73: 145.0414594 | F73: 37.68522533 | G73: 24433 | H73: 1.227627934 | I73: 136.8227198
A74: 13 | B74: kurzfristige Arbeitsunfähigkeit | C74: 20245 | D74: 1.272028013 | E74: -38.1586584 | F74: 47.19334235 | G74: 22653 | H74: 1.138192428 | I74: -35.47808254
A75: 14 | B75: Unterbeschäftigung im engeren Sinne | C75: 1583001 | D75: 99.4626632 | E75: 10.85479991 | F75: 44.4332075 | G75: 1979639 | H75: 99.46630115 | I75: 13.73758138
A76: 15 | B76: #Personen, die fern vom Arbeitslosenstatus sind | C76: 8552 | D76: 0.5373368025 | E76: -10.29997902 | F76: 44.6020653 | G76: 10622 | H76: 0.5336988465 | I76: -11.4685781
A77: 16 | B77: Gründungszuschuss | C77: 8101 | D77: 0.5089997003 | E77: -10.33757609 | F77: 44.65821389 | G77: 10039 | H77: 0.504406206 | I77: -11.5038787
A78: 17 | B78: Einstiegsgeld - Variante: Selbständigkeit | C78: 451 | D78: 0.02833710219 | E78: -9.619238477 | F78: 43.61702128 | G78: 583 | H78: 0.02929264051 | I78: -10.85626911
A79: 18 | B79: Unterbeschäftigung (ohne Kurzarbeit) | C79: 1591553 | D79: 100 | E79: 10.71449689 | F79: 44.43411142 | G79: 1990261 | H79: 100 | I79: 13.56501743
B83: Diadat
E84: 2 | F84: 3 | G84: 4 | H84: 5 | I84: 6 | J84: 7 | K84: 8 | L84: 9
E85: =E38 -> Dezember 2012 | F85: Dezember 2013 | G85: Dezember 2014 | H85: Dezember 2015 | I85: Dezember 2016 | J85: Dezember 2017 | K85: Dezember 2018 | L85: Dezember 2019
B86: Weiblich | C86: =$B$60 -> Insgesamt | D86: =B86&C86 -> WeiblichInsgesamt | E86: =VLOOKUP($D86,$D$39:$L$44,E$84,0) -> 8.752541966 | F86: 8.609440439 | G86: 8.238572669 | H86: 7.69177487 | I86: 7.388395103 | J86: 7.058704144 | K86: 6.612813538 | L86: 6.558666701
B87: Männlich | C87: =$B$60 -> Insgesamt | D87: =B87&C87 -> MännlichInsgesamt | E87: 8.965782004 | F87: 8.77299871 | G87: 8.39003776 | H87: 8.04298085 | I87: 8.352062027 | J87: 7.770891702 | K87: 7.084638058 | L87: 7.089968488
B90: Datenbeschriftung
E91: =TEXT(E85,"MMM JJJJ") -> Dez 2012 | F91: Dez 2013 | G91: Dez 2014 | H91: Dez 2015 | I91: Dez 2016 | J91: Dez 2017 | K91: Dez 2018 | L91: Dez 2019
B92: Weiblich | C92: =$B$60 -> Insgesamt | D92: =B92&C92 -> WeiblichInsgesamt | E92: =IFERROR(E86,"") -> 8.752541966 | F92: 8.609440439 | G92: 8.238572669 | H92: 7.69177487 | I92: 7.388395103 | J92: 7.058704144 | K92: 6.612813538 | L92: 6.558666701
B93: Männlich | C93: =$B$60 -> Insgesamt | D93: =B93&C93 -> MännlichInsgesamt | E93: 8.965782004 | F93: 8.77299871 | G93: 8.39003776 | H93: 8.04298085 | I93: 8.352062027 | J93: 7.770891702 | K93: 7.084638058 | L93: 7.089968488

Sheet Tab 2
I1: Frauen und Männer
A3: =Auswahl!F4 -> 2 Unterbeschäftigung
A4: ='Tab 2_roh'!D4 -> Deutschland (Gebietsstand: August 2020)
A5: ='Tab 2_roh'!D5 -> Mai 2020, Daten mit einer Wartezeit von 3 Monaten
A23: In der Unterbeschäftigung werden zusätzlich zu den registrierten Arbeitslosen auch die Personen abgebildet, die nicht als arbeitslos gelten, weil sie Teilnehmer an einer Maßnahme der Arbeitsmarktpolitik oder in einem arbeitsmarktbedingten Sonderstatus sind. Diese Personen stehen für Menschen, denen ein reguläres Beschäftigungsverhältnis fehlt. Es wird unterstellt, dass ohne den Einsatz dieser Maßnahmen bzw. ohne die Zuweisung zu einem Sonderstatus die Arbeitslosigkeit entsprechend höher ausfallen würde. Mit dem Konzept der Unterbeschäftigung werden Defizite an regulärer Beschäftigung umfassender erfasst und realwirtschaftlich bedingte Einflüsse auf den Arbeitsmarkt besser erkannt. Zudem können die direkten Auswirkungen der Arbeitsmarktpolitik auf die Arbeitslosenzahlen nachvollzogen werden.
A33: Komponenten der Unterbeschäftigung | C33: Frauen | G33: Männer
C34: Bestand | D34: Anteil der Kompo- nenten in % | E34: Verände- rung zum Vorjahr in % | F34: Anteil Frauen an allen Personen in % | G34: Bestand | H34: Anteil der Kompo- nenten in % | I34: Verände- rung zum Vorjahr in %
C35: 1 | D35: 2 | E35: 3 | F35: 4 | G35: 5 | H35: 6 | I35: 7
A36: Arbeitslose | C36: ='Tab 2_roh'!C62 -> 1224064 | D36: ='Tab 2_roh'!D62 -> 76.91003693 | E36: ='Tab 2_roh'!E62 -> 23.30889782 | F36: ='Tab 2_roh'!F62 -> 43.51475621 | G36: ='Tab 2_roh'!G62 -> 1588912 | H36: ='Tab 2_roh'!H62 -> 79.83435338 | I36: ='Tab 2_roh'!I62 -> 27.79949891
A37: + Personen, die im weiteren Sinne arbeitslos sind | C37: ='Tab 2_roh'!C63 -> 147385 | D37: ='Tab 2_roh'!D63 -> 9.260451898 | E37: ='Tab 2_roh'!E63 -> -17.54685315 | F37: ='Tab 2_roh'!F63 -> 46.83825492 | G37: ='Tab 2_roh'!G63 -> 167281 | H37: ='Tab 2_roh'!H63 -> 8.404978041 | I37: ='Tab 2_roh'!I63 -> -20.90022272
B38: Aktivierung und berufliche Eingliederung | C38: ='Tab 2_roh'!C64 -> 62487 | D38: ='Tab 2_roh'!D64 -> 3.926165198 | E38: ='Tab 2_roh'!E64 -> -34.59734986 | F38: ='Tab 2_roh'!F64 -> 44.34123599 | G38: ='Tab 2_roh'!G64 -> 78434 | H38: ='Tab 2_roh'!H64 -> 3.940890165 | I38: ='Tab 2_roh'!I64 -> -37.13259753
B39: Sonderregelung für Ältere (§ 53a Abs. 2 SGB II) | C39: ='Tab 2_roh'!C65 -> 84898 | D39: ='Tab 2_roh'!D65 -> 5.3342867 | E39: ='Tab 2_roh'!E65 -> 2.031054706 | F39: ='Tab 2_roh'!F65 -> 48.86356442 | G39: ='Tab 2_roh'!G65 -> 88847 | H39: ='Tab 2_roh'!H65 -> 4.464087876 | I39: ='Tab 2_roh'!I65 -> 2.452721402
A40: = Arbeitslosigkeit im weiteren Sinne | C40: ='Tab 2_roh'!C66 -> 1371449 | D40: ='Tab 2_roh'!D66 -> 86.17048882 | E40: ='Tab 2_roh'!E66 -> 17.07467192 | F40: ='Tab 2_roh'!F66 -> 43.84912781 | G40: ='Tab 2_roh'!G66 -> 1756193 | H40: ='Tab 2_roh'!H66 -> 88.23933142 | I40: ='Tab 2_roh'!I66 -> 20.71996459
A41: + Personen, die nahe am Arbeitslosenstatus sind | C41: ='Tab 2_roh'!C67 -> 211552 | D41: ='Tab 2_roh'!D67 -> 13.29217437 | E41: ='Tab 2_roh'!E67 -> -17.54416052 | F41: ='Tab 2_roh'!F67 -> 48.63275548 | G41: ='Tab 2_roh'!G67 -> 223446 | H41: ='Tab 2_roh'!H67 -> 11.22696973 | I41: ='Tab 2_roh'!I67 -> -21.80805274
B42: Berufliche Weiterbildung inkl. Förd. behindert. Menschen | C42: ='Tab 2_roh'!C68 -> 77109 | D42: ='Tab 2_roh'!D68 -> 4.844890494 | E42: ='Tab 2_roh'!E68 -> -9.116731884 | F42: ='Tab 2_roh'!F68 -> 49.81426809 | G42: ='Tab 2_roh'!G68 -> 77684 | H42: ='Tab 2_roh'!H68 -> 3.903206665 | I42: ='Tab 2_roh'!I68 -> -10.13788636
B43: Arbeitsgelegenheiten | C43: ='Tab 2_roh'!C69 -> 20948 | D43: ='Tab 2_roh'!D69 -> 1.316198707 | E43: ='Tab 2_roh'!E69 -> -30.71147422 | F43: ='Tab 2_roh'!F69 -> 39.8705748 | G43: ='Tab 2_roh'!G69 -> 31592 | H43: ='Tab 2_roh'!H69 -> 1.587329501 | I43: ='Tab 2_roh'!I69 -> -32.27867095
B44: Fremdförderung | C44: ='Tab 2_roh'!C70 -> 77456 | D44: ='Tab 2_roh'!D70 -> 4.866693098 | E44: ='Tab 2_roh'!E70 -> -22.76643267 | F44: ='Tab 2_roh'!F70 -> 54.30440361 | G44: ='Tab 2_roh'!G70 -> 65176 | H44: ='Tab 2_roh'!H70 -> 3.274746377 | I44: ='Tab 2_roh'!I70 -> -36.45457559
B45: Förderung von Arbeitsverhältnissen | C45: ='Tab 2_roh'!C71 -> 478 | D45: ='Tab 2_roh'!D71 -> 0.03003355842 | E45: ='Tab 2_roh'!E71 -> -73.38530067 | F45: ='Tab 2_roh'!F71 -> 36.02110023 | G45: ='Tab 2_roh'!G71 -> 849 | H45: ='Tab 2_roh'!H71 -> 0.04265772178 | I45: ='Tab 2_roh'!I71 -> -75.42691751
B46: Beschäftigungszuschuss | C46: ='Tab 2_roh'!C72 -> 540 | D46: ='Tab 2_roh'!D72 -> 0.03392912457 | E46: ='Tab 2_roh'!E72 -> -15.09433962 | F46: ='Tab 2_roh'!F72 -> 33.77110694 | G46: ='Tab 2_roh'!G72 -> 1059 | H46: ='Tab 2_roh'!H72 -> 0.05320910172 | I46: ='Tab 2_roh'!I72 -> -13.26781327
B47: Teilhabe am Arbeitsmarkt 1) | C47: ='Tab 2_roh'!C73 -> 14776 | D47: ='Tab 2_roh'!D73 -> 0.928401379 | E47: ='Tab 2_roh'!E73 -> 145.0414594 | F47: ='Tab 2_roh'!F73 -> 37.68522533 | G47: ='Tab 2_roh'!G73 -> 24433 | H47: ='Tab 2_roh'!H73 -> 1.227627934 | I47: ='Tab 2_roh'!I73 -> 136.8227198
B48: kurzfristige Arbeitsunfähigkeit | C48: ='Tab 2_roh'!C74 -> 20245 | D48: ='Tab 2_roh'!D74 -> 1.272028013 | E48: ='Tab 2_roh'!E74 -> -38.1586584 | F48: ='Tab 2_roh'!F74 -> 47.19334235 | G48: ='Tab 2_roh'!G74 -> 22653 | H48: ='Tab 2_roh'!H74 -> 1.138192428 | I48: ='Tab 2_roh'!I74 -> -35.47808254
A49: = Unterbeschäftigung im engeren Sinne | C49: ='Tab 2_roh'!C75 -> 1583001 | D49: ='Tab 2_roh'!D75 -> 99.4626632 | E49: ='Tab 2_roh'!E75 -> 10.85479991 | F49: ='Tab 2_roh'!F75 -> 44.4332075 | G49: ='Tab 2_roh'!G75 -> 1979639 | H49: ='Tab 2_roh'!H75 -> 99.46630115 | I49: ='Tab 2_roh'!I75 -> 13.73758138
A50: + Personen, die fern vom Arbeitslosenstatus sind | C50: ='Tab 2_roh'!C76 -> 8552 | D50: ='Tab 2_roh'!D76 -> 0.5373368025 | E50: ='Tab 2_roh'!E76 -> -10.29997902 | F50: ='Tab 2_roh'!F76 -> 44.6020653 | G50: ='Tab 2_roh'!G76 -> 10622 | H50: ='Tab 2_roh'!H76 -> 0.5336988465 | I50: ='Tab 2_roh'!I76 -> -11.4685781
B51: Gründungszuschuss | C51: ='Tab 2_roh'!C77 -> 8101 | D51: ='Tab 2_roh'!D77 -> 0.5089997003 | E51: ='Tab 2_roh'!E77 -> -10.33757609 | F51: ='Tab 2_roh'!F77 -> 44.65821389 | G51: ='Tab 2_roh'!G77 -> 10039 | H51: ='Tab 2_roh'!H77 -> 0.504406206 | I51: ='Tab 2_roh'!I77 -> -11.5038787
B52: Einstiegsgeld - Variante: Selbständigkeit | C52: ='Tab 2_roh'!C78 -> 451 | D52: ='Tab 2_roh'!D78 -> 0.02833710219 | E52: ='Tab 2_roh'!E78 -> -9.619238477 | F52: ='Tab 2_roh'!F78 -> 43.61702128 | G52: ='Tab 2_roh'!G78 -> 583 | H52: ='Tab 2_roh'!H78 -> 0.02929264051 | I52: ='Tab 2_roh'!I78 -> -10.85626911
A53: = Unterbeschäftigung (ohne Kurzarbeit) | C53: ='Tab 2_roh'!C79 -> 1591553 | D53: ='Tab 2_roh'!D79 -> 100 | E53: ='Tab 2_roh'!E79 -> 10.71449689 | F53: ='Tab 2_roh'!F79 -> 44.43411142 | G53: ='Tab 2_roh'!G79 -> 1990261 | H53: ='Tab 2_roh'!H79 -> 100 | I53: ='Tab 2_roh'!I79 -> 13.56501743
I54: © Statistik der Bundesagentur für Arbeit
A56: Weiterführende Hinweise zur Unterbeschäftigung
A57: 1) Die Förderungen zur Teilhabe am Arbeitsmarkt sind insgesamt bundesweit übererfasst. Für einzelne Jobcenter fällt die Übererfassung deutlich höher aus. Näheres siehe unter folgendem Link:
A58: Förderung zur Teilhabe am Arbeitsmarkt - Übererfassung

Sheet Tab 3
J1: Frauen und Männer
A3: 3 Gemeldete Arbeitsstellen
A4: Deutschland (Gebietsstand: August 2020)
A5: August 2020
A23: Die Statistik umfasst alle der Bundesagentur für Arbeit gemeldeten Arbeitsstellen. Daher bilden die gemeldeten Arbeitsstellen nur einen Teil des gesamtwirtschaftlichen Stellenangebots ab. Die bei den zugelassenen kommunalen Trägern gemeldeten Arbeitsstellen sind nicht enthalten. Es werden nur die Stellen des 1. Arbeitsmarktes mit einer vorgesehenen Beschäftigungsdauer von mehr als sieben Kalendertagen berücksichtigt.
A33: Merkmale | E33: Bestand | G33: Zugang
E34: Insgesamt | F34: Verände- rung zum Vorjahr in % | G34: Insgesamt | H34: Verände- rung zum Vorjahr in % | I34: gleitende Jahres- summe | J34: Verände- rung zum Vorjahr in %
E35: 1 | F35: 2 | G35: 3 | H35: 4 | I35: 5 | J35: 6
A36: Gemeldete Arbeitsstellen | E36: 584221 | F36: -26.50559365 | G36: 133779 | H36: -25.36653129 | I36: 1664322 | J36: -24.25269763
A37: dar.: | B37: sozialvers.pflichtige Beschäftigung | E37: 570058 | F37: -26.15446396 | G37: 130293 | H37: -25.10777472 | I37: 1617253 | J37: -23.98548007
B38: nach Arbeitszeit
B39: dar.: | C39: Vollzeit oder Teilzeit | E39: 119681 | F39: -20.4465538 | G39: 26573 | H39: -15.09138548 | I39: 320681 | J39: -16.53540233
C40: Teilzeit | E40: 70999 | F40: -23.26672215 | G40: 21592 | H40: -17.74789532 | I40: 249261 | J40: -18.98693448
B41: nach Anforderungsniveau
B42: dar.: | C42: Helfer 1) | E42: 103623 | F42: X | G42: 26937 | H42: X | I42: 306481 | J42: X
C43: Fachkraft 1) | E43: 363873 | F43: X | G43: 77259 | H43: X | I43: 995122 | J43: X
C44: Spezialist/Experte | E44: 102557 | F44: -23.03010289 | G44: 26088 | H44: -18.7061793 | I44: 315631 | J44: -18.18707296
B45: nach ausgewählten Merkmalen
B46: dar.: | C46: MINT-Berufe 2) | E46: 164846 | F46: -29.38460089 | G46: 32619 | H46: -29.80028408 | I46: 418790 | J46: -27.65212764
C47: Arbeitnehmerüberlassung (ANÜ) 3) | E47: 161609 | F47: -33.39172224 | G47: 34209 | H47: -39.82691597 | I47: 455217 | J47: -33.22150211
B48: geringfügige Arbeitsstellen | E48: 10180 | F48: -41.59160021 | G48: 2952 | H48: -28.66118898 | I48: 39815 | J48: -27.47723133
J49: © Statistik der Bundesagentur für Arbeit
A51: 1) Ab Januar 2020 gehören einige Berufspositionen nach der KldB 2010 zum Anforderungsniveau „Helfer“, die bisher dem Anforderungsniveau „Fachkraft“ zugeordnet waren. Nähere Informationen finden Sie in der Kurzinfo unter https://statistik.arbeitsagentur.de/DE/Statischer-Content/Statistiken/Fachstatistiken/Arbeitsuche-Arbeitslosigkeit-Unterbeschaeftigung/Generische-Publikationen/Kurzinfo-DKZ-Aenderungen.pdf
A52: 2) Weiterführende Hinweise zu Berufsaggregaten
A53: 3) Die Arbeitnehmerüberlassung wird aus den Wirtschaftgruppen (WZ 2008) 782 und 783 ermittelt.

Sheet Tab 4
J1: Frauen und Männer
A3: 4 Beschäftigte am Arbeitsort
A4: Deutschland (Gebietsstand: August 2020)
A5: Februar 2020, Daten mit einer Wartezeit von 6 Monaten
A23: Beschäftigte Frauen und Männer haben unterschiedliche Schwerpunkte der Berufstätigkeiten: Während Frauen deutlich häufiger in kaufmännischen und personenbezogenen Dienstleistungsberufen arbeiten, üben Männer öfter Produktions- und MINT-Berufe aus. Auch bei der Arbeitszeit gibt es große Unterschiede: Frauen sind häufiger teilzeitbeschäftigt als Männer. Die Daten der Beschäftigungsstatistik stammen aus dem Meldeverfahren der Arbeitgeberinnen und Arbeitgeber an die Sozialversicherung. Der betrachtete Stichtag ist jeweils der Monatsletzte.
A32: Merkmale | D32: Frauen | H32: Männer
D33: Bestand | E33: Anteil an Merkmals- gruppe in % | F33: Verände- rung zum Vorjahr in % | G33: Anteil Frauen an allen Personen in % | H33: Bestand | I33: Anteil an Merkmals- gruppe in % | J33: Verände- rung zum Vorjahr in %
D34: 1 | E34: 2 | F34: 3 | G34: 4 | H34: 5 | I34: 6 | J34: 7
A35: Beschäftigte insgesamt 1) | D35: 18376832 | E35: 100 | F35: 0.7599807547 | G35: 48.07576037 | H35: 19847903 | I35: 100 | J35: 0.9091579271
A36: dar.: | B36: sozialversicherungspflichtig Beschäftigte | D36: 15592976 | E36: 84.8512736 | F36: 1.432138393 | G36: 46.37489369 | H36: 18030769 | I36: 90.84470536 | J36: 1.146848639
B37: nach Alter
B38: dav.: | C38: unter 25 Jahre | D38: 1501590 | E38: 8.171103703 | F38: 0.9688800489 | G38: 43.83176733 | H38: 1924213 | I38: 9.694792442 | J38: 1.075568737
C39: 25 bis unter 55 Jahre | D39: 10673541 | E39: 58.08150719 | F39: 0.1765224901 | G39: 46.40177738 | H39: 12328899 | I39: 62.11688459 | J39: -0.07369918865
C40: 55 Jahre und älter | D40: 3417845 | E40: 18.59866271 | F40: 5.786125913 | G40: 47.49974359 | H40: 3777657 | I40: 19.03302833 | J40: 5.385792214
B41: nach Arbeitszeit
B42: dar.: | C42: Vollzeit | D42: 7995542 | E42: 43.50881588 | F42: 0.2255831555 | G42: 33.45153049 | H42: 15906330 | I42: 80.14111113 | J42: 0.5286969157
C43: Teilzeit | D43: 7597434 | E43: 41.34245772 | F43: 2.733693293 | G43: 78.1478425 | H43: 2124439 | I43: 10.70359423 | J43: 6.028342247
B44: nach Anforderungsniveau
B45: dav.: | C45: Helfer | D45: 2509185 | E45: 13.65406725 | F45: 1.064258274 | G45: 48.83843553 | H45: 2628541 | I45: 13.24341922 | J45: 0.6857710644
C46: Fachkraft | D46: 9460996 | E46: 51.48328069 | F46: 0.8963257555 | G46: 48.6959857 | H46: 9967702 | I46: 50.22042883 | J46: 0.7394688078
C47: Spezialist/Experte | D47: 3547327 | E47: 19.3032564 | F47: 3.197519066 | G47: 39.98167122 | H47: 5325056 | I47: 26.8293129 | J47: 2.196481561
C48: ohne Angabe | D48: 75468 | E48: 0.4106692601 | F48: -0.2946189111 | G48: 40.80718944 | H48: 109470 | I48: 0.5515444125 | J48: -0.9760377751
B49: nach ausgewählten Merkmalen
B50: dar.: | C50: Ausländer | D50: 1571266 | E50: 8.550255017 | F50: 7.307635309 | G50: 36.90311507 | H50: 2686548 | I50: 13.53567679 | J50: 6.246250403
C51: MINT-Berufe2) | D51: 1301260 | E51: 7.080981096 | F51: 2.481025897 | G51: 15.94926084 | H51: 6857488 | I51: 34.550189 | J51: 0.7084186952
C52: Arbeitnehmerüberlassung (ANÜ) 3) | D52: 195563 | E52: 1.064182336 | F52: -7.624324529 | G52: 28.61982722 | H52: 487750 | I52: 2.457438451 | J52: -10.76067944
A53: geringfügig Beschäftigte | D53: 4432782 | E53: 24.12157874 | F53: -0.7244137234 | G53: 58.40870421 | H53: 3156467 | I53: 15.90327704 | J53: 0.829065396
A54: dar: | B54: geringfügig entlohnte Beschäftigte | D54: 4352658 | E54: 23.68557323 | F54: -0.7120869094 | G54: 58.66737366 | H54: 3066556 | I54: 15.45027704 | J54: 0.9385318114
B55: dav.: | C55: ausschließlich | D55: 2718223 | E55: 14.79157561 | F55: -2.867079966 | G55: 60.93398441 | H55: 1742708 | I55: 8.780312963 | J55: -1.269491637
C56: im Nebenjob | D56: 1634435 | E56: 8.893997616 | F56: 3.091739844 | G56: 55.24944706 | H56: 1323848 | I56: 6.669964076 | J56: 4.000307952
J57: © Statistik der Bundesagentur für Arbeit
A59: 1) Summe der sozialversicherungspflichtig und ausschließlich geringfügig Beschäftigten
A60: 2) Weiterführende Hinweise zu Berufsaggregaten
A61: 3) Die Arbeitnehmerüberlassung wird aus den Wirtschaftgruppen (WZ 2008) 782 und 783 ermittelt.

Sheet Tab 5
J1: Frauen und Männer
A3: 5 Gemeldete Bewerber für Berufsausbildungsstellen und gemeldete Berufsausbildungsstellen
A4: Deutschland (Gebietsstand: August 2020)
A5: August 2020, Berichtsjahr 2019/20
A23: Als Bewerber für Berufsausbildungsstellen zählen Personen, die im Berichtsjahr eine individuelle Vermittlung in eine Berufsausbildungsstelle in einem anerkannten Ausbildungsberuf nach dem Berufsausbildungsgesetz (BBiG) wünschen und deren Eignung dafür geklärt wurde. Als Berufsausbildungsstellen zählen alle im Berichtsjahr zu besetzenden Berufsausbildungsstellen für anerkannte Ausbildungsberufe nach dem BBiG. Das Berichtsjahr beginnt jeweils am 1. Oktober und endet am 30. September des Folgejahres. Sowohl die Bewerber als auch die Berufsausbildungsstellen, die während des Berichtsjahres gemeldet werden, werden dabei kumuliert ausgewiesen. Die Ausbildungsmarktstatistik der Bundesagentur für Arbeit bildet zeitnah den Großteil des Ausbildungsmarktgeschehens ab. Es handelt sich aber trotzdem nur um einen Marktausschnitt. Laut Bundesinstitut für Berufsbildung (BIBB) melden drei von vier Betrieben der BA ihre Ausbildungsstellen. Rund 70 Prozent der ausbildungsinteressierten Jugendlichen sind als Bewerber gemeldet.
A38: Merkmale | D38: Frauen | H38: Männer
D39: Anzahl | E39: Anteil an Merkmals- gruppe in % | F39: Verände- rung zum Vorjahr in % | G39: Anteil Frauen an allen Personen in % | H39: Anzahl | I39: Anteil an Merkmals- gruppe in % | J39: Verände- rung zum Vorjahr in %
D40: 1 | E40: 2 | F40: 3 | G40: 4 | H40: 5 | I40: 6 | J40: 7
A41: seit Beginn des Berichtsjahres | D41: 176753 | E41: 100 | F41: -8.591952091 | G41: 38.63082021 | H41: 280773 | I41: 100 | J41: -7.528216816
A42: dar.: | B42: zum 30.09. unversorgt | D42: 35860 | E42: 20.28819879 | F42: 10.23331591 | G42: 35.94987469 | H42: 63888 | I42: 22.75432467 | J42: 10.83584886
A43: dar.: | B43: unter 20 Jahre | D43: 118239 | E43: 66.89504563 | F43: -9.86163522 | G43: 39.11546172 | H43: 184030 | I43: 65.5440516 | J43: -7.808453188
B44: unter 25 Jahre | D44: 165305 | E44: 93.52316509 | F44: -8.864116262 | G44: 38.84675852 | H44: 260209 | I44: 92.67593394 | J44: -7.50525197
B45: MINT-Berufe | D45: 17439 | E45: 9.866310614 | F45: -9.360706861 | G45: 11.47808574 | H45: 134486 | I45: 47.89848027 | J45: -7.179338524
A46: dar.: | B46: Deutsche | D46: 148888 | E46: 84.23506249 | F46: -9.204115111 | G46: 39.40264064 | H46: 228958 | I46: 81.54559021 | J46: -6.556527346
B47: Ausländer | D47: 27411 | E47: 15.5080819 | F47: -5.456489497 | G47: 34.95855121 | H47: 50998 | I47: 18.1634274 | J47: -11.76663956
J48: © Statistik der Bundesagentur für Arbeit
A50: Hinweis Grafik Die Angaben zu den Berufsausbildungsstellen enthalten keine Daten von den zugelassenen kommunalen Trägern (zkT). Nach Einschätzung der Statistik der BA dürften bei den zkT nur wenige ungeförderte Ausbildungsstellen nach dem Berufsausbildungsgesetz (BBiG) gemeldet sein, die nicht gleichzeitig bei den Agenturen für Arbeit oder den gemeinsamen Einrichtungen (gE) erfasst sind.

Sheet Tab 6
J1: Frauen und Männer
A3: 6 Leistungsbeziehende von Arbeitslosengeld und Nichtleistungsberechtigte im Rechtskreis SGB III
A4: Deutschland (Gebietsstand: August 2020)
A5: Statistik über Arbeitslosengeld nach dem SGB III, Juni 2020, Daten mit einer Wartezeit von 2 Monaten
A6: Arbeitslosenstatistik April 2020, Daten mit einer Wartezeit von 4 Monaten
A23: Arbeitslosigkeit und Leistungsbezug gehen nicht immer miteinander einher. So gibt es Arbeitslose, die im Rechtskreis SGB III geführt werden, aber keine Leistungen aus der Arbeitslosenversicherung erhalten (sogenannte Nichtleistungsberechtigte). Daneben können auch Leistungsbeziehende von Arbeitslosengeld zusätzlich zum Arbeitslosengeld nach dem SGB III auch Arbeitslosengeld II beziehen. Dabei handelt es sich um Leistungsbeziehende, deren Arbeitslosengeld nicht ausreicht, um den Bedarf zum Lebensunterhalt zu decken. Das Arbeitslosengeld wird um die entsprechenden Ansprüche auf Leistungen nach dem SGB II „aufgestockt“.
A34: Merkmale | D34: Frauen | H34: Männer
D35: Bestand | E35: Anteil an Merkmals- gruppe in % | F35: Verände- rung zum Vorjahr in % | G35: Anteil Frauen an allen Personen in % | H35: Bestand | I35: Anteil an Merkmals- gruppe in % | J35: Verände- rung zum Vorjahr in %
D36: 1 | E36: 2 | F36: 3 | G36: 4 | H36: 5 | I36: 6 | J36: 7
A37: Berichtsmonat Juni 2020
A38: Leistungsbeziehende von Arbeitslosengeld | D38: 478286 | E38: 100 | F38: 38.97360499 | G38: 43.08432632 | H38: 631791 | I38: 100 | J38: 51.37033071
A39: dav.: | B39: bei Arbeitslosigkeit | D39: 449794 | E39: 94.04289484 | F39: 43.87652939 | G39: 42.99024152 | H39: 596438 | I39: 94.40432042 | J39: 56.3316305
B40: bei Weiterbildung | D40: 28492 | E40: 5.957105163 | F40: -9.6381339 | G40: 44.62613163 | H40: 35353 | I40: 5.595679584 | J40: -1.413831567
A41: Berichtsmonat April 2020
A42: Arbeitslose Nichtleistungsberechtigte | D42: 86867 | E42: 100 | F42: 32.9624074 | G42: 42.573515 | H42: 117166 | I42: 100 | J42: 39.38874811
A43: nach der Dauer der Arbeitslosigkeit
A44: dav.: | B44: unter 1 Jahr | D44: 70496 | E44: 81.15394799 | F44: 40.89900666 | G44: 41.27569631 | H44: 100290 | I44: 85.59650411 | J44: 46.3382604
B45: 1 Jahr und länger | D45: 16371 | E45: 18.84605201 | F45: 7.006993921 | G45: 49.24053298 | H45: 16876 | I45: 14.40349589 | J45: 8.709095594
B46: dar.: | C46: 2 Jahre und länger | D46: 7295 | E46: 8.397895634 | F46: -6.197762633 | G46: 48.00605422 | H46: 7901 | I46: 6.74342386 | J46: -4.125712899
J47: © Statistik der Bundesagentur für Arbeit
A49: Die Statistik über Arbeitslosengeld nach dem SGB III wurde zum 31.03.2020 revidiert. Weitere Informationen finden Sie unter folgenden Link:
A50: https://statistik.arbeitsagentur.de/Navigation/Statistik/Grundlagen/Methodik-Qualitaet/Methodenberichte/Leistungsstatistik/Methodenberichte-Leistungsstatistik-Nav.html

Sheet Tab 7.1
J1: Frauen und Männer
A3: 7.1 Grundsicherung für Arbeitsuchende
A4: Deutschland (Gebietsstand: August 2020)
A5: Mai 2020, Daten mit einer Wartezeit von 3 Monaten
A23: Regelleistungsberechtigte (RLB) sind Personen mit Anspruch auf Gesamtregelleistung (Arbeitslosengeld II oder Sozialgeld). Dazu zählen Personen, die Anspruch auf Regelbedarf, Mehrbedarf, Kosten der Unterkunft oder den Zuschlag nach Bezug von Arbeitslosengeld haben. RLB sind untergliedert in erwerbsfähige Leistungsberechtigte (ELB) und nicht erwerbsfähige Leistungsberechtigte (NEF). Als ELB gelten Personen, die das 15. Lebensjahr vollendet und die Regelaltersgrenze noch nicht erreicht haben, die erwerbsfähig und hilfebedürftig sind und ihren gewöhnlichen Aufenthalt in der Bundesrepublik Deutschland haben. Innerhalb der Grundsicherungsstatistik SGB II werden Personen nur dann als ELB ausgewiesen, wenn sie Arbeitslosengeld II beziehen.
A35: Merkmale | D35: Frauen | H35: Männer
D36: Bestand | E36: Anteil an Merkmals- gruppe in % | F36: Verände- rung zum Vorjahr in % | G36: Anteil Frauen an allen Personen in % | H36: Bestand | I36: Anteil an Merkmals- gruppe in % | J36: Verände- rung zum Vorjahr in %
D37: 1 | E37: 2 | F37: 3 | G37: 4 | H37: 5 | I37: 6 | J37: 7
A38: Bestand
A39: Regelleistungsberechtigte (RLB) | D39: 2782175 | E39: X | F39: 0.6362254602 | G39: 49.73955419 | H39: 2811174 | I39: X | J39: 0.8963462781
A40: Erwerbsfähige Leistungsberechtigte (ELB) | D40: 2020598 | E40: 100 | F40: 1.489699082 | G40: 50.24890716 | H40: 2000536 | I40: 100 | J40: 1.987873832
A41: dav.: | B41: unter 25 Jahre | D41: 352398 | E41: 17.44028253 | F41: -1.059322629 | G41: 49.3183698 | H41: 362129 | I41: 18.10159877 | J41: -2.158500802
B42: 25 bis unter 55 Jahre | D42: 1313453 | E42: 65.00318223 | F42: 1.589289236 | G42: 51.13107464 | H42: 1255316 | I42: 62.74898327 | J42: 2.634718104
B43: 55 Jahre und älter | D43: 354747 | E43: 17.55653524 | F43: 3.76876117 | G43: 48.07879704 | H43: 383091 | I43: 19.14941796 | J43: 4.006418088
A44: dar.: | B44: Alleinerziehende | D44: 473364 | E44: 23.42692609 | F44: -2.956226526 | G44: 92.22083251 | H44: 39928 | I44: 1.995865108 | J44: 4.748412823
B45: Aufstocker 1)2) | D45: 44494 | E45: 2.202021382 | F45: 31.60011831 | G45: 42.86636415 | H45: 59302 | I45: 2.964305566 | J45: 42.21103118
B46: Langzeitleistungsbezieher (LZB) | D46: 1388929 | E46: 68.73851206 | F46: -4.043173798 | G46: 52.09942534 | H46: 1276967 | I46: 63.83124323 | J46: -5.033573767
A47: dar.: | B47: Deutsche | D47: 1269717 | E47: 62.83867449 | F47: 0.5739537779 | G47: 50.20110617 | H47: 1259511 | I47: 62.95867707 | J47: 2.480586221
B48: Ausländer | D48: 742477 | E48: 36.74540903 | F48: 3.081002659 | G48: 50.44251515 | H48: 729439 | I48: 36.46217814 | J48: 1.19263306
A49: Zugang in Regelleistungsbezug
A50: ELB | D50: 66873 | E50: 100 | F50: 49.55718567 | G50: 46.496089 | H50: 76949 | I50: 100 | J50: 39.11557862
A51: dar.: | B51: mit vorherigem Regelleistungsbezug innerhalb der letzten 3 Monate | D51: 12332 | E51: 18.44092534 | F51: -11.5097589 | G51: 44.51342766 | H51: 15372 | I51: 19.9768678 | J51: -12.6044687
B52: Vorbezug Arbeitslosengeld (ALG) nach SGB III innerhalb der letzten 3 Monate 1) | D52: 2650 | E52: 3.962735334 | F52: 43.3207139 | G52: 32.29737965 | H52: 5554 | I52: 7.217767612 | J52: 37.81637717
A53: Abgang aus Regelleistungsbezug
A54: ELB | D54: 38361 | E54: 100 | F54: -34.64906303 | G54: 46.64858818 | H54: 43871 | I54: 100 | J54: -40.81563824
A55: dar.: | B55: mit erneutem Regelleistungsbezug innerhalb der folgenden 3 Monate | D55: 7278 | E55: 18.97239384 | F55: -38.07538501 | G55: 46.00214904 | H55: 8543 | I55: 19.47300039 | J55: -42.89438503
J56: © Statistik der Bundesagentur für Arbeit
A58: 1) Aufgrund der Revision der Arbeitslosengeldstatistik können diese Daten von zuvor veröffentlichten Werten abweichen.
A59: 2) Aufstocker sind Leistungsbezieher, die gleichzeitig Arbeitslosengeld nach dem SGB III und Arbeitslosengeld II nach dem SGB II beziehen. Der Begriff des Aufstockers wurde im Zuge der Revision der Arbeitslosengeldstatistik in drei Punkten bezogen auf das SGB III revidiert. In der Folge steigt die Zahl der Aufstocker um rund 10% gegenüber früheren Veröffentlichungen an.
A60: a) Nunmehr werden auch Personen, deren Arbeitslosengeld im Beginnmonat des Grundsicherungsbezugs endet, als Aufstocker gezählt. Sie können nicht aus den Aufstockern herausgerechnet werden.
A61: b) Die Definition schließt nun Personen in einer Sperrzeit, die früher enthalten waren, aus.
A62: c) Des Weiteren werden Personen, die Arbeitslosengeld bei Weiterbildung beziehen als Aufstocker gezählt.

Sheet Tab 7.2
L1: Frauen und Männer
A3: 7.2 Erwerbstätige erwerbsfähige Leistungsberechtigte (ELB)
A4: Deutschland (Gebietsstand: August 2020)
A5: Mai 2020, Daten mit einer Wartezeit von 3 Monaten
A26: Erwerbstätige erwerbsfähige Leistungsberechtigte sind erwerbsfähige Regelleistungsberechtigte in der Grundsicherung für Arbeitsuchende, die Arbeitslosengeld II beziehen und zugleich über zu berücksichtigendes Einkommen aus abhängiger Erwerbstätigkeit (=Bruttoeinkommen) und/oder über verfügbares Einkommen aus selbständiger Tätigkeit (=Betriebsgewinn) verfügen.
A36: Merkmale | F36: Frauen | J36: Männer
F37: Bestand | G37: Anteil an Merkmals- gruppe in % | H37: Verände- rung zum Vorjahr in % | I37: Anteil Frauen an allen Personen in % | J37: Bestand | K37: Anteil an Merkmals- gruppe in % | L37: Verände- rung zum Vorjahr in %
F38: 1 | G38: 2 | H38: 3 | I38: 4 | J38: 5 | K38: 6 | L38: 7
A39: Erwerbsfähige Leistungsberechtigte (ELB) | F39: 2020598 | G39: X | H39: 1.489699082 | I39: 50.24890716 | J39: 2000536 | K39: X | L39: 1.987873832
A40: dar.: | B40: erwerbstätige ELB | F40: 460471.4917 | G40: 100 | H40: -11.09955021 | I40: 50.11697927 | J40: 458313.8334 | K40: 100 | L40: -10.84447498
B41: dar.: | C41: abhängig erwerbstätig | F41: 432984.2553 | G41: 94.03063232 | H41: -11.99054975 | I41: 51.02547137 | J41: 415572.6119 | K41: 90.6742458 | L41: -12.05598842
C42: dav.: | D42: bis 450 Euro | F42: 199745.26 | G42: 43.37842051 | H42: -12.95564236 | I42: 51.71013497 | J42: 186528.4529 | K42: 40.69884854 | L42: -11.99207058
D43: über 450 bis 1300 Euro 1) | F43: 190080.4996 | G43: 41.27953696 | H43: -12.31245848 | I43: 53.93729065 | J43: 162326.6427 | K43: 35.41822892 | L43: -10.04694511
D44: über 1.300 Euro | F44: 43158.49565 | G44: 9.37267484 | H44: -5.62164516 | I44: 39.27927024 | J44: 66717.51627 | K44: 14.55716834 | L44: -16.74893212
C45: selbständig erwerbstätig | F45: 30511.53452 | G45: 6.626150602 | H45: 3.711563654 | I45: 40.10564757 | J45: 45566.36565 | K45: 9.942175497 | L45: 1.691240145
L46: © Statistik der Bundesagentur für Arbeit
A48: 1) Zum 01.07.2019 wurde die bisherige Gleitzone von Erwerbseinkommen von >450<=850 Euro in den Übergangsbereich von >450<=1300 Euro umgewandelt ("RV-Leistungsverbesserungs- und Stabilisierungsgesetz" zur Anhebung der Obergrenze für Midijobs).

Sheet Tab 8.1_roh (hidden)
C1: TabSpalten | BI1: XXX
C2: Hilfsspalten
C3: Überschrift | D3: 8.1 Bestand in ausgewählten arbeitsmarktpolitischen Instrumenten
C4: Gebiet | D4: Deutschland (Gebietsstand: August 2020)
C5: BM | D5: Mai 2020, Daten mit einer Wartezeit von 3 Monaten
C9: Frauen | D9: Frauen | E9: Frauen | F9: Frauen | G9: Frauen | H9: Frauen | I9: Männer | J9: Männer | K9: Männer | L9: Männer | M9: Frauen | N9: Frauen | O9: Frauen | P9: Frauen | Q9: Frauen | R9: Frauen | S9: Männer | T9: Männer | U9: Männer | V9: Männer | W9: Frauen | X9: Frauen | Y9: Frauen | Z9: Frauen | AA9: Frauen | AB9: Frauen | AC9: Männer | AD9: Männer | AE9: Männer | AF9: Männer | AH9: Frauen | AI9: Frauen | AJ9: Frauen | AK9: Männer | AL9: Männer | AM9: Frauen | AN9: Frauen | AO9: Frauen | AP9: Männer | AQ9: Männer | AR9: Frauen | AS9: Frauen | AT9: Frauen | AU9: Männer | AV9: Männer
B10: Tab/DS | C10: Insgesamt | D10: VJM | E10: Anteil an Summe der Instrumente in % | F10: Verände- rung zum Vorjahr in % | G10: Gesamt | H10: Anteil an allen Personen in % | I10: Insgesamt | J10: VJM | K10: Anteil an Summe der Instrumente in % | L10: Verände- rung zum Vorjahr in % | M10: Insgesamt | N10: VJM | O10: Anteil an Summe der Instrumente in % | P10: Verände- rung zum Vorjahr in % | Q10: Gesamt | R10: Anteil an allen Personen in % | S10: Insgesamt | T10: VJM | U10: Anteil an Summe der Instrumente in % | V10: Verände- rung zum Vorjahr in % | W10: Insgesamt | X10: VJM | Y10: Anteil an Summe der Instrumente in % | Z10: Verände- rung zum Vorjahr in % | AA10: Gesamt | AB10: Anteil an allen Personen in % | AC10: Insgesamt | AD10: VJM | AE10: Anteil an Summe der Instrumente in % | AF10: Verände- rung zum Vorjahr in % | AH10: Anteil an Summe der Instrumente in % | AI10: Verände- rung zum Vorjahr in % | AJ10: Anteil an allen Personen in % | AK10: Anteil an Summe der Instrumente in % | AL10: Verände- rung zum Vorjahr in % | AM10: Anteil an Summe der Instrumente in % | AN10: Verände- rung zum Vorjahr in % | AO10: Anteil an allen Personen in % | AP10: Anteil an Summe der Instrumente in % | AQ10: Verände- rung zum Vorjahr in % | AR10: Anteil an Summe der Instrumente in % | AS10: Verände- rung zum Vorjahr in % | AT10: Anteil an allen Personen in % | AU10: Anteil an Summe der Instrumente in % | AV10: Verände- rung zum Vorjahr in %
C11: 1 | D11: 0 | E11: 2 | F11: 3 | G11: 0 | H11: 4 | I11: 5 | J11: 0 | K11: 6 | L11: 7 | M11: 1 | N11: 0 | O11: 2 | P11: 3 | Q11: 0 | R11: 4 | S11: 5 | T11: 0 | U11: 6 | V11: 7 | W11: 1 | X11: 0 | Y11: 2 | Z11: 3 | AA11: 0 | AB11: 4 | AC11: 5 | AD11: 0 | AE11: 6 | AF11: 7 | AH11: 2 | AI11: 3 | AJ11: 4 | AK11: 6 | AL11: 7 | AM11: 2 | AN11: 3 | AO11: 4 | AP11: 6 | AQ11: 7 | AR11: 2 | AS11: 3 | AT11: 4 | AU11: 6 | AV11: 7
C12: 1 | D12: 2 | E12: 3 | F12: 4 | G12: 5 | H12: 6 | I12: 7 | J12: 8 | K12: 9 | L12: 10 | M12: 1 | N12: 2 | O12: 3 | P12: 4 | Q12: 5 | R12: 6 | S12: 7 | T12: 8 | U12: 9 | V12: 10 | W12: 1 | X12: 2 | Y12: 3 | Z12: 4 | AA12: 5 | AB12: 6 | AC12: 7 | AD12: 8 | AE12: 9 | AF12: 10 | AH12: 3 | AI12: 4 | AJ12: 6 | AK12: 9 | AL12: 10 | AM12: 3 | AN12: 4 | AO12: 6 | AP12: 9 | AQ12: 10 | AR12: 3 | AS12: 4 | AT12: 6 | AU12: 9 | AV12: 10
C13: 1Insgesamt | D13: 2Insgesamt | G13: 5Insgesamt | I13: 7Insgesamt | J13: 8Insgesamt | M13: 1SGB III | N13: 2SGB III | Q13: 5SGB III | S13: 7SGB III | T13: 8SGB III | W13: 1SGB II | X13: 2SGB II | AA13: 5SGB II | AC13: 7SGB II | AD13: 8SGB II | AH13: 3Insgesamt | AI13: 4Insgesamt | AJ13: 6Insgesamt | AK13: 9Insgesamt | AL13: 10Insgesamt | AM13: 3SGB III | AN13: 4SGB III | AO13: 6SGB III | AP13: 9SGB III | AQ13: 10SGB III | AR13: 3SGB II | AS13: 4SGB II | AT13: 6SGB II | AU13: 9SGB II | AV13: 10SGB II
B15: ID für Auswahl | C15: Insgesamt | M15: SGB III | W15: SGB II
B16: Summe der Instrumente mit Einmalleistungen | C16: 317342 | D16: 373146 | G16: 758320 | I16: 440969 | J16: 525519 | M16: 171547 | N16: 193804 | Q16: 402511 | S16: 230957 | T16: 263334 | W16: 145794 | X16: 179341 | AA16: 355807 | AC16: 210011 | AD16: 262183 | AH16: 100 | AI16: -14.95500421 | AJ16: 41.84803249 | AK16: 100 | AL16: -16.08885692 | AM16: 100 | AN16: -11.48428309 | AO16: 42.61920792 | AP16: 100 | AQ16: -12.29503216 | AR16: 100 | AS16: -18.70570589 | AT16: 40.97558508 | AU16: 100 | AV16: -19.89907812
B17: Aktivierung und berufliche Eingliederung, darunter | C17: 63679 | D17: 96597 | G17: 144282 | I17: 80601 | J17: 126600 | M17: 8271 | N17: 18082 | Q17: 19749 | S17: 11477 | T17: 23545 | W17: 55408 | X17: 78515 | AA17: 124533 | AC17: 69124 | AD17: 103055 | AH17: 20.06636373 | AI17: -34.07766287 | AJ17: 44.13509655 | AK17: 18.27815561 | AL17: -36.33412322 | AM17: 4.821419203 | AN17: -54.2583785 | AO17: 41.88060155 | AP17: 4.969323294 | AQ17: -51.25504353 | AR17: 38.00430745 | AS17: -29.43004521 | AT17: 44.49262444 | AU17: 32.91446639 | AV17: -32.92513706
B18: Maßnahmen zur Aktivierung und beruflichen Eingliederung | C18: 62491 | D18: 95601 | G18: 140928 | I18: 78435 | J18: 124845 | M18: 8206 | N18: 17964 | Q18: 19554 | S18: 11347 | T18: 23289 | W18: 54285 | X18: 77637 | AA18: 121374 | AC18: 67088 | AD18: 101556 | AH18: 19.69200421 | AI18: -34.63352894 | AJ18: 44.34250114 | AK18: 17.78696462 | AL18: -37.17409588 | AM18: 4.783528712 | AN18: -54.31975061 | AO18: 41.96583819 | AP18: 4.91303576 | AQ18: -51.27742711 | AR18: 37.23404255 | AS18: -30.07844198 | AT18: 44.72539424 | AU18: 31.94499336 | AV18: -33.93989523
B19: Vermittlungsbudget | C19: X | D19: X | G19: X | I19: X | J19: X | M19: X | N19: X | Q19: X | S19: X | T19: X | W19: X | X19: X | AA19: X | AC19: X | AD19: X | AH19: X | AI19: X | AJ19: X | AK19: X | AL19: X | AM19: X | AN19: X | AO19: X | AP19: X | AQ19: X | AR19: X | AS19: X | AT19: X | AU19: X | AV19: X
B20: Berufswahl und Berufsausbildung, darunter | C20: 56603 | D20: 65887 | G20: 169254 | I20: 112646 | J20: 126475 | M20: 50198 | N20: 58820 | Q20: 148104 | S20: 97902 | T20: 110244 | W20: 6404 | X20: 7066 | AA20: 21148 | AC20: 14743 | AD20: 16229 | AH20: 17.8365927 | AI20: -14.09079181 | AJ20: 33.44263651 | AK20: 25.54510635 | AL20: -10.93417671 | AM20: 29.26195154 | AN20: -14.6582795 | AO20: 33.89375034 | AP20: 42.38970891 | AQ20: -11.19516708 | AR20: 4.392499005 | AS20: -9.368808378 | AT20: 30.28182334 | AU20: 7.020108471 | AV20: -9.156448333
B21: Berufseinstiegsbegleitung | C21: 20776 | D21: 25966 | G21: 50000 | I21: 29222 | J21: 36657 | M21: 20776 | N21: 25966 | Q21: 49999 | S21: 29221 | T21: 36656 | W21: X | X21: X | AA21: X | AC21: X | AD21: X | AH21: 6.546880022 | AI21: -19.98767619 | AJ21: 41.552 | AK21: 6.626769682 | AL21: -20.28261996 | AM21: 12.11096667 | AN21: -19.98767619 | AO21: 41.55283106 | AP21: 12.65213871 | AQ21: -20.28317329 | AR21: X | AS21: X | AT21: X | AU21: X | AV21: X
B22: Assistierte Ausbildung | C22: 2122 | D22: 2721 | G22: 9739 | I22: 7617 | J22: 8747 | M22: 1383 | N22: 1855 | Q22: 6859 | S22: 5476 | T22: 6317 | W22: 739 | X22: 866 | AA22: 2880 | AC22: 2141 | AD22: 2430 | AH22: 0.6686792167 | AI22: -22.01396545 | AJ22: 21.78868467 | AK22: 1.727332307 | AL22: -12.91871499 | AM22: 0.806193055 | AN22: -25.44474394 | AO22: 20.16328911 | AP22: 2.371004126 | AQ22: -13.31328162 | AR22: 0.5068795698 | AS22: -14.66512702 | AT22: 25.65972222 | AU22: 1.019470409 | AV22: -11.89300412
B23: Berufsvorbereitende Bildungsmaßnahmen | C23: 12576 | D23: 13627 | G23: 33688 | I23: 21112 | J23: 22479 | M23: 12575 | N23: 13626 | Q23: 33687 | S23: 21112 | T23: 22479 | W23: X | X23: X | AA23: X | AC23: X | AD23: X | AH23: 3.962916979 | AI23: -7.712629339 | AJ23: 37.33080028 | AK23: 4.787638133 | AL23: -6.081231372 | AM23: 7.330352615 | AN23: -7.713195362 | AO23: 37.32893995 | AP23: 9.141095529 | AQ23: -6.081231372 | AR23: X | AS23: X | AT23: X | AU23: X | AV23: X
B24: Einstiegsqualifizierung | C24: 2896 | D24: 3568 | G24: 10503 | I24: 7607 | J24: 10234 | M24: 1814 | N24: 2163 | Q24: 6564 | S24: 4750 | T24: 6016 | W24: 1082 | X24: 1405 | AA24: 3939 | AC24: 2857 | AD24: 4218 | AH24: 0.9125801186 | AI24: -18.83408072 | AJ24: 27.57307436 | AK24: 1.725064574 | AL24: -25.6693375 | AM24: 1.057436155 | AN24: -16.13499769 | AO24: 27.63558806 | AP24: 2.056659898 | AQ24: -21.04388298 | AR24: 0.7421430237 | AS24: -22.98932384 | AT24: 27.46890074 | AU24: 1.360404931 | AV24: -32.266477
B25: Ausbildungsbegleitende Hilfen | C25: 9767 | D25: 10508 | G25: 41730 | I25: 31961 | J25: 32343 | M25: 8592 | N25: 9444 | Q25: 35913 | S25: 27319 | T25: 28025 | W25: 1175 | X25: 1064 | AA25: 5817 | AC25: 4642 | AD25: 4317 | AH25: 3.077752078 | AI25: -7.05177008 | AJ25: 23.40522406 | AK25: 7.24790178 | AL25: -1.18109019 | AM25: 5.008539934 | AN25: -9.021601017 | AO25: 23.92448417 | AP25: 11.82860879 | AQ25: -2.519179304 | AR25: 0.805931657 | AS25: 10.43233083 | AT25: 20.19941551 | AU25: 2.21036041 | AV25: 7.528376187
B26: Berufliche Weiterbildung, darunter | C26: 91891 | D26: 95578 | G26: 174542 | I26: 82651 | J26: 89296 | M26: 70462 | N26: 69003 | Q26: 127130 | S26: 56668 | T26: 57197 | W26: 21429 | X26: 26575 | AA26: 47412 | AC26: 25983 | AD26: 32099 | AH26: 28.95645707 | AI26: -3.857582289 | AJ26: 52.64692739 | AK26: 18.74304089 | AL26: -7.441542734 | AM26: 41.07445773 | AN26: 2.114400823 | AO26: 55.42515535 | AP26: 24.53616907 | AQ26: -0.9248736822 | AR26: 14.69813573 | AS26: -19.36406397 | AT26: 45.19741838 | AU26: 12.37220907 | AV26: -19.05355307
B27: Förderung der beruflichen Weiterbildung | C27: 74541 | D27: 81923 | G27: 148500 | I27: 73959 | J27: 82392 | M27: 53371 | N27: 55563 | Q27: 101580 | S27: 48209 | T27: 50491 | W27: 21170 | X27: 26360 | AA27: 46920 | AC27: 25750 | AD27: 31901 | AH27: 23.48916941 | AI27: -9.01090048 | AJ27: 50.1959596 | AK27: 16.77192728 | AL27: -10.23521701 | AM27: 31.11159041 | AN27: -3.94507136 | AO27: 52.5408545 | AP27: 20.87358253 | AQ27: -4.519617358 | AR27: 14.52048781 | AS27: -19.68892261 | AT27: 45.11935209 | AU27: 12.26126251 | AV27: -19.28152722
B28: Arbeitsentgeltzuschuss zur beruflichen Weiterbildung Beschäftigter | C28: 17350 | D28: 13655 | G28: 26042 | I28: 8692 | J28: 6904 | M28: 17091 | N28: 13440 | Q28: 25550 | S28: 8459 | T28: 6706 | W28: 259 | X28: 215 | AA28: 492 | AC28: 233 | AD28: 198 | AH28: 5.467287658 | AI28: 27.0596851 | AJ28: 66.62314722 | AK28: 1.971113616 | AL28: 25.89803013 | AM28: 9.962867319 | AN28: 27.16517857 | AO28: 66.89236791 | AP28: 3.662586542 | AQ28: 26.14076946 | AR28: 0.1776479142 | AS28: 20.46511628 | AT28: 52.64227642 | AU28: 0.1109465695 | AV28: 17.67676768
B29: Aufnahme einer Erwerbstätigkeit, darunter | C29: 38791 | D29: 44771 | G29: 101972 | I29: 63181 | J29: 74520 | M29: 19413 | N29: 23522 | Q29: 47871 | S29: 28458 | T29: 33798 | W29: 19378 | X29: 21249 | AA29: 54101 | AC29: 34723 | AD29: 40722 | AH29: 12.22372078 | AI29: -13.35686047 | AJ29: 38.04083474 | AK29: 14.32776454 | AL29: -15.21604938 | AM29: 11.31643223 | AN29: -17.46875266 | AO29: 40.55273548 | AP29: 12.32177418 | AQ29: -15.79975146 | AR29: 13.2913563 | AS29: -8.805120241 | AT29: 35.8181919 | AU29: 16.53389584 | AV29: -14.73159472
B30: Förderung abhängiger Beschäftigung | C30: 29695 | D30: 34538 | G30: 81415 | I30: 51720 | J30: 61355 | M30: 11312 | N30: 14487 | Q30: 29731 | S30: 18419 | T30: 22454 | W30: 18383 | X30: 20051 | AA30: 51684 | AC30: 33301 | AD30: 38901 | AH30: 9.357412508 | AI30: -14.02223638 | AJ30: 36.4736228 | AK30: 11.72871562 | AL30: -15.70369163 | AM30: 6.594111235 | AN30: -21.91620073 | AO30: 38.04782887 | AP30: 7.975077612 | AQ30: -17.97007215 | AR30: 12.60888651 | AS30: -8.318787093 | AT30: 35.56806749 | AU30: 15.85678845 | AV30: -14.39551682
B31: Eingliederungszuschuss | C31: 14432 | D31: 19784 | G31: 41358 | I31: 26926 | J31: 36164 | M31: 9083 | N31: 12169 | Q31: 23722 | S31: 14639 | T31: 18377 | W31: 5349 | X31: 7615 | AA31: 17636 | AC31: 12287 | AD31: 17787 | AH31: 4.547774956 | AI31: -27.05216336 | AJ31: 34.89530442 | AK31: 6.106098161 | AL31: -25.54474063 | AM31: 5.294758871 | AN31: -25.35952009 | AO31: 38.28935166 | AP31: 6.338409314 | AQ31: -20.3406432 | AR31: 3.668875262 | AS31: -29.75705844 | AT31: 30.3300068 | AU31: 5.850645919 | AV31: -30.92145949
B32: Eingliederung von Langzeitarbeitslosen | C32: 3740 | D32: 925 | G32: 10451 | I32: 6711 | J32: 1907 | M32: X | N32: X | Q32: X | S32: X | T32: X | W32: 3740 | X32: 925 | AA32: 10451 | AC32: 6711 | AD32: 1907 | AH32: 1.178539242 | AI32: .X | AJ32: 35.78604918 | AK32: 1.521875687 | AL32: .X | AM32: X | AN32: X | AO32: X | AP32: X | AQ32: X | AR32: 2.565263317 | AS32: .X | AT32: 35.78604918 | AU32: 3.1955469 | AV32: .X
B33: Förderung der Selbständigkeit | C33: 9096 | D33: 10233 | G33: 20557 | I33: 11461 | J33: 13165 | M33: 8101 | N33: 9035 | Q33: 18140 | S33: 10039 | T33: 11344 | W33: 995 | X33: 1198 | AA33: 2417 | AC33: 1422 | AD33: 1821 | AH33: 2.866308273 | AI33: -11.11111111 | AJ33: 44.24770151 | AK33: 2.599048913 | AL33: -12.94341056 | AM33: 4.722320997 | AN33: -10.33757609 | AO33: 44.65821389 | AP33: 4.346696571 | AQ33: -11.5038787 | AR33: 0.6824697861 | AS33: -16.94490818 | AT33: 41.16673562 | AU33: 0.6771073896 | AV33: -21.91103789
B34: Beschäftigung schaffende Maßnahmen, darunter | C34: 36202 | D34: 38059 | G34: 93076 | I34: 56874 | J34: 60422 | M34: X | N34: X | Q34: X | S34: X | T34: X | W34: 36202 | X34: 38059 | AA34: 93076 | AC34: 56874 | AD34: 60422 | AH34: 11.40788172 | AI34: -4.879266402 | AJ34: 38.89509648 | AK34: 12.89750527 | AL34: -5.872033365 | AM34: X | AN34: X | AO34: X | AP34: X | AQ34: X | AR34: 24.83092583 | AS34: -4.879266402 | AT34: 38.89509648 | AU34: 27.08143859 | AV34: -5.872033365
B35: Arbeitsgelegenheiten | C35: 20948 | D35: 30233 | G35: 52540 | I35: 31592 | J35: 46650 | M35: X | N35: X | Q35: X | S35: X | T35: X | W35: 20948 | X35: 30233 | AA35: 52540 | AC35: 31592 | AD35: 46650 | AH35: 6.601080223 | AI35: -30.71147422 | AJ35: 39.8705748 | AK35: 7.164222428 | AL35: -32.27867095 | AM35: X | AN35: X | AO35: X | AP35: X | AQ35: X | AR35: 14.36821817 | AS35: -30.71147422 | AT35: 39.8705748 | AU35: 15.04302156 | AV35: -32.27867095
B36: Teilhabe am Arbeitsmarkt | C36: 14776 | D36: 6030 | G36: 39209 | I36: 24433 | J36: 10317 | M36: X | N36: X | Q36: X | S36: X | T36: X | W36: 14776 | X36: 6030 | AA36: 39209 | AC36: 24433 | AD36: 10317 | AH36: 4.656175357 | AI36: 145.0414594 | AJ36: 37.68522533 | AK36: 5.540752298 | AL36: 136.8227198 | AM36: X | AN36: X | AO36: X | AP36: X | AQ36: X | AR36: 10.1348478 | AS36: 145.0414594 | AT36: 37.68522533 | AU36: 11.6341525 | AV36: 136.8227198
B39: DiaDatRoh | AH39: DiaDatRohDS
E41: ID | G41: Mai 2018 | H41: 2018-06-01 | I41: 2018-07-01 | J41: 2018-08-01 | K41: 2018-09-01 | L41: Okt 2018 | M41: 2018-11-01 | N41: Dez 2018 | O41: 2019-01-01 | P41: 2019-02-01 | Q41: 2019-03-01 | R41: 2019-04-01 | S41: Mai 2019 | T41: 2019-06-01 | U41: 2019-07-01 | V41: 2019-08-01 | W41: 2019-09-01 | X41: Okt 2019 | Y41: 2019-11-01 | Z41: Dez 2019 | AA41: 2020-01-01 | AB41: 2020-02-01 | AC41: 2020-03-01 | AD41: 2020-04-01 | AE41: Mai 2020 | AJ41: Mai 2018 | AK41: 2018-06-01 | AL41: 2018-07-01 | AM41: 2018-08-01 | AN41: 2018-09-01 | AO41: Okt 2018 | AP41: 2018-11-01 | AQ41: Dez 2018 | AR41: 2019-01-01 | AS41: 2019-02-01 | AT41: 2019-03-01 | AU41: 2019-04-01 | AV41: Mai 2019 | AW41: 2019-06-01 | AX41: 2019-07-01 | AY41: 2019-08-01 | AZ41: 2019-09-01 | BA41: Okt 2019 | BB41: 2019-11-01 | BC41: Dez 2019 | BD41: 2020-01-01 | BE41: 2020-02-01 | BF41: 2020-03-01 | BG41: 2020-04-01 | BH41: Mai 2020
B42: Summe der Instrumente mit Einmalleistungen | C42: Insgesamt | D42: G | G42: 856652 | H42: 842747 | I42: 797036 | J42: 759255 | K42: 832727 | L42: 871147 | M42: 894821 | N42: 879389 | O42: 839908 | P42: 851756 | Q42: 870364 | R42: 892270 | S42: 898682 | T42: 889365 | U42: 847412 | V42: 807566 | W42: 865298 | X42: 902591 | Y42: 916075 | Z42: 897907 | AA42: 870957 | AB42: 876114 | AC42: 887139 | AD42: 801568 | AE42: 758320 | AH42: Insgesamt | AI42: G | AJ42: 856652 | AK42: 842747 | AL42: 797036 | AM42: 759255 | AN42: 832727 | AO42: 871147 | AP42: 894821 | AQ42: 879389 | AR42: 839908 | AS42: 851756 | AT42: 870364 | AU42: 892270 | AV42: 898682 | AW42: 889365 | AX42: 847412 | AY42: 807566 | AZ42: 865298 | BA42: 902591 | BB42: 916075 | BC42: 897907 | BD42: 870957 | BE42: 876114 | BF42: 887139 | BG42: 801568 | BH42: 758320
B43: Summe der Instrumente mit Einmalleistungen | C43: SGB III | D43: G | G43: 453350 | H43: 443381 | I43: 408466 | J43: 378164 | K43: 432161 | L43: 457287 | M43: 469572 | N43: 463236 | O43: 459945 | P43: 454257 | Q43: 457357 | R43: 460746 | S43: 457150 | T43: 444237 | U43: 411252 | V43: 378492 | W43: 421376 | X43: 449281 | Y43: 457308 | Z43: 450675 | AA43: 446610 | AB43: 440849 | AC43: 445538 | AD43: 415146 | AE43: 402511 | AH43: SGB III | AI43: G | AJ43: 453350 | AK43: 443381 | AL43: 408466 | AM43: 378164 | AN43: 432161 | AO43: 457287 | AP43: 469572 | AQ43: 463236 | AR43: 459945 | AS43: 454257 | AT43: 457357 | AU43: 460746 | AV43: 457150 | AW43: 444237 | AX43: 411252 | AY43: 378492 | AZ43: 421376 | BA43: 449281 | BB43: 457308 | BC43: 450675 | BD43: 446610 | BE43: 440849 | BF43: 445538 | BG43: 415146 | BH43: 402511
B44: Summe der Instrumente mit Einmalleistungen | C44: SGB II | D44: G | G44: 403301 | H44: 399365 | I44: 388569 | J44: 381090 | K44: 400566 | L44: 413860 | M44: 425248 | N44: 416152 | O44: 379962 | P44: 397497 | Q44: 413005 | R44: 431522 | S44: 441529 | T44: 445125 | U44: 436157 | V44: 429071 | W44: 443920 | X44: 453308 | Y44: 458765 | Z44: 447229 | AA44: 424345 | AB44: 435262 | AC44: 441599 | AD44: 386420 | AE44: 355807 | AH44: SGB II | AI44: G | AJ44: 403301 | AK44: 399365 | AL44: 388569 | AM44: 381090 | AN44: 400566 | AO44: 413860 | AP44: 425248 | AQ44: 416152 | AR44: 379962 | AS44: 397497 | AT44: 413005 | AU44: 431522 | AV44: 441529 | AW44: 445125 | AX44: 436157 | AY44: 429071 | AZ44: 443920 | BA44: 453308 | BB44: 458765 | BC44: 447229 | BD44: 424345 | BE44: 435262 | BF44: 441599 | BG44: 386420 | BH44: 355807
B45: Summe der Instrumente mit Einmalleistungen | C45: Insgesamt | D45: F | E45: Summe der Instrumente mit EinmalleistungenInsgesamtF | G45: 352813 | H45: 346776 | I45: 324200 | J45: 308223 | K45: 343718 | L45: 362564 | M45: 374344 | N45: 367539 | O45: 350777 | P45: 356647 | Q45: 363623 | R45: 371065 | S45: 373146 | T45: 367900 | U45: 347326 | V45: 329450 | W45: 359976 | X45: 378391 | Y45: 386029 | Z45: 378034 | AA45: 366015 | AB45: 369082 | AC45: 373206 | AD45: 336634 | AE45: 317342 | AH45: Summe der Instrumente mit EinmalleistungenInsgesamtF | AJ45: 352813 | AK45: 346776 | AL45: 324200 | AM45: 308223 | AN45: 343718 | AO45: 362564 | AP45: 374344 | AQ45: 367539 | AR45: 350777 | AS45: 356647 | AT45: 363623 | AU45: 371065 | AV45: 373146 | AW45: 367900 | AX45: 347326 | AY45: 329450 | AZ45: 359976 | BA45: 378391 | BB45: 386029 | BC45: 378034 | BD45: 366015 | BE45: 369082 | BF45: 373206 | BG45: 336634 | BH45: 317342
B46: Summe der Instrumente mit Einmalleistungen | C46: SGB III | D46: F | E46: Summe der Instrumente mit EinmalleistungenSGB IIIF | G46: 189561 | H46: 185786 | I46: 170777 | J46: 159151 | K46: 183342 | L46: 194221 | M46: 200130 | N46: 196728 | O46: 194351 | P46: 193072 | Q46: 194261 | R46: 195470 | S46: 193804 | T46: 188006 | U46: 173986 | V46: 160643 | W46: 180892 | X46: 193190 | Y46: 196540 | Z46: 192574 | AA46: 189687 | AB46: 188339 | AC46: 190434 | AD46: 177110 | AE46: 171547 | AH46: Summe der Instrumente mit EinmalleistungenSGB IIIF | AJ46: 189561 | AK46: 185786 | AL46: 170777 | AM46: 159151 | AN46: 183342 | AO46: 194221 | AP46: 200130 | AQ46: 196728 | AR46: 194351 | AS46: 193072 | AT46: 194261 | AU46: 195470 | AV46: 193804 | AW46: 188006 | AX46: 173986 | AY46: 160643 | AZ46: 180892 | BA46: 193190 | BB46: 196540 | BC46: 192574 | BD46: 189687 | BE46: 188339 | BF46: 190434 | BG46: 177110 | BH46: 171547
B47: Summe der Instrumente mit Einmalleistungen | C47: SGB II | D47: F | E47: Summe der Instrumente mit EinmalleistungenSGB IIF | G47: 163252 | H47: 160990 | I47: 153423 | J47: 149072 | K47: 160376 | L47: 168343 | M47: 174214 | N47: 170811 | O47: 156426 | P47: 163575 | Q47: 169362 | R47: 175595 | S47: 179341 | T47: 179893 | U47: 173340 | V47: 168807 | W47: 179084 | X47: 185200 | Y47: 189488 | Z47: 185459 | AA47: 176327 | AB47: 180742 | AC47: 182771 | AD47: 159523 | AE47: 145794 | AH47: Summe der Instrumente mit EinmalleistungenSGB IIF | AJ47: 163252 | AK47: 160990 | AL47: 153423 | AM47: 149072 | AN47: 160376 | AO47: 168343 | AP47: 174214 | AQ47: 170811 | AR47: 156426 | AS47: 163575 | AT47: 169362 | AU47: 175595 | AV47: 179341 | AW47: 179893 | AX47: 173340 | AY47: 168807 | AZ47: 179084 | BA47: 185200 | BB47: 189488 | BC47: 185459 | BD47: 176327 | BE47: 180742 | BF47: 182771 | BG47: 159523 | BH47: 145794
B48: Summe der Instrumente mit Einmalleistungen | C48: Insgesamt | D48: M | E48: Summe der Instrumente mit EinmalleistungenInsgesamtM | G48: 503833 | H48: 495961 | I48: 472828 | J48: 451024 | K48: 488994 | L48: 508572 | M48: 520468 | N48: 511836 | O48: 489118 | P48: 495094 | Q48: 506727 | R48: 521191 | S48: 525519 | T48: 521443 | U48: 500065 | V48: 478105 | W48: 505311 | X48: 524189 | Y48: 530033 | Z48: 519859 | AA48: 504930 | AB48: 507019 | AC48: 513921 | AD48: 464925 | AE48: 440969 | AH48: Summe der Instrumente mit EinmalleistungenInsgesamtM | AJ48: 503833 | AK48: 495961 | AL48: 472828 | AM48: 451024 | AN48: 488994 | AO48: 508572 | AP48: 520468 | AQ48: 511836 | AR48: 489118 | AS48: 495094 | AT48: 506727 | AU48: 521191 | AV48: 525519 | AW48: 521443 | AX48: 500065 | AY48: 478105 | AZ48: 505311 | BA48: 524189 | BB48: 530033 | BC48: 519859 | BD48: 504930 | BE48: 507019 | BF48: 513921 | BG48: 464925 | BH48: 440969
B49: Summe der Instrumente mit Einmalleistungen | C49: SGB III | D49: M | E49: Summe der Instrumente mit EinmalleistungenSGB IIIM | G49: 263785 | H49: 257591 | I49: 237684 | J49: 219007 | K49: 248807 | L49: 263059 | M49: 269436 | N49: 266495 | O49: 265582 | P49: 261172 | Q49: 263084 | R49: 265265 | S49: 263334 | T49: 256217 | U49: 237252 | V49: 217841 | W49: 240476 | X49: 256084 | Y49: 260760 | Z49: 258092 | AA49: 256914 | AB49: 252501 | AC49: 255098 | AD49: 238030 | AE49: 230957 | AH49: Summe der Instrumente mit EinmalleistungenSGB IIIM | AJ49: 263785 | AK49: 257591 | AL49: 237684 | AM49: 219007 | AN49: 248807 | AO49: 263059 | AP49: 269436 | AQ49: 266495 | AR49: 265582 | AS49: 261172 | AT49: 263084 | AU49: 265265 | AV49: 263334 | AW49: 256217 | AX49: 237252 | AY49: 217841 | AZ49: 240476 | BA49: 256084 | BB49: 260760 | BC49: 258092 | BD49: 256914 | BE49: 252501 | BF49: 255098 | BG49: 238030 | BH49: 230957
B50: Summe der Instrumente mit Einmalleistungen | C50: SGB II | D50: M | E50: Summe der Instrumente mit EinmalleistungenSGB IIM | G50: 240047 | H50: 238369 | I50: 235143 | J50: 232016 | K50: 240187 | L50: 245513 | M50: 251031 | N50: 245340 | O50: 223535 | P50: 233920 | Q50: 243641 | R50: 255924 | S50: 262183 | T50: 265224 | U50: 262810 | V50: 260261 | W50: 264833 | X50: 268104 | Y50: 269272 | Z50: 261765 | AA50: 248015 | AB50: 254516 | AC50: 258822 | AD50: 226894 | AE50: 210011 | AH50: Summe der Instrumente mit EinmalleistungenSGB IIM | AJ50: 240047 | AK50: 238369 | AL50: 235143 | AM50: 232016 | AN50: 240187 | AO50: 245513 | AP50: 251031 | AQ50: 245340 | AR50: 223535 | AS50: 233920 | AT50: 243641 | AU50: 255924 | AV50: 262183 | AW50: 265224 | AX50: 262810 | AY50: 260261 | AZ50: 264833 | BA50: 268104 | BB50: 269272 | BC50: 261765 | BD50: 248015 | BE50: 254516 | BF50: 258822 | BG50: 226894 | BH50: 210011
C54: Frauen | D54: Frauen | E54: Frauen | F54: Frauen | G54: Männer | H54: Männer | I54: Männer
B55: Tab | C55: Insgesamt | D55: Anteil der Merkmals- gruppe an Insgesamt in % | E55: Verände- rung zum Vorjahr in % | F55: Anteil an allen Personen in % | G55: Insgesamt | H55: Anteil der Merkmals- gruppe an Insgesamt in % | I55: Verände- rung zum Vorjahr in %
C56: 1 | D56: 2 | E56: 3 | F56: 4 | G56: 5 | H56: 6 | I56: 7
B57: =Auswahl!A2 -> Insgesamt | C57: 1 | D57: 3 | E57: 4 | F57: 6 | G57: 7 | H57: 9 | I57: 10 | J57: Spalte in der Tabelle Tab/DS für Insgesamt
C58: =MATCH(C57&$B$57,$C$13:$AV$13,0) -> 1 | D58: =MATCH(D57&$B$57,$C$13:$AV$13,0) -> 32 | E58: 33 | F58: 34 | G58: 7 | H58: 35 | I58: 36 | J58: Berechnete Spalte in Tab/DS (Merkmalsspalte+Auftreten der Merkmalsauswahl
A59: 1 | B59: Summe der Instrumente mit Einmalleistungen | C59: =INDEX($C$16:$AV$36,$A59,C$58) -> 317342 | D59: 100 | E59: -14.95500421 | F59: 41.84803249 | G59: 440969 | H59: 100 | I59: -16.08885692
A60: 2 | B60: Aktivierung und berufliche Eingliederung, darunter | C60: 63679 | D60: 20.06636373 | E60: -34.07766287 | F60: 44.13509655 | G60: 80601 | H60: 18.27815561 | I60: -36.33412322
A61: 3 | B61: Maßnahmen zur Aktivierung und beruflichen Eingliederung | C61: 62491 | D61: 19.69200421 | E61: -34.63352894 | F61: 44.34250114 | G61: 78435 | H61: 17.78696462 | I61: -37.17409588
A62: 4 | B62: Vermittlungsbudget | C62: X | D62: X | E62: X | F62: X | G62: X | H62: X | I62: X
A63: 5 | B63: Berufswahl und Berufsausbildung, darunter | C63: 56603 | D63: 17.8365927 | E63: -14.09079181 | F63: 33.44263651 | G63: 112646 | H63: 25.54510635 | I63: -10.93417671
A64: 6 | B64: Berufseinstiegsbegleitung | C64: 20776 | D64: 6.546880022 | E64: -19.98767619 | F64: 41.552 | G64: 29222 | H64: 6.626769682 | I64: -20.28261996
A65: 7 | B65: Assistierte Ausbildung | C65: 2122 | D65: 0.6686792167 | E65: -22.01396545 | F65: 21.78868467 | G65: 7617 | H65: 1.727332307 | I65: -12.91871499
A66: 8 | B66: Berufsvorbereitende Bildungsmaßnahmen | C66: 12576 | D66: 3.962916979 | E66: -7.712629339 | F66: 37.33080028 | G66: 21112 | H66: 4.787638133 | I66: -6.081231372
A67: 9 | B67: Einstiegsqualifizierung | C67: 2896 | D67: 0.9125801186 | E67: -18.83408072 | F67: 27.57307436 | G67: 7607 | H67: 1.725064574 | I67: -25.6693375
A68: 10 | B68: Ausbildungsbegleitende Hilfen | C68: 9767 | D68: 3.077752078 | E68: -7.05177008 | F68: 23.40522406 | G68: 31961 | H68: 7.24790178 | I68: -1.18109019
A69: 11 | B69: Berufliche Weiterbildung, darunter | C69: =INDEX($C$16:$AV$36,$A69,C$58) -> 91891 | D69: 28.95645707 | E69: -3.857582289 | F69: 52.64692739 | G69: 82651 | H69: 18.74304089 | I69: -7.441542734
A70: 12 | B70: Förderung der beruflichen Weiterbildung | C70: 74541 | D70: 23.48916941 | E70: -9.01090048 | F70: 50.1959596 | G70: 73959 | H70: 16.77192728 | I70: -10.23521701
A71: 13 | B71: Arbeitsentgeltzuschuss zur beruflichen Weiterbildung Beschäftigter | C71: 17350 | D71: 5.467287658 | E71: 27.0596851 | F71: 66.62314722 | G71: 8692 | H71: 1.971113616 | I71: 25.89803013
A72: 14 | B72: Aufnahme einer Erwerbstätigkeit, darunter | C72: 38791 | D72: 12.22372078 | E72: -13.35686047 | F72: 38.04083474 | G72: 63181 | H72: 14.32776454 | I72: -15.21604938
A73: 15 | B73: Förderung abhängiger Beschäftigung | C73: 29695 | D73: 9.357412508 | E73: -14.02223638 | F73: 36.4736228 | G73: 51720 | H73: 11.72871562 | I73: -15.70369163
A74: 16 | B74: Eingliederungszuschuss | C74: 14432 | D74: 4.547774956 | E74: -27.05216336 | F74: 34.89530442 | G74: 26926 | H74: 6.106098161 | I74: -25.54474063
A75: 17 | B75: Eingliederung von Langzeitarbeitslosen | C75: 3740 | D75: 1.178539242 | E75: .X | F75: 35.78604918 | G75: 6711 | H75: 1.521875687 | I75: .X
A76: 18 | B76: Förderung der Selbständigkeit | C76: 9096 | D76: 2.866308273 | E76: -11.11111111 | F76: 44.24770151 | G76: 11461 | H76: 2.599048913 | I76: -12.94341056
A77: 19 | B77: Beschäftigung schaffende Maßnahmen, darunter | C77: 36202 | D77: 11.40788172 | E77: -4.879266402 | F77: 38.89509648 | G77: 56874 | H77: 12.89750527 | I77: -5.872033365
A78: 20 | B78: Arbeitsgelegenheiten | C78: 20948 | D78: 6.601080223 | E78: -30.71147422 | F78: 39.8705748 | G78: 31592 | H78: 7.164222428 | I78: -32.27867095
A79: 21 | B79: Teilhabe am Arbeitsmarkt | C79: 14776 | D79: 4.656175357 | E79: 145.0414594 | F79: 37.68522533 | G79: 24433 | H79: 5.540752298 | I79: 136.8227198
B82: DiaDat
G83: 3 | H83: 4 | I83: 5 | J83: 6 | K83: 7 | L83: 8 | M83: 9 | N83: 10 | O83: 11 | P83: 12 | Q83: 13 | R83: 14 | S83: 15 | T83: 16 | U83: 17 | V83: 18 | W83: 19 | X83: 20 | Y83: 21 | Z83: 22 | AA83: 23 | AB83: 24 | AC83: 25 | AD83: 26 | AE83: 27
E84: ID | G84: =TEXT(G41,"MMM JJJJ") -> Mai 2018 | H84: Jun 2018 | I84: Jul 2018 | J84: Aug 2018 | K84: Sep 2018 | L84: Okt 2018 | M84: Nov 2018 | N84: Dez 2018 | O84: Jan 2019 | P84: Feb 2019 | Q84: Mrz 2019 | R84: Apr 2019 | S84: Mai 2019 | T84: Jun 2019 | U84: Jul 2019 | V84: Aug 2019 | W84: Sep 2019 | X84: Okt 2019 | Y84: Nov 2019 | Z84: Dez 2019 | AA84: Jan 2020 | AB84: Feb 2020 | AC84: Mrz 2020 | AD84: Apr 2020 | AE84: Mai 2020
B85: Summe der Instrumente mit Einmalleistungen | C85: =B57 -> Insgesamt | D85: F | E85: =B85&C85&D85 -> Summe der Instrumente mit EinmalleistungenInsgesamtF | F85: Frauen | G85: =VLOOKUP($E85,$E$45:$AE$50,G$83,0) -> 352813 | H85: 346776 | I85: 324200 | J85: 308223 | K85: 343718 | L85: 362564 | M85: 374344 | N85: 367539 | O85: 350777 | P85: 356647 | Q85: =VLOOKUP($E85,$E$45:$AE$50,Q$83,0) -> 363623 | R85: 371065 | S85: 373146 | T85: 367900 | U85: 347326 | V85: 329450 | W85: 359976 | X85: 378391 | Y85: 386029 | Z85: 378034 | AA85: 366015 | AB85: 369082 | AC85: 373206 | AD85: 336634 | AE85: 317342
B86: Summe der Instrumente mit Einmalleistungen | C86: =C85 -> Insgesamt | D86: M | E86: =B86&C86&D86 -> Summe der Instrumente mit EinmalleistungenInsgesamtM | F86: Männer | G86: 503833 | H86: 495961 | I86: 472828 | J86: 451024 | K86: 488994 | L86: 508572 | M86: 520468 | N86: 511836 | O86: 489118 | P86: 495094 | Q86: 506727 | R86: 521191 | S86: 525519 | T86: 521443 | U86: 500065 | V86: 478105 | W86: 505311 | X86: 524189 | Y86: 530033 | Z86: 519859 | AA86: 504930 | AB86: 507019 | AC86: 513921 | AD86: 464925 | AE86: 440969
B88: DiaDatDS
G89: =G84 -> Mai 2018 | H89: =H84 -> Jun 2018 | I89: Jul 2018 | J89: Aug 2018 | K89: Sep 2018 | L89: Okt 2018 | M89: Nov 2018 | N89: Dez 2018 | O89: Jan 2019 | P89: Feb 2019 | Q89: Mrz 2019 | R89: Apr 2019 | S89: Mai 2019 | T89: Jun 2019 | U89: Jul 2019 | V89: Aug 2019 | W89: Sep 2019 | X89: Okt 2019 | Y89: Nov 2019 | Z89: Dez 2019 | AA89: Jan 2020 | AB89: Feb 2020 | AC89: Mrz 2020 | AD89: Apr 2020 | AE89: Mai 2020
F90: Frauen | G90: =VLOOKUP($E85,$AH$45:$BI$50,G$83,0) -> 352813 | H90: 346776 | I90: 324200 | J90: 308223 | K90: 343718 | L90: 362564 | M90: 374344 | N90: 367539 | O90: 350777 | P90: 356647 | Q90: 363623 | R90: 371065 | S90: 373146 | T90: 367900 | U90: 347326 | V90: 329450 | W90: 359976 | X90: 378391 | Y90: 386029 | Z90: 378034 | AA90: 366015 | AB90: 369082 | AC90: 373206 | AD90: 336634 | AE90: 317342
F91: Männer | G91: =VLOOKUP($E86,$AH$45:$BI$50,G$83,0) -> 503833 | H91: 495961 | I91: 472828 | J91: 451024 | K91: 488994 | L91: 508572 | M91: 520468 | N91: 511836 | O91: 489118 | P91: 495094 | Q91: 506727 | R91: 521191 | S91: 525519 | T91: 521443 | U91: 500065 | V91: 478105 | W91: 505311 | X91: 524189 | Y91: 530033 | Z91: 519859 | AA91: 504930 | AB91: 507019 | AC91: 513921 | AD91: 464925 | AE91: 440969
E92: Fallzahl | F92: 0 | G92: =COUNTIF($G$85:$AE$86,"<"&$F$92) -> 0 | H92: * | I92: =COUNTIF($G$90:$AE$91,"*") -> 0
B94: DiaDatenreihen | G94: =G84 -> Mai 2018 | H94: =H84 -> Jun 2018 | I94: Jul 2018 | J94: Aug 2018 | K94: Sep 2018 | L94: Okt 2018 | M94: Nov 2018 | N94: Dez 2018 | O94: Jan 2019 | P94: Feb 2019 | Q94: Mrz 2019 | R94: Apr 2019 | S94: Mai 2019 | T94: Jun 2019 | U94: Jul 2019 | V94: Aug 2019 | W94: Sep 2019 | X94: Okt 2019 | Y94: Nov 2019 | Z94: Dez 2019 | AA94: Jan 2020 | AB94: Feb 2020 | AC94: Mrz 2020 | AD94: Apr 2020 | AE94: Mai 2020
F95: Frauen | G95: =IF(($G$92+$I$92)>0,NA(),G85) -> 352813 | H95: 346776 | I95: 324200 | J95: 308223 | K95: 343718 | L95: 362564 | M95: 374344 | N95: 367539 | O95: 350777 | P95: 356647 | Q95: 363623 | R95: 371065 | S95: 373146 | T95: 367900 | U95: 347326 | V95: 329450 | W95: 359976 | X95: 378391 | Y95: 386029 | Z95: 378034 | AA95: 366015 | AB95: 369082 | AC95: 373206 | AD95: 336634 | AE95: 317342
F96: Männer | G96: =IF(($G$92+$I$92)>0,NA(),G86) -> 503833 | H96: 495961 | I96: 472828 | J96: 451024 | K96: 488994 | L96: 508572 | M96: 520468 | N96: 511836 | O96: 489118 | P96: 495094 | Q96: 506727 | R96: 521191 | S96: 525519 | T96: 521443 | U96: 500065 | V96: 478105 | W96: 505311 | X96: 524189 | Y96: 530033 | Z96: 519859 | AA96: 504930 | AB96: 507019 | AC96: 513921 | AD96: 464925 | AE96: 440969
B98: DiaDS, DatenBeschriftungen
G99: =TEXT(G84,"MMM JJJJ") -> Mai 2018 | J99: =TEXT(J84,"MMM JJJJ") -> Aug 2018 | M99: =TEXT(M84,"MMM JJJJ") -> Nov 2018 | P99: =TEXT(P84,"MMM JJJJ") -> Feb 2019 | S99: =TEXT(S84,"MMM JJJJ") -> Mai 2019 | V99: =TEXT(V84,"MMM JJJJ") -> Aug 2019 | Y99: =TEXT(Y84,"MMM JJJJ") -> Nov 2019 | AB99: =TEXT(AB84,"MMM JJJJ") -> Feb 2020 | AE99: =TEXT(AE84,"MMM JJJJ") -> Mai 2020
F100: Frauen | G100: =IF(($G$92+$I$92)>0,"",G85) -> 352813 | J100: =IF(($G$92+$I$92)>0,"",J85) -> 308223 | M100: =IF(($G$92+$I$92)>0,"",M85) -> 374344 | P100: =IF(($G$92+$I$92)>0,"",P85) -> 356647 | S100: =IF(($G$92+$I$92)>0,"",S85) -> 373146 | V100: =IF(($G$92+$I$92)>0,"",V85) -> 329450 | Y100: =IF(($G$92+$I$92)>0,"",Y85) -> 386029 | AB100: =IF(($G$92+$I$92)>0,"",AB85) -> 369082 | AE100: =IF(($G$92+$I$92)>0,"",AE85) -> 317342
F101: Männer | G101: =IF(($G$92+$I$92)>0,"",G86) -> 503833 | J101: =IF(($G$92+$I$92)>0,"",J86) -> 451024 | M101: =IF(($G$92+$I$92)>0,"",M86) -> 520468 | P101: =IF(($G$92+$I$92)>0,"",P86) -> 495094 | S101: =IF(($G$92+$I$92)>0,"",S86) -> 525519 | V101: =IF(($G$92+$I$92)>0,"",V86) -> 478105 | Y101: =IF(($G$92+$I$92)>0,"",Y86) -> 530033 | AB101: =IF(($G$92+$I$92)>0,"",AB86) -> 507019 | AE101: =IF(($G$92+$I$92)>0,"",AE86) -> 440969
B106: =MID(Auswahl!F5,5,1000)& " (Summe der Intrumente) "&CHAR(10)&TEXT($G$84,"MMMM JJJJ") &" - " &TEXT($AE$84,"MMMM JJJJ") -> Bestand in ausgewählten arbeitsmarktpolitischen Instrumenten (Summe der Intrumente) Mai 2018 - Mai 2020
A108: FZ | B108: Auf Grund der zu geringen Fallzahlen in einigen Berichtmonaten wird auf die grafische Darstellung verzichtet. | J108: nicht eingeschlossen
A109: NV | B109: Daten für die Maßnahmeart- und Rechtskreisauswahl stehen nicht zur Verfügung
A110: * | B110: Auf Grund von primären oder sekundärem Datenschutz kann keine Grafik dargestellt werden.
A111: ZR | B111: Auf Grund von unvollständigen Datenlieferungen im Berichtszeitraum kann keine Grafik dargestellt werden.
B112: =IF(I92>0,B110,IF(G92>0,B108,IF(ISNA(G85),B109,""))) -> 
B113: Text bei sinnloser Kombi

Sheet Tab 8.1
J1: Frauen und Männer
A3: =Auswahl!F5 -> 8.1 Bestand in ausgewählten arbeitsmarktpolitischen Instrumenten
A4: ='Tab 8.1_roh'!D4 -> Deutschland (Gebietsstand: August 2020)
A5: ='Tab 8.1_roh'!D5 -> Mai 2020, Daten mit einer Wartezeit von 3 Monaten
A23: Die Förderstatistik berichtet über Förderungen bzw. Teilnahmen von Personen an Maßnahmen der aktiven Arbeitsmarktförderung nach dem SGB III und Leistungen zur Eingliederung des Bundes nach dem SGB II. Es erfolgt eine Zählung von Förderfällen bzw. Teilnahmen, nicht von Personen. Folglich wird eine Person, die in einem Zeitraum oder an einem Zeitpunkt mehrere Förderleistungen erhält, mehrfach gezählt.
A33: Ausgewählte Instrumente der Arbeitsmarktpolitik | D33: Frauen | H33: Männer
D34: Bestand | E34: Anteil an Summe der Instrumente in % | F34: Verände- rung zum Vorjahr in % | G34: Anteil Frauen an allen Personen in % | H34: Bestand | I34: Anteil an Summe der Instrumente in % | J34: Verände- rung zum Vorjahr in %
D35: 1 | E35: 2 | F35: 3 | G35: 4 | H35: 5 | I35: 6 | J35: 7
A36: Summe der Instrumente | D36: ='Tab 8.1_roh'!C59 -> 317342 | E36: ='Tab 8.1_roh'!D59 -> 100 | F36: ='Tab 8.1_roh'!E59 -> -14.95500421 | G36: ='Tab 8.1_roh'!F59 -> 41.84803249 | H36: ='Tab 8.1_roh'!G59 -> 440969 | I36: ='Tab 8.1_roh'!H59 -> 100 | J36: ='Tab 8.1_roh'!I59 -> -16.08885692
A37: Aktivierung und berufliche Eingliederung | D37: ='Tab 8.1_roh'!C60 -> 63679 | E37: ='Tab 8.1_roh'!D60 -> 20.06636373 | F37: ='Tab 8.1_roh'!E60 -> -34.07766287 | G37: ='Tab 8.1_roh'!F60 -> 44.13509655 | H37: ='Tab 8.1_roh'!G60 -> 80601 | I37: ='Tab 8.1_roh'!H60 -> 18.27815561 | J37: ='Tab 8.1_roh'!I60 -> -36.33412322
A38: dar.: | B38: Maßnahmen zur Aktivierung und beruflichen Eingliederung | D38: ='Tab 8.1_roh'!C61 -> 62491 | E38: ='Tab 8.1_roh'!D61 -> 19.69200421 | F38: ='Tab 8.1_roh'!E61 -> -34.63352894 | G38: ='Tab 8.1_roh'!F61 -> 44.34250114 | H38: ='Tab 8.1_roh'!G61 -> 78435 | I38: ='Tab 8.1_roh'!H61 -> 17.78696462 | J38: ='Tab 8.1_roh'!I61 -> -37.17409588
B39: Vermittlungsbudget | D39: ='Tab 8.1_roh'!C62 -> X | E39: ='Tab 8.1_roh'!D62 -> X | F39: ='Tab 8.1_roh'!E62 -> X | G39: ='Tab 8.1_roh'!F62 -> X | H39: ='Tab 8.1_roh'!G62 -> X | I39: ='Tab 8.1_roh'!H62 -> X | J39: ='Tab 8.1_roh'!I62 -> X
A40: Berufswahl und Berufsausbildung 1) | D40: ='Tab 8.1_roh'!C63 -> 56603 | E40: ='Tab 8.1_roh'!D63 -> 17.8365927 | F40: ='Tab 8.1_roh'!E63 -> -14.09079181 | G40: ='Tab 8.1_roh'!F63 -> 33.44263651 | H40: ='Tab 8.1_roh'!G63 -> 112646 | I40: ='Tab 8.1_roh'!H63 -> 25.54510635 | J40: ='Tab 8.1_roh'!I63 -> -10.93417671
A41: dar.: | B41: Berufseinstiegsbegleitung | D41: ='Tab 8.1_roh'!C64 -> 20776 | E41: ='Tab 8.1_roh'!D64 -> 6.546880022 | F41: ='Tab 8.1_roh'!E64 -> -19.98767619 | G41: ='Tab 8.1_roh'!F64 -> 41.552 | H41: ='Tab 8.1_roh'!G64 -> 29222 | I41: ='Tab 8.1_roh'!H64 -> 6.626769682 | J41: ='Tab 8.1_roh'!I64 -> -20.28261996
B42: Assistierte Ausbildung | D42: ='Tab 8.1_roh'!C65 -> 2122 | E42: ='Tab 8.1_roh'!D65 -> 0.6686792167 | F42: ='Tab 8.1_roh'!E65 -> -22.01396545 | G42: ='Tab 8.1_roh'!F65 -> 21.78868467 | H42: ='Tab 8.1_roh'!G65 -> 7617 | I42: ='Tab 8.1_roh'!H65 -> 1.727332307 | J42: ='Tab 8.1_roh'!I65 -> -12.91871499
B43: Berufsvorbereitende Bildungsmaßnahmen | D43: ='Tab 8.1_roh'!C66 -> 12576 | E43: ='Tab 8.1_roh'!D66 -> 3.962916979 | F43: ='Tab 8.1_roh'!E66 -> -7.712629339 | G43: ='Tab 8.1_roh'!F66 -> 37.33080028 | H43: ='Tab 8.1_roh'!G66 -> 21112 | I43: ='Tab 8.1_roh'!H66 -> 4.787638133 | J43: ='Tab 8.1_roh'!I66 -> -6.081231372
B44: Einstiegsqualifizierung | D44: ='Tab 8.1_roh'!C67 -> 2896 | E44: ='Tab 8.1_roh'!D67 -> 0.9125801186 | F44: ='Tab 8.1_roh'!E67 -> -18.83408072 | G44: ='Tab 8.1_roh'!F67 -> 27.57307436 | H44: ='Tab 8.1_roh'!G67 -> 7607 | I44: ='Tab 8.1_roh'!H67 -> 1.725064574 | J44: ='Tab 8.1_roh'!I67 -> -25.6693375
B45: Ausbildungsbegleitende Hilfen | D45: ='Tab 8.1_roh'!C68 -> 9767 | E45: ='Tab 8.1_roh'!D68 -> 3.077752078 | F45: ='Tab 8.1_roh'!E68 -> -7.05177008 | G45: ='Tab 8.1_roh'!F68 -> 23.40522406 | H45: ='Tab 8.1_roh'!G68 -> 31961 | I45: ='Tab 8.1_roh'!H68 -> 7.24790178 | J45: ='Tab 8.1_roh'!I68 -> -1.18109019
A46: Berufliche Weiterbildung | D46: ='Tab 8.1_roh'!C69 -> 91891 | E46: ='Tab 8.1_roh'!D69 -> 28.95645707 | F46: ='Tab 8.1_roh'!E69 -> -3.857582289 | G46: ='Tab 8.1_roh'!F69 -> 52.64692739 | H46: ='Tab 8.1_roh'!G69 -> 82651 | I46: ='Tab 8.1_roh'!H69 -> 18.74304089 | J46: ='Tab 8.1_roh'!I69 -> -7.441542734
A47: dar.: | B47: Förderung der berufl. Weiterbildung | D47: ='Tab 8.1_roh'!C70 -> 74541 | E47: ='Tab 8.1_roh'!D70 -> 23.48916941 | F47: ='Tab 8.1_roh'!E70 -> -9.01090048 | G47: ='Tab 8.1_roh'!F70 -> 50.1959596 | H47: ='Tab 8.1_roh'!G70 -> 73959 | I47: ='Tab 8.1_roh'!H70 -> 16.77192728 | J47: ='Tab 8.1_roh'!I70 -> -10.23521701
B48: Arbeitsentgeltzuschuss zur berufl. Weiterbildung Beschäftigter | D48: ='Tab 8.1_roh'!C71 -> 17350 | E48: ='Tab 8.1_roh'!D71 -> 5.467287658 | F48: ='Tab 8.1_roh'!E71 -> 27.0596851 | G48: ='Tab 8.1_roh'!F71 -> 66.62314722 | H48: ='Tab 8.1_roh'!G71 -> 8692 | I48: ='Tab 8.1_roh'!H71 -> 1.971113616 | J48: ='Tab 8.1_roh'!I71 -> 25.89803013
A49: Aufnahme einer Erwerbstätigkeit | D49: ='Tab 8.1_roh'!C72 -> 38791 | E49: ='Tab 8.1_roh'!D72 -> 12.22372078 | F49: ='Tab 8.1_roh'!E72 -> -13.35686047 | G49: ='Tab 8.1_roh'!F72 -> 38.04083474 | H49: ='Tab 8.1_roh'!G72 -> 63181 | I49: ='Tab 8.1_roh'!H72 -> 14.32776454 | J49: ='Tab 8.1_roh'!I72 -> -15.21604938
A50: dar.: | B50: Förderung abhängiger Beschäftigung | D50: ='Tab 8.1_roh'!C73 -> 29695 | E50: ='Tab 8.1_roh'!D73 -> 9.357412508 | F50: ='Tab 8.1_roh'!E73 -> -14.02223638 | G50: ='Tab 8.1_roh'!F73 -> 36.4736228 | H50: ='Tab 8.1_roh'!G73 -> 51720 | I50: ='Tab 8.1_roh'!H73 -> 11.72871562 | J50: ='Tab 8.1_roh'!I73 -> -15.70369163
B51: dar.: | C51: Eingliederungszuschuss | D51: ='Tab 8.1_roh'!C74 -> 14432 | E51: ='Tab 8.1_roh'!D74 -> 4.547774956 | F51: ='Tab 8.1_roh'!E74 -> -27.05216336 | G51: ='Tab 8.1_roh'!F74 -> 34.89530442 | H51: ='Tab 8.1_roh'!G74 -> 26926 | I51: ='Tab 8.1_roh'!H74 -> 6.106098161 | J51: ='Tab 8.1_roh'!I74 -> -25.54474063
C52: Eingliederung von Langzeitarbeitslosen | D52: ='Tab 8.1_roh'!C75 -> 3740 | E52: ='Tab 8.1_roh'!D75 -> 1.178539242 | F52: ='Tab 8.1_roh'!E75 -> .X | G52: ='Tab 8.1_roh'!F75 -> 35.78604918 | H52: ='Tab 8.1_roh'!G75 -> 6711 | I52: ='Tab 8.1_roh'!H75 -> 1.521875687 | J52: ='Tab 8.1_roh'!I75 -> .X
B53: Förderung der Selbständigkeit | D53: ='Tab 8.1_roh'!C76 -> 9096 | E53: ='Tab 8.1_roh'!D76 -> 2.866308273 | F53: ='Tab 8.1_roh'!E76 -> -11.11111111 | G53: ='Tab 8.1_roh'!F76 -> 44.24770151 | H53: ='Tab 8.1_roh'!G76 -> 11461 | I53: ='Tab 8.1_roh'!H76 -> 2.599048913 | J53: ='Tab 8.1_roh'!I76 -> -12.94341056
A54: Beschäftigung schaffende Maßnahmen | D54: ='Tab 8.1_roh'!C77 -> 36202 | E54: ='Tab 8.1_roh'!D77 -> 11.40788172 | F54: ='Tab 8.1_roh'!E77 -> -4.879266402 | G54: ='Tab 8.1_roh'!F77 -> 38.89509648 | H54: ='Tab 8.1_roh'!G77 -> 56874 | I54: ='Tab 8.1_roh'!H77 -> 12.89750527 | J54: ='Tab 8.1_roh'!I77 -> -5.872033365
A55: dar.: | B55: Arbeitsgelegenheiten | D55: ='Tab 8.1_roh'!C78 -> 20948 | E55: ='Tab 8.1_roh'!D78 -> 6.601080223 | F55: ='Tab 8.1_roh'!E78 -> -30.71147422 | G55: ='Tab 8.1_roh'!F78 -> 39.8705748 | H55: ='Tab 8.1_roh'!G78 -> 31592 | I55: ='Tab 8.1_roh'!H78 -> 7.164222428 | J55: ='Tab 8.1_roh'!I78 -> -32.27867095
B56: Teilhabe am Arbeitsmarkt | D56: ='Tab 8.1_roh'!C79 -> 14776 | E56: ='Tab 8.1_roh'!D79 -> 4.656175357 | F56: ='Tab 8.1_roh'!E79 -> 145.0414594 | G56: ='Tab 8.1_roh'!F79 -> 37.68522533 | H56: ='Tab 8.1_roh'!G79 -> 24433 | I56: ='Tab 8.1_roh'!H79 -> 5.540752298 | J56: ='Tab 8.1_roh'!I79 -> 136.8227198
J57: © Statistik der Bundesagentur für Arbeit
A59: 1) Ohne Ergebnisse zu Teilnahmen an Berufsorientierungsmaßnahmen.
A60: 2) Die Förderungen zur Teilhabe am Arbeitsmarkt sind insgesamt bundesweit übererfasst. Für einzelne Jobcenter fällt die Übererfassung deutlich höher aus. Näheres siehe unter folgendem Link:
A61: Förderung zur Teilhabe am Arbeitsmarkt - Übererfassung

Sheet Tab 8.2_roh (hidden)
C1: TabSpalten | BI1: XXX
C2: Hilfsspalten
C3: Überschrift | D3: 8.2 Eintritte in ausgewählte arbeitsmarktpolitische Instrumente
C4: Gebiet | D4: Deutschland (Gebietsstand: August 2020)
C5: BM | D5: Mai 2020, Daten mit einer Wartezeit von 3 Monaten
C9: Frauen | D9: Frauen | E9: Frauen | F9: Frauen | G9: Frauen | H9: Frauen | I9: Männer | J9: Männer | K9: Männer | L9: Männer | M9: Frauen | N9: Frauen | O9: Frauen | P9: Frauen | Q9: Frauen | R9: Frauen | S9: Männer | T9: Männer | U9: Männer | V9: Männer | W9: Frauen | X9: Frauen | Y9: Frauen | Z9: Frauen | AA9: Frauen | AB9: Frauen | AC9: Männer | AD9: Männer | AE9: Männer | AF9: Männer | AH9: Frauen | AI9: Frauen | AJ9: Frauen | AK9: Männer | AL9: Männer | AM9: Frauen | AN9: Frauen | AO9: Frauen | AP9: Männer | AQ9: Männer | AR9: Frauen | AS9: Frauen | AT9: Frauen | AU9: Männer | AV9: Männer
B10: Tab/DS | C10: Insgesamt | D10: VJM | E10: Anteil der Merkmals- gruppe an Insgesamt in % | F10: Verände- rung zum Vorjahr in % | G10: Gesamt | H10: Anteil an allen Personen in % | I10: Insgesamt | J10: VJM | K10: Anteil der Merkmals- gruppe an Insgesamt in % | L10: Verände- rung zum Vorjahr in % | M10: Insgesamt | N10: VJM | O10: Anteil der Merkmals- gruppe an Insgesamt in % | P10: Verände- rung zum Vorjahr in % | Q10: Gesamt | R10: Anteil an allen Personen in % | S10: Insgesamt | T10: VJM | U10: Anteil der Merkmals- gruppe an Insgesamt in % | V10: Verände- rung zum Vorjahr in % | W10: Insgesamt | X10: VJM | Y10: Anteil der Merkmals- gruppe an Insgesamt in % | Z10: Verände- rung zum Vorjahr in % | AA10: Gesamt | AB10: Anteil an allen Personen in % | AC10: Insgesamt | AD10: VJM | AE10: Anteil der Merkmals- gruppe an Insgesamt in % | AF10: Verände- rung zum Vorjahr in % | AH10: Anteil der Merkmals- gruppe an Insgesamt in % | AI10: Verände- rung zum Vorjahr in % | AJ10: Anteil an allen Personen in % | AK10: Anteil der Merkmals- gruppe an Insgesamt in % | AL10: Verände- rung zum Vorjahr in % | AM10: Anteil der Merkmals- gruppe an Insgesamt in % | AN10: Verände- rung zum Vorjahr in % | AO10: Anteil an allen Personen in % | AP10: Anteil der Merkmals- gruppe an Insgesamt in % | AQ10: Verände- rung zum Vorjahr in % | AR10: Anteil der Merkmals- gruppe an Insgesamt in % | AS10: Verände- rung zum Vorjahr in % | AT10: Anteil an allen Personen in % | AU10: Anteil der Merkmals- gruppe an Insgesamt in % | AV10: Verände- rung zum Vorjahr in %
C11: 1 | D11: 0 | E11: 2 | F11: 3 | G11: 0 | H11: 4 | I11: 5 | J11: 0 | K11: 6 | L11: 7 | M11: 1 | N11: 0 | O11: 2 | P11: 3 | Q11: 0 | R11: 4 | S11: 5 | T11: 0 | U11: 6 | V11: 7 | W11: 1 | X11: 0 | Y11: 2 | Z11: 3 | AA11: 0 | AB11: 4 | AC11: 5 | AD11: 0 | AE11: 6 | AF11: 7 | AH11: 2 | AI11: 3 | AJ11: 4 | AK11: 6 | AL11: 7 | AM11: 2 | AN11: 3 | AO11: 4 | AP11: 6 | AQ11: 7 | AR11: 2 | AS11: 3 | AT11: 4 | AU11: 6 | AV11: 7
C12: 1 | D12: 2 | E12: 3 | F12: 4 | G12: 5 | H12: 6 | I12: 7 | J12: 8 | K12: 9 | L12: 10 | M12: 1 | N12: 2 | O12: 3 | P12: 4 | Q12: 5 | R12: 6 | S12: 7 | T12: 8 | U12: 9 | V12: 10 | W12: 1 | X12: 2 | Y12: 3 | Z12: 4 | AA12: 5 | AB12: 6 | AC12: 7 | AD12: 8 | AE12: 9 | AF12: 10 | AH12: 3 | AI12: 4 | AJ12: 6 | AK12: 9 | AL12: 10 | AM12: 3 | AN12: 4 | AO12: 6 | AP12: 9 | AQ12: 10 | AR12: 3 | AS12: 4 | AT12: 6 | AU12: 9 | AV12: 10
C13: 1Insgesamt | D13: 2Insgesamt | G13: 5Insgesamt | I13: 7Insgesamt | J13: 8Insgesamt | M13: 1SGB III | N13: 2SGB III | Q13: 5SGB III | S13: 7SGB III | T13: 8SGB III | W13: 1SGB II | X13: 2SGB II | AA13: 5SGB II | AC13: 7SGB II | AD13: 8SGB II | AH13: 3Insgesamt | AI13: 4Insgesamt | AJ13: 6Insgesamt | AK13: 9Insgesamt | AL13: 10Insgesamt | AM13: 3SGB III | AN13: 4SGB III | AO13: 6SGB III | AP13: 9SGB III | AQ13: 10SGB III | AR13: 3SGB II | AS13: 4SGB II | AT13: 6SGB II | AU13: 9SGB II | AV13: 10SGB II
B15: ID für Auswahl | C15: Insgesamt | M15: SGB III | W15: SGB II
B16: Summe der Instrumente mit Einmalleistungen | C16: 39300 | D16: 110493 | G16: 95478 | I16: 56176 | J16: 160209 | M16: 20160 | N16: 44908 | Q16: 46569 | S16: 26407 | T16: 57022 | W16: 19140 | X16: 65584 | AA16: 48909 | AC16: 29769 | AD16: 103187 | AH16: 100 | AI16: -64.43213597 | AJ16: 41.16131465 | AK16: 100 | AL16: -64.93580261 | AM16: 100 | AN16: -55.10822125 | AO16: 43.29060104 | AP16: 100 | AQ16: -53.68980394 | AR16: 100 | AS16: -70.8160527 | AT16: 39.13390174 | AU16: 100 | AV16: -71.15043562
B17: Aktivierung und berufliche Eingliederung, darunter | C17: 25946 | D17: 78181 | G17: 61341 | I17: 35393 | J17: 109112 | M17: 12439 | N17: 30603 | Q17: 28420 | S17: 15979 | T17: 36970 | W17: 13507 | X17: 47578 | AA17: 32921 | AC17: 19414 | AD17: 72142 | AH17: 66.02035623 | AI17: -66.81290851 | AJ17: 42.29797362 | AK17: 63.00377385 | AL17: -67.56268788 | AM17: 61.70138889 | AN17: -59.35365814 | AO17: 43.76847291 | AP17: 60.51047071 | AQ17: -56.77846903 | AR17: 70.56948798 | AS17: -71.61082853 | AT17: 41.02852283 | AU17: 65.21549263 | AV17: -73.08918522
B18: Maßnahmen zur Aktivierung und beruflichen Eingliederung | C18: 13549 | D18: 50670 | G18: 33105 | I18: 19555 | J18: 71912 | M18: 5819 | N18: 20445 | Q18: 14216 | S18: 8396 | T18: 25691 | W18: 7730 | X18: 30225 | AA18: 18889 | AC18: 11159 | AD18: 46221 | AH18: 34.47582697 | AI18: -73.26031182 | AJ18: 40.92735236 | AK18: 34.81023925 | AL18: -72.80704194 | AM18: 28.8640873 | AN18: -71.53827342 | AO18: 40.93275183 | AP18: 31.79459992 | AQ18: -67.31929469 | AR18: 40.38662487 | AS18: -74.42514475 | AT18: 40.92328869 | AU18: 37.4853035 | AV18: -75.8572943
B19: Vermittlungsbudget | C19: 12272 | D19: 27277 | G19: 27868 | I19: 15595 | J19: 36752 | M19: 6600 | N19: 10102 | Q19: 14142 | S19: 7541 | T19: 11175 | W19: 5672 | X19: 17175 | AA19: 13726 | AC19: 8054 | AD19: 25577 | AH19: 31.2264631 | AI19: -55.00971514 | AJ19: 44.03617052 | AK19: 27.76096554 | AL19: -57.56693513 | AM19: 32.73809524 | AN19: -34.66640269 | AO19: 46.66949512 | AP19: 28.55682205 | AQ19: -32.51901566 | AR19: 29.63427377 | AS19: -66.97525473 | AT19: 41.32303657 | AU19: 27.05499009 | AV19: -68.5107714
B20: Berufswahl und Berufsausbildung, darunter | C20: 537 | D20: 1538 | G20: 1624 | I20: 1087 | J20: 3412 | M20: 457 | N20: 1345 | Q20: 1381 | S20: 924 | T20: 2967 | W20: 80 | X20: 192 | AA20: 243 | AC20: 163 | AD20: 445 | AH20: 1.366412214 | AI20: -65.08452536 | AJ20: 33.06650246 | AK20: 1.934990031 | AL20: -68.14185229 | AM20: 2.266865079 | AN20: -66.02230483 | AO20: 33.09196235 | AP20: 3.499072216 | AQ20: -68.85743175 | AR20: 0.4179728318 | AS20: -58.33333333 | AT20: 32.9218107 | AU20: 0.5475494642 | AV20: -63.37078652
B21: Berufseinstiegsbegleitung | C21: 158 | D21: 170 | G21: 367 | I21: 209 | J21: 204 | M21: 158 | N21: 170 | Q21: 367 | S21: 209 | T21: 204 | W21: X | X21: X | AA21: X | AC21: X | AD21: X | AH21: 0.4020356234 | AI21: -7.058823529 | AJ21: 43.05177112 | AK21: 0.3720450014 | AL21: 2.450980392 | AM21: 0.7837301587 | AN21: -7.058823529 | AO21: 43.05177112 | AP21: 0.7914568107 | AQ21: 2.450980392 | AR21: X | AS21: X | AT21: X | AU21: X | AV21: X
B22: Assistierte Ausbildung | C22: 50 | D22: 149 | G22: 153 | I22: 103 | J22: 317 | M22: 20 | N22: 85 | Q22: 80 | S22: 60 | T22: 200 | W22: 30 | X22: 64 | AA22: 73 | AC22: 43 | AD22: 117 | AH22: 0.1272264631 | AI22: -66.44295302 | AJ22: 32.67973856 | AK22: 0.1833523213 | AL22: -67.50788644 | AM22: 0.09920634921 | AN22: -76.47058824 | AO22: 25 | AP22: 0.2272124815 | AQ22: -70 | AR22: 0.1567398119 | AS22: -53.125 | AT22: 41.09589041 | AU22: 0.1444455642 | AV22: -63.24786325
B23: Berufsvorbereitende Bildungsmaßnahmen | C23: 106 | D23: 576 | G23: 296 | I23: 190 | J23: 1083 | M23: 106 | N23: 575 | Q23: 296 | S23: 190 | T23: 1083 | W23: X | X23: X | AA23: X | AC23: X | AD23: X | AH23: 0.2697201018 | AI23: -81.59722222 | AJ23: 35.81081081 | AK23: 0.3382227286 | AL23: -82.45614035 | AM23: 0.5257936508 | AN23: -81.56521739 | AO23: 35.81081081 | AP23: 0.7195061915 | AQ23: -82.45614035 | AR23: X | AS23: X | AT23: X | AU23: X | AV23: X
B24: Einstiegsqualifizierung | C24: 27 | D24: 76 | G24: 108 | I24: 81 | J24: 132 | M24: 13 | N24: 27 | Q24: 59 | S24: 46 | T24: 47 | W24: 14 | X24: 49 | AA24: 49 | AC24: 35 | AD24: 85 | AH24: 0.06870229008 | AI24: -64.47368421 | AJ24: 25 | AK24: 0.1441896895 | AL24: -38.63636364 | AM24: 0.06448412698 | AN24: -51.85185185 | AO24: 22.03389831 | AP24: 0.1741962358 | AQ24: -2.127659574 | AR24: 0.07314524556 | AS24: -71.42857143 | AT24: 28.57142857 | AU24: 0.1175719708 | AV24: -58.82352941
B25: Ausbildungsbegleitende Hilfen | C25: 161 | D25: 486 | G25: 596 | I25: 435 | J25: 1505 | M25: 132 | N25: 432 | Q25: 495 | S25: 363 | T25: 1306 | W25: 29 | X25: 54 | AA25: 101 | AC25: 72 | AD25: 199 | AH25: 0.4096692112 | AI25: -66.87242798 | AJ25: 27.01342282 | AK25: 0.7743520365 | AL25: -71.09634551 | AM25: 0.6547619048 | AN25: -69.44444444 | AO25: 26.66666667 | AP25: 1.374635513 | AQ25: -72.20520674 | AR25: 0.1515151515 | AS25: -46.2962963 | AT25: 28.71287129 | AU25: 0.24186234 | AV25: -63.81909548
B26: Berufliche Weiterbildung, darunter | C26: 6081 | D26: 12027 | G26: 13502 | I26: 7421 | J26: 15963 | M26: 4900 | N26: 7991 | Q26: 10418 | S26: 5518 | T26: 9469 | W26: 1181 | X26: 4036 | AA26: 3084 | AC26: 1903 | AD26: 6494 | AH26: 15.47328244 | AI26: -49.43876278 | AJ26: 45.03777218 | AK26: 13.21026773 | AL26: -53.51124475 | AM26: 24.30555556 | AN26: -38.68101614 | AO26: 47.03397965 | AP26: 20.89597455 | AQ26: -41.72563101 | AR26: 6.170323929 | AS26: -70.73835481 | AT26: 38.29442283 | AU26: 6.392556015 | AV26: -70.6960271
B27: Förderung der beruflichen Weiterbildung | C27: 5569 | D27: 11456 | G27: 12361 | I27: 6792 | J27: 15225 | M27: 4397 | N27: 7436 | Q27: 9296 | S27: 4899 | T27: 8769 | W27: 1172 | X27: 4020 | AA27: 3065 | AC27: 1893 | AD27: 6456 | AH27: 14.17048346 | AI27: -51.38791899 | AJ27: 45.05298924 | AK27: 12.09057249 | AL27: -55.38916256 | AM27: 21.81051587 | AN27: -40.86874664 | AO27: 47.29991394 | AP27: 18.55189912 | AQ27: -44.13274034 | AR27: 6.123301985 | AS27: -70.84577114 | AT27: 38.23817292 | AU27: 6.358964023 | AV27: -70.67843866
B28: Arbeitsentgeltzuschuss zur beruflichen Weiterbildung Beschäftigter | C28: 512 | D28: 571 | G28: 1141 | I28: 629 | J28: 738 | M28: 503 | N28: 555 | Q28: 1122 | S28: 619 | T28: 700 | W28: 9 | X28: 16 | AA28: 19 | AC28: 10 | AD28: 38 | AH28: 1.302798982 | AI28: -10.33274956 | AJ28: 44.87291849 | AK28: 1.119695244 | AL28: -14.7696477 | AM28: 2.495039683 | AN28: -9.369369369 | AO28: 44.83065954 | AP28: 2.344075435 | AQ28: -11.57142857 | AR28: 0.04702194357 | AS28: -43.75 | AT28: 47.36842105 | AU28: 0.03359199167 | AV28: -73.68421053
B29: Aufnahme einer Erwerbstätigkeit, darunter | C29: 3270 | D29: 7775 | G29: 9397 | I29: 6127 | J29: 14096 | M29: 1761 | N29: 3613 | Q29: 4663 | S29: 2902 | T29: 5404 | W29: 1509 | X29: 4162 | AA29: 4734 | AC29: 3225 | AD29: 8692 | AH29: 8.320610687 | AI29: -57.94212219 | AJ29: 34.7983399 | AK29: 10.90679294 | AL29: -56.53376844 | AM29: 8.735119048 | AN29: -51.25934127 | AO29: 37.76538709 | AP29: 10.98951036 | AQ29: -46.29903775 | AR29: 7.884012539 | AS29: -63.7433926 | AT29: 31.87579214 | AU29: 10.83341731 | AV29: -62.89691671
B30: Förderung abhängiger Beschäftigung | C30: 2587 | D30: 6592 | G30: 7777 | I30: 5190 | J30: 12464 | M30: 1212 | N30: 2720 | Q30: 3356 | S30: 2144 | T30: 4251 | W30: 1375 | X30: 3872 | AA30: 4421 | AC30: 3046 | AD30: 8213 | AH30: 6.582697201 | AI30: -60.75546117 | AJ30: 33.26475505 | AK30: 9.238820849 | AL30: -58.36007702 | AM30: 6.011904762 | AN30: -55.44117647 | AO30: 36.11442193 | AP30: 8.11905934 | AQ30: -49.56480828 | AR30: 7.183908046 | AS30: -64.48863636 | AT30: 31.10156073 | AU30: 10.23212066 | AV30: -62.91245586
B31: Eingliederungszuschuss | C31: 1602 | D31: 4035 | G31: 4914 | I31: 3312 | J31: 7617 | M31: 1129 | N31: 2534 | Q31: 3111 | S31: 1982 | T31: 3934 | W31: 473 | X31: 1501 | AA31: 1803 | AC31: 1330 | AD31: 3683 | AH31: 4.076335878 | AI31: -60.29739777 | AJ31: 32.6007326 | AK31: 5.895756195 | AL31: -56.5183143 | AM31: 5.600198413 | AN31: -55.44593528 | AO31: 36.29058181 | AP31: 7.50558564 | AQ31: -49.61870869 | AR31: 2.471264368 | AS31: -68.48767488 | AT31: 26.23405435 | AU31: 4.467734892 | AV31: -63.88813467
B32: Eingliederung von Langzeitarbeitslosen | C32: 123 | D32: 360 | G32: 360 | I32: 237 | J32: 687 | M32: X | N32: X | Q32: X | S32: X | T32: X | W32: 123 | X32: 360 | AA32: 360 | AC32: 237 | AD32: 687 | AH32: 0.3129770992 | AI32: -65.83333333 | AJ32: 34.16666667 | AK32: 0.4218883509 | AL32: -65.50218341 | AM32: X | AN32: X | AO32: X | AP32: X | AQ32: X | AR32: 0.6426332288 | AS32: -65.83333333 | AT32: 34.16666667 | AU32: 0.7961302026 | AV32: -65.50218341
B33: Förderung der Selbständigkeit | C33: 683 | D33: 1183 | G33: 1620 | I33: 937 | J33: 1632 | M33: 549 | N33: 893 | Q33: 1307 | S33: 758 | T33: 1153 | W33: 134 | X33: 290 | AA33: 313 | AC33: 179 | AD33: 479 | AH33: 1.737913486 | AI33: -42.26542688 | AJ33: 42.16049383 | AK33: 1.667972088 | AL33: -42.58578431 | AM33: 2.723214286 | AN33: -38.52183651 | AO33: 42.00459067 | AP33: 2.870451017 | AQ33: -34.2584562 | AR33: 0.7001044932 | AS33: -53.79310345 | AT33: 42.8115016 | AU33: 0.6012966509 | AV33: -62.63048017
B34: Beschäftigung schaffende Maßnahmen, darunter | C34: 2133 | D34: 7702 | G34: 6179 | I34: 4046 | J34: 12712 | M34: X | N34: X | Q34: X | S34: X | T34: X | W34: 2133 | X34: 7702 | AA34: 6179 | AC34: 4046 | AD34: 12712 | AH34: 5.427480916 | AI34: -72.30589457 | AJ34: 34.52014889 | AK34: 7.202363999 | AL34: -68.17180617 | AM34: X | AN34: X | AO34: X | AP34: X | AQ34: X | AR34: 11.14420063 | AS34: -72.30589457 | AT34: 34.52014889 | AU34: 13.59131983 | AV34: -68.17180617
B35: Arbeitsgelegenheiten | C35: 1807 | D35: 6084 | G35: 5204 | I35: 3397 | J35: 10035 | M35: X | N35: X | Q35: X | S35: X | T35: X | W35: 1807 | X35: 6084 | AA35: 5204 | AC35: 3397 | AD35: 10035 | AH35: 4.597964377 | AI35: -70.2991453 | AJ35: 34.72328978 | AK35: 6.047066363 | AL35: -66.14848032 | AM35: X | AN35: X | AO35: X | AP35: X | AQ35: X | AR35: 9.440961338 | AS35: -70.2991453 | AT35: 34.72328978 | AU35: 11.41119957 | AV35: -66.14848032
B36: Teilhabe am Arbeitsmarkt | C36: 326 | D36: 1618 | G36: 975 | I36: 649 | J36: 2677 | M36: X | N36: X | Q36: X | S36: X | T36: X | W36: 326 | X36: 1618 | AA36: 975 | AC36: 649 | AD36: 2677 | AH36: 0.8295165394 | AI36: -79.85166873 | AJ36: 33.43589744 | AK36: 1.155297636 | AL36: -75.75644378 | AM36: X | AN36: X | AO36: X | AP36: X | AQ36: X | AR36: 1.703239289 | AS36: -79.85166873 | AT36: 33.43589744 | AU36: 2.180120259 | AV36: -75.75644378
B39: DiaDatRoh | AH39: DiaDatRohDS
E41: ID | G41: Mai 2018 | H41: 2018-06-01 | I41: 2018-07-01 | J41: 2018-08-01 | K41: 2018-09-01 | L41: Okt 2018 | M41: 2018-11-01 | N41: Dez 2018 | O41: 2019-01-01 | P41: 2019-02-01 | Q41: 2019-03-01 | R41: 2019-04-01 | S41: Mai 2019 | T41: 2019-06-01 | U41: 2019-07-01 | V41: 2019-08-01 | W41: 2019-09-01 | X41: Okt 2019 | Y41: 2019-11-01 | Z41: Dez 2019 | AA41: 2020-01-01 | AB41: 2020-02-01 | AC41: 2020-03-01 | AD41: 2020-04-01 | AE41: Mai 2020 | AJ41: Mai 2018 | AK41: 2018-06-01 | AL41: 2018-07-01 | AM41: 2018-08-01 | AN41: 2018-09-01 | AO41: Okt 2018 | AP41: 2018-11-01 | AQ41: Dez 2018 | AR41: 2019-01-01 | AS41: 2019-02-01 | AT41: 2019-03-01 | AU41: 2019-04-01 | AV41: Mai 2019 | AW41: 2019-06-01 | AX41: 2019-07-01 | AY41: 2019-08-01 | AZ41: 2019-09-01 | BA41: Okt 2019 | BB41: 2019-11-01 | BC41: Dez 2019 | BD41: 2020-01-01 | BE41: 2020-02-01 | BF41: 2020-03-01 | BG41: 2020-04-01 | BH41: Mai 2020
B42: Summe der Instrumente mit Einmalleistungen | C42: Insgesamt | D42: G | G42: 286067 | H42: 240863 | I42: 262505 | J42: 274587 | K42: 346376 | L42: 290857 | M42: 279638 | N42: 246609 | O42: 229569 | P42: 292388 | Q42: 287260 | R42: 298517 | S42: 270706 | T42: 261308 | U42: 237530 | V42: 271721 | W42: 334024 | X42: 303703 | Y42: 256292 | Z42: 217964 | AA42: 206616 | AB42: 266170 | AC42: 262227 | AD42: 122671 | AE42: 95478 | AH42: Insgesamt | AI42: G | AJ42: 286067 | AK42: 240863 | AL42: 262505 | AM42: 274587 | AN42: 346376 | AO42: 290857 | AP42: 279638 | AQ42: 246609 | AR42: 229569 | AS42: 292388 | AT42: 287260 | AU42: 298517 | AV42: 270706 | AW42: 261308 | AX42: 237530 | AY42: 271721 | AZ42: 334024 | BA42: 303703 | BB42: 256292 | BC42: 217964 | BD42: 206616 | BE42: 266170 | BF42: 262227 | BG42: 122671 | BH42: 95478
B43: Summe der Instrumente mit Einmalleistungen | C43: SGB III | D43: G | G43: 115855 | H43: 96577 | I43: 102407 | J43: 115193 | K43: 170810 | L43: 125078 | M43: 114066 | N43: 98000 | O43: 85658 | P43: 119720 | Q43: 115250 | R43: 112534 | S43: 101931 | T43: 98890 | U43: 88216 | V43: 109160 | W43: 156065 | X43: 131360 | Y43: 101857 | Z43: 87455 | AA43: 77808 | AB43: 110483 | AC43: 110211 | AD43: 52771 | AE43: 46569 | AH43: SGB III | AI43: G | AJ43: 115855 | AK43: 96577 | AL43: 102407 | AM43: 115193 | AN43: 170810 | AO43: 125078 | AP43: 114066 | AQ43: 98000 | AR43: 85658 | AS43: 119720 | AT43: 115250 | AU43: 112534 | AV43: 101931 | AW43: 98890 | AX43: 88216 | AY43: 109160 | AZ43: 156065 | BA43: 131360 | BB43: 101857 | BC43: 87455 | BD43: 77808 | BE43: 110483 | BF43: 110211 | BG43: 52771 | BH43: 46569
B44: Summe der Instrumente mit Einmalleistungen | C44: SGB II | D44: G | G44: 170211 | H44: 144286 | I44: 160098 | J44: 159394 | K44: 175566 | L44: 165779 | M44: 165571 | N44: 148609 | O44: 143911 | P44: 172667 | Q44: 172010 | R44: 185983 | S44: 168774 | T44: 162418 | U44: 149313 | V44: 162561 | W44: 177959 | X44: 172342 | Y44: 154435 | Z44: 130508 | AA44: 128808 | AB44: 155686 | AC44: 152016 | AD44: 69900 | AE44: 48909 | AH44: SGB II | AI44: G | AJ44: 170211 | AK44: 144286 | AL44: 160098 | AM44: 159394 | AN44: 175566 | AO44: 165779 | AP44: 165571 | AQ44: 148609 | AR44: 143911 | AS44: 172667 | AT44: 172010 | AU44: 185983 | AV44: 168774 | AW44: 162418 | AX44: 149313 | AY44: 162561 | AZ44: 177959 | BA44: 172342 | BB44: 154435 | BC44: 130508 | BD44: 128808 | BE44: 155686 | BF44: 152016 | BG44: 69900 | BH44: 48909
B45: Summe der Instrumente mit Einmalleistungen | C45: Insgesamt | D45: F | E45: Summe der Instrumente mit EinmalleistungenInsgesamtF | G45: 115993 | H45: 98064 | I45: 104922 | J45: 109829 | K45: 145516 | L45: 123168 | M45: 117936 | N45: 102840 | O45: 95743 | P45: 121349 | Q45: 117096 | R45: 120698 | S45: 110493 | T45: 106302 | U45: 94697 | V45: 108186 | W45: 142589 | X45: 128367 | Y45: 108088 | Z45: 89943 | AA45: 86475 | AB45: 109515 | AC45: 106129 | AD45: 49584 | AE45: 39300 | AH45: Summe der Instrumente mit EinmalleistungenInsgesamtF | AJ45: 115993 | AK45: 98064 | AL45: 104922 | AM45: 109829 | AN45: 145516 | AO45: 123168 | AP45: 117936 | AQ45: 102840 | AR45: 95743 | AS45: 121349 | AT45: 117096 | AU45: 120698 | AV45: 110493 | AW45: 106302 | AX45: 94697 | AY45: 108186 | AZ45: 142589 | BA45: 128367 | BB45: 108088 | BC45: 89943 | BD45: 86475 | BE45: 109515 | BF45: 106129 | BG45: 49584 | BH45: 39300
B46: Summe der Instrumente mit Einmalleistungen | C46: SGB III | D46: F | E46: Summe der Instrumente mit EinmalleistungenSGB IIIF | G46: 51429 | H46: 43284 | I46: 46156 | J46: 51388 | K46: 75903 | L46: 56989 | M46: 52550 | N46: 44444 | O46: 38063 | P46: 53123 | Q46: 50032 | R46: 49144 | S46: 44908 | T46: 43469 | U46: 38628 | V46: 47503 | W46: 69453 | X46: 58869 | Y46: 45238 | Z46: 37657 | AA46: 33398 | AB46: 46657 | AC46: 45847 | AD46: 22273 | AE46: 20160 | AH46: Summe der Instrumente mit EinmalleistungenSGB IIIF | AJ46: 51429 | AK46: 43284 | AL46: 46156 | AM46: 51388 | AN46: 75903 | AO46: 56989 | AP46: 52550 | AQ46: 44444 | AR46: 38063 | AS46: 53123 | AT46: 50032 | AU46: 49144 | AV46: 44908 | AW46: 43469 | AX46: 38628 | AY46: 47503 | AZ46: 69453 | BA46: 58869 | BB46: 45238 | BC46: 37657 | BD46: 33398 | BE46: 46657 | BF46: 45847 | BG46: 22273 | BH46: 20160
B47: Summe der Instrumente mit Einmalleistungen | C47: SGB II | D47: F | E47: Summe der Instrumente mit EinmalleistungenSGB IIF | G47: 64564 | H47: 54780 | I47: 58766 | J47: 58441 | K47: 69613 | L47: 66179 | M47: 65386 | N47: 58396 | O47: 57680 | P47: 68226 | Q47: 67064 | R47: 71554 | S47: 65584 | T47: 62833 | U47: 56069 | V47: 60683 | W47: 73136 | X47: 69498 | Y47: 62850 | Z47: 52286 | AA47: 53077 | AB47: 62858 | AC47: 60282 | AD47: 27311 | AE47: 19140 | AH47: Summe der Instrumente mit EinmalleistungenSGB IIF | AJ47: 64564 | AK47: 54780 | AL47: 58766 | AM47: 58441 | AN47: 69613 | AO47: 66179 | AP47: 65386 | AQ47: 58396 | AR47: 57680 | AS47: 68226 | AT47: 67064 | AU47: 71554 | AV47: 65584 | AW47: 62833 | AX47: 56069 | AY47: 60683 | AZ47: 73136 | BA47: 69498 | BB47: 62850 | BC47: 52286 | BD47: 53077 | BE47: 62858 | BF47: 60282 | BG47: 27311 | BH47: 19140
B48: Summe der Instrumente mit Einmalleistungen | C48: Insgesamt | D48: M | E48: Summe der Instrumente mit EinmalleistungenInsgesamtM | G48: 170069 | H48: 142795 | I48: 157582 | J48: 164749 | K48: 200850 | L48: 167686 | M48: 161701 | N48: 143761 | O48: 133824 | P48: 171035 | Q48: 170162 | R48: 177815 | S48: 160209 | T48: 154998 | U48: 142832 | V48: 163532 | W48: 191432 | X48: 175333 | Y48: 148200 | Z48: 128013 | AA48: 120136 | AB48: 156645 | AC48: 156098 | AD48: 73083 | AE48: 56176 | AH48: Summe der Instrumente mit EinmalleistungenInsgesamtM | AJ48: 170069 | AK48: 142795 | AL48: 157582 | AM48: 164749 | AN48: 200850 | AO48: 167686 | AP48: 161701 | AQ48: 143761 | AR48: 133824 | AS48: 171035 | AT48: 170162 | AU48: 177815 | AV48: 160209 | AW48: 154998 | AX48: 142832 | AY48: 163532 | AZ48: 191432 | BA48: 175333 | BB48: 148200 | BC48: 128013 | BD48: 120136 | BE48: 156645 | BF48: 156098 | BG48: 73083 | BH48: 56176
B49: Summe der Instrumente mit Einmalleistungen | C49: SGB III | D49: M | E49: Summe der Instrumente mit EinmalleistungenSGB IIIM | G49: 64426 | H49: 53293 | I49: 56250 | J49: 63804 | K49: 94900 | L49: 68087 | M49: 61516 | N49: 53549 | O49: 47595 | P49: 66596 | Q49: 65218 | R49: 63390 | S49: 57022 | T49: 55419 | U49: 49588 | V49: 61657 | W49: 86610 | X49: 72491 | Y49: 56617 | Z49: 49795 | AA49: 44410 | AB49: 63825 | AC49: 64364 | AD49: 30498 | AE49: 26407 | AH49: Summe der Instrumente mit EinmalleistungenSGB IIIM | AJ49: 64426 | AK49: 53293 | AL49: 56250 | AM49: 63804 | AN49: 94900 | AO49: 68087 | AP49: 61516 | AQ49: 53549 | AR49: 47595 | AS49: 66596 | AT49: 65218 | AU49: 63390 | AV49: 57022 | AW49: 55419 | AX49: 49588 | AY49: 61657 | AZ49: 86610 | BA49: 72491 | BB49: 56617 | BC49: 49795 | BD49: 44410 | BE49: 63825 | BF49: 64364 | BG49: 30498 | BH49: 26407
B50: Summe der Instrumente mit Einmalleistungen | C50: SGB II | D50: M | E50: Summe der Instrumente mit EinmalleistungenSGB IIM | G50: 105642 | H50: 89502 | I50: 101332 | J50: 100945 | K50: 105950 | L50: 99599 | M50: 100184 | N50: 90212 | O50: 86229 | P50: 104438 | Q50: 104944 | R50: 114425 | S50: 103187 | T50: 99579 | U50: 93243 | V50: 101875 | W50: 104822 | X50: 102841 | Y50: 91583 | Z50: 78217 | AA50: 75726 | AB50: 92819 | AC50: 91734 | AD50: 42585 | AE50: 29769 | AH50: Summe der Instrumente mit EinmalleistungenSGB IIM | AJ50: 105642 | AK50: 89502 | AL50: 101332 | AM50: 100945 | AN50: 105950 | AO50: 99599 | AP50: 100184 | AQ50: 90212 | AR50: 86229 | AS50: 104438 | AT50: 104944 | AU50: 114425 | AV50: 103187 | AW50: 99579 | AX50: 93243 | AY50: 101875 | AZ50: 104822 | BA50: 102841 | BB50: 91583 | BC50: 78217 | BD50: 75726 | BE50: 92819 | BF50: 91734 | BG50: 42585 | BH50: 29769
C55: Frauen | D55: Frauen | E55: Frauen | F55: Frauen | G55: Männer | H55: Männer | I55: Männer
B56: Tab | C56: Insgesamt | D56: Anteil der Merkmals- gruppe an Insgesamt in % | E56: Verände- rung zum Vorjahr in % | F56: Anteil an allen Personen in % | G56: Insgesamt | H56: Anteil der Merkmals- gruppe an Insgesamt in % | I56: Verände- rung zum Vorjahr in %
C57: 1 | D57: 2 | E57: 3 | F57: 4 | G57: 5 | H57: 6 | I57: 7
B58: =Auswahl!A2 -> Insgesamt | C58: 1 | D58: 3 | E58: 4 | F58: 6 | G58: 7 | H58: 9 | I58: 10 | J58: Spalte in der Tabelle Tab/DS für Insgesamt
C59: =MATCH(C58&$B$58,$C$13:$AV$13,0) -> 1 | D59: =MATCH(D58&$B$58,$C$13:$AV$13,0) -> 32 | E59: 33 | F59: 34 | G59: 7 | H59: 35 | I59: 36 | J59: Berechnete Spalte in Tab/DS (Merkmalsspalte+Auftreten der Merkmalsauswahl
A60: 1 | B60: Summe der Instrumente mit Einmalleistungen | C60: =INDEX($C$16:$AV$36,$A60,C$59) -> 39300 | D60: 100 | E60: -64.43213597 | F60: 41.16131465 | G60: 56176 | H60: 100 | I60: -64.93580261
A61: 2 | B61: Aktivierung und berufliche Eingliederung, darunter | C61: 25946 | D61: 66.02035623 | E61: -66.81290851 | F61: 42.29797362 | G61: 35393 | H61: 63.00377385 | I61: -67.56268788
A62: 3 | B62: Maßnahmen zur Aktivierung und beruflichen Eingliederung | C62: 13549 | D62: 34.47582697 | E62: -73.26031182 | F62: 40.92735236 | G62: 19555 | H62: 34.81023925 | I62: -72.80704194
A63: 4 | B63: Vermittlungsbudget | C63: 12272 | D63: 31.2264631 | E63: -55.00971514 | F63: 44.03617052 | G63: 15595 | H63: 27.76096554 | I63: -57.56693513
A64: 5 | B64: Berufswahl und Berufsausbildung, darunter | C64: 537 | D64: 1.366412214 | E64: -65.08452536 | F64: 33.06650246 | G64: 1087 | H64: 1.934990031 | I64: -68.14185229
A65: 6 | B65: Berufseinstiegsbegleitung | C65: 158 | D65: 0.4020356234 | E65: -7.058823529 | F65: 43.05177112 | G65: 209 | H65: 0.3720450014 | I65: 2.450980392
A66: 7 | B66: Assistierte Ausbildung | C66: 50 | D66: 0.1272264631 | E66: -66.44295302 | F66: 32.67973856 | G66: 103 | H66: 0.1833523213 | I66: -67.50788644
A67: 8 | B67: Berufsvorbereitende Bildungsmaßnahmen | C67: 106 | D67: 0.2697201018 | E67: -81.59722222 | F67: 35.81081081 | G67: 190 | H67: 0.3382227286 | I67: -82.45614035
A68: 9 | B68: Einstiegsqualifizierung | C68: 27 | D68: 0.06870229008 | E68: -64.47368421 | F68: 25 | G68: 81 | H68: 0.1441896895 | I68: -38.63636364
A69: 10 | B69: Ausbildungsbegleitende Hilfen | C69: 161 | D69: 0.4096692112 | E69: -66.87242798 | F69: 27.01342282 | G69: 435 | H69: 0.7743520365 | I69: -71.09634551
A70: 11 | B70: Berufliche Weiterbildung, darunter | C70: =INDEX($C$16:$AV$36,$A70,C$59) -> 6081 | D70: 15.47328244 | E70: -49.43876278 | F70: 45.03777218 | G70: 7421 | H70: 13.21026773 | I70: -53.51124475
A71: 12 | B71: Förderung der beruflichen Weiterbildung | C71: 5569 | D71: 14.17048346 | E71: -51.38791899 | F71: 45.05298924 | G71: 6792 | H71: 12.09057249 | I71: -55.38916256
A72: 13 | B72: Arbeitsentgeltzuschuss zur beruflichen Weiterbildung Beschäftigter | C72: 512 | D72: 1.302798982 | E72: -10.33274956 | F72: 44.87291849 | G72: 629 | H72: 1.119695244 | I72: -14.7696477
A73: 14 | B73: Aufnahme einer Erwerbstätigkeit, darunter | C73: 3270 | D73: 8.320610687 | E73: -57.94212219 | F73: 34.7983399 | G73: 6127 | H73: 10.90679294 | I73: -56.53376844
A74: 15 | B74: Förderung abhängiger Beschäftigung | C74: 2587 | D74: 6.582697201 | E74: -60.75546117 | F74: 33.26475505 | G74: 5190 | H74: 9.238820849 | I74: -58.36007702
A75: 16 | B75: Eingliederungszuschuss | C75: 1602 | D75: 4.076335878 | E75: -60.29739777 | F75: 32.6007326 | G75: 3312 | H75: 5.895756195 | I75: -56.5183143
A76: 17 | B76: Eingliederung von Langzeitarbeitslosen | C76: 123 | D76: 0.3129770992 | E76: -65.83333333 | F76: 34.16666667 | G76: 237 | H76: 0.4218883509 | I76: -65.50218341
A77: 18 | B77: Förderung der Selbständigkeit | C77: 683 | D77: 1.737913486 | E77: -42.26542688 | F77: 42.16049383 | G77: 937 | H77: 1.667972088 | I77: -42.58578431
A78: 19 | B78: Beschäftigung schaffende Maßnahmen, darunter | C78: 2133 | D78: 5.427480916 | E78: -72.30589457 | F78: 34.52014889 | G78: 4046 | H78: 7.202363999 | I78: -68.17180617
A79: 20 | B79: Arbeitsgelegenheiten | C79: 1807 | D79: 4.597964377 | E79: -70.2991453 | F79: 34.72328978 | G79: 3397 | H79: 6.047066363 | I79: -66.14848032
A80: 21 | B80: Teilhabe am Arbeitsmarkt | C80: 326 | D80: 0.8295165394 | E80: -79.85166873 | F80: 33.43589744 | G80: 649 | H80: 1.155297636 | I80: -75.75644378
B83: DiaDat
G84: 3 | H84: 4 | I84: 5 | J84: 6 | K84: 7 | L84: 8 | M84: 9 | N84: 10 | O84: 11 | P84: 12 | Q84: 13 | R84: 14 | S84: 15 | T84: 16 | U84: 17 | V84: 18 | W84: 19 | X84: 20 | Y84: 21 | Z84: 22 | AA84: 23 | AB84: 24 | AC84: 25 | AD84: 26 | AE84: 27
E85: ID | G85: =TEXT(G41,"MMM JJJJ") -> Mai 2018 | H85: Jun 2018 | I85: Jul 2018 | J85: Aug 2018 | K85: Sep 2018 | L85: Okt 2018 | M85: Nov 2018 | N85: Dez 2018 | O85: Jan 2019 | P85: Feb 2019 | Q85: Mrz 2019 | R85: Apr 2019 | S85: Mai 2019 | T85: Jun 2019 | U85: Jul 2019 | V85: Aug 2019 | W85: Sep 2019 | X85: Okt 2019 | Y85: Nov 2019 | Z85: Dez 2019 | AA85: Jan 2020 | AB85: Feb 2020 | AC85: Mrz 2020 | AD85: Apr 2020 | AE85: Mai 2020
B86: Summe der Instrumente mit Einmalleistungen | C86: =B58 -> Insgesamt | D86: F | E86: =B86&C86&D86 -> Summe der Instrumente mit EinmalleistungenInsgesamtF | F86: Frauen | G86: =VLOOKUP($E86,$E$45:$AE$50,G$84,0) -> 115993 | H86: 98064 | I86: 104922 | J86: 109829 | K86: 145516 | L86: 123168 | M86: 117936 | N86: 102840 | O86: 95743 | P86: 121349 | Q86: =VLOOKUP($E86,$E$45:$AE$50,Q$84,0) -> 117096 | R86: 120698 | S86: 110493 | T86: 106302 | U86: 94697 | V86: 108186 | W86: 142589 | X86: 128367 | Y86: 108088 | Z86: 89943 | AA86: 86475 | AB86: 109515 | AC86: 106129 | AD86: 49584 | AE86: 39300
B87: Summe der Instrumente mit Einmalleistungen | C87: =C86 -> Insgesamt | D87: M | E87: =B87&C87&D87 -> Summe der Instrumente mit EinmalleistungenInsgesamtM | F87: Männer | G87: 170069 | H87: 142795 | I87: 157582 | J87: 164749 | K87: 200850 | L87: 167686 | M87: 161701 | N87: 143761 | O87: 133824 | P87: 171035 | Q87: 170162 | R87: 177815 | S87: 160209 | T87: 154998 | U87: 142832 | V87: 163532 | W87: 191432 | X87: 175333 | Y87: 148200 | Z87: 128013 | AA87: 120136 | AB87: 156645 | AC87: 156098 | AD87: 73083 | AE87: 56176
B89: DiaDatDS
G90: =G85 -> Mai 2018 | H90: =H85 -> Jun 2018 | I90: Jul 2018 | J90: Aug 2018 | K90: Sep 2018 | L90: Okt 2018 | M90: Nov 2018 | N90: Dez 2018 | O90: Jan 2019 | P90: Feb 2019 | Q90: Mrz 2019 | R90: Apr 2019 | S90: Mai 2019 | T90: Jun 2019 | U90: Jul 2019 | V90: Aug 2019 | W90: Sep 2019 | X90: Okt 2019 | Y90: Nov 2019 | Z90: Dez 2019 | AA90: Jan 2020 | AB90: Feb 2020 | AC90: Mrz 2020 | AD90: Apr 2020 | AE90: Mai 2020
F91: Frauen | G91: =VLOOKUP($E86,$AH$45:$BI$50,G$84,0) -> 115993 | H91: 98064 | I91: 104922 | J91: 109829 | K91: 145516 | L91: 123168 | M91: 117936 | N91: 102840 | O91: 95743 | P91: 121349 | Q91: 117096 | R91: 120698 | S91: 110493 | T91: 106302 | U91: 94697 | V91: 108186 | W91: 142589 | X91: 128367 | Y91: 108088 | Z91: 89943 | AA91: 86475 | AB91: 109515 | AC91: 106129 | AD91: 49584 | AE91: 39300
F92: Männer | G92: =VLOOKUP($E87,$AH$45:$BI$50,G$84,0) -> 170069 | H92: 142795 | I92: 157582 | J92: 164749 | K92: 200850 | L92: 167686 | M92: 161701 | N92: 143761 | O92: 133824 | P92: 171035 | Q92: 170162 | R92: 177815 | S92: 160209 | T92: 154998 | U92: 142832 | V92: 163532 | W92: 191432 | X92: 175333 | Y92: 148200 | Z92: 128013 | AA92: 120136 | AB92: 156645 | AC92: 156098 | AD92: 73083 | AE92: 56176
E93: Fallzahl | F93: 0 | G93: =COUNTIF($G$86:$AE$87,"<"&$F$93) -> 0 | H93: * | I93: =COUNTIF($G$91:$AE$92,"*") -> 0
B95: DiaDatenreihen | G95: =G85 -> Mai 2018 | H95: =H85 -> Jun 2018 | I95: Jul 2018 | J95: Aug 2018 | K95: Sep 2018 | L95: Okt 2018 | M95: Nov 2018 | N95: Dez 2018 | O95: Jan 2019 | P95: Feb 2019 | Q95: Mrz 2019 | R95: Apr 2019 | S95: Mai 2019 | T95: Jun 2019 | U95: Jul 2019 | V95: Aug 2019 | W95: Sep 2019 | X95: Okt 2019 | Y95: Nov 2019 | Z95: Dez 2019 | AA95: Jan 2020 | AB95: Feb 2020 | AC95: Mrz 2020 | AD95: Apr 2020 | AE95: Mai 2020
F96: Frauen | G96: =IF(($G$93+$I$93)>0,NA(),G86) -> 115993 | H96: 98064 | I96: 104922 | J96: 109829 | K96: 145516 | L96: 123168 | M96: 117936 | N96: 102840 | O96: 95743 | P96: 121349 | Q96: 117096 | R96: 120698 | S96: 110493 | T96: 106302 | U96: 94697 | V96: 108186 | W96: 142589 | X96: 128367 | Y96: 108088 | Z96: 89943 | AA96: 86475 | AB96: 109515 | AC96: 106129 | AD96: 49584 | AE96: 39300
F97: Männer | G97: =IF(($G$93+$I$93)>0,NA(),G87) -> 170069 | H97: 142795 | I97: 157582 | J97: 164749 | K97: 200850 | L97: 167686 | M97: 161701 | N97: 143761 | O97: 133824 | P97: 171035 | Q97: 170162 | R97: 177815 | S97: 160209 | T97: 154998 | U97: 142832 | V97: 163532 | W97: 191432 | X97: 175333 | Y97: 148200 | Z97: 128013 | AA97: 120136 | AB97: 156645 | AC97: 156098 | AD97: 73083 | AE97: 56176
B99: DiaDS, DatenBeschriftungen
G100: =TEXT(G85,"MMM JJJJ") -> Mai 2018 | J100: =TEXT(J85,"MMM JJJJ") -> Aug 2018 | M100: =TEXT(M85,"MMM JJJJ") -> Nov 2018 | P100: =TEXT(P85,"MMM JJJJ") -> Feb 2019 | S100: =TEXT(S85,"MMM JJJJ") -> Mai 2019 | V100: =TEXT(V85,"MMM JJJJ") -> Aug 2019 | Y100: =TEXT(Y85,"MMM JJJJ") -> Nov 2019 | AB100: =TEXT(AB85,"MMM JJJJ") -> Feb 2020 | AE100: =TEXT(AE85,"MMM JJJJ") -> Mai 2020
F101: Frauen | G101: =IF(($G$93+$I$93)>0,"",G86) -> 115993 | J101: =IF(($G$93+$I$93)>0,"",J86) -> 109829 | M101: =IF(($G$93+$I$93)>0,"",M86) -> 117936 | P101: =IF(($G$93+$I$93)>0,"",P86) -> 121349 | S101: =IF(($G$93+$I$93)>0,"",S86) -> 110493 | V101: =IF(($G$93+$I$93)>0,"",V86) -> 108186 | Y101: =IF(($G$93+$I$93)>0,"",Y86) -> 108088 | AB101: =IF(($G$93+$I$93)>0,"",AB86) -> 109515 | AE101: =IF(($G$93+$I$93)>0,"",AE86) -> 39300
F102: Männer | G102: =IF(($G$93+$I$93)>0,"",G87) -> 170069 | J102: =IF(($G$93+$I$93)>0,"",J87) -> 164749 | M102: =IF(($G$93+$I$93)>0,"",M87) -> 161701 | P102: =IF(($G$93+$I$93)>0,"",P87) -> 171035 | S102: =IF(($G$93+$I$93)>0,"",S87) -> 160209 | V102: =IF(($G$93+$I$93)>0,"",V87) -> 163532 | Y102: =IF(($G$93+$I$93)>0,"",Y87) -> 148200 | AB102: =IF(($G$93+$I$93)>0,"",AB87) -> 156645 | AE102: =IF(($G$93+$I$93)>0,"",AE87) -> 56176
B104: =MID(Auswahl!F6,5,1000)& " (Summe der Instrumente) " &CHAR(10)& TEXT($G$85,"MMMM JJJJ") &" - " &TEXT($AE$85,"MMMM JJJJ") -> Eintritte in ausgewählte arbeitsmarktpolitische Instrumente (Summe der Instrumente) Mai 2018 - Mai 2020
A106: FZ | B106: Auf Grund der zu geringen Fallzahl in einigen Berichtmonaten wird auf die grafische Darstellung verzichtet.
A107: NV | B107: Daten für die Maßnahmeart- und Rechtskreisauswahl stehen nicht zur Verfügung
A108: * | B108: Auf Grund von primären oder sekundärem Datenschutz kann keine Grafik dargestellt werden.
A109: ZR | B109: Auf Grund von unvollständigen Datenlieferungen im Berichtszeitrau kann keine Grafik dargestellt werden. | K109: nicht eingeschlossen
B110: =IF(I93>0,B108,IF(G93>0,B106,IF(ISNA(G86),B107,""))) -> 
B111: Text bei sinnloser Kombi

Sheet Tab 8.2
J1: Frauen und Männer
A3: =Auswahl!F6 -> 8.2 Eintritte in ausgewählte arbeitsmarktpolitische Instrumente
A4: ='Tab 8.2_roh'!D4 -> Deutschland (Gebietsstand: August 2020)
A5: ='Tab 8.2_roh'!D5 -> Mai 2020, Daten mit einer Wartezeit von 3 Monaten
A23: Einmalleistungen sind einmalig bewilligte oder ausgezahlte Förderleistungen. Dazu gehören beispielsweise Förderungen aus dem Vermittlungsbudget, Vermittlungsgutscheine oder auch Sachgüter im Rahmen von Leistungen zur Eingliederung von Selbständigen. Einmalleistungen erstrecken sich nicht über einen Zeitraum; wie etwa die Teilnahme an einer beruflichen Weiterbildung. Sie sind daher nicht bestandswirksam und so berichtet die Statistik der BA ausschließlich über Bewilligungen bzw. Eintritte.
A33: Ausgewählte Instrumente der Arbeitsmarktpolitik | D33: Frauen | H33: Männer
D34: Eintritte | E34: Anteil an Summe der Instrumente in % | F34: Verände- rung zum Vorjahr in % | G34: Anteil Frauen an allen Personen in % | H34: Eintritte | I34: Anteil an Summe der Instrumente in % | J34: Verände- rung zum Vorjahr in %
D35: 1 | E35: 2 | F35: 3 | G35: 4 | H35: 5 | I35: 6 | J35: 7
A36: Summe der Instrumente | D36: ='Tab 8.2_roh'!C60 -> 39300 | E36: ='Tab 8.2_roh'!D60 -> 100 | F36: ='Tab 8.2_roh'!E60 -> -64.43213597 | G36: ='Tab 8.2_roh'!F60 -> 41.16131465 | H36: ='Tab 8.2_roh'!G60 -> 56176 | I36: ='Tab 8.2_roh'!H60 -> 100 | J36: ='Tab 8.2_roh'!I60 -> -64.93580261
A37: Aktivierung und berufliche Eingliederung | D37: ='Tab 8.2_roh'!C61 -> 25946 | E37: ='Tab 8.2_roh'!D61 -> 66.02035623 | F37: ='Tab 8.2_roh'!E61 -> -66.81290851 | G37: ='Tab 8.2_roh'!F61 -> 42.29797362 | H37: ='Tab 8.2_roh'!G61 -> 35393 | I37: ='Tab 8.2_roh'!H61 -> 63.00377385 | J37: ='Tab 8.2_roh'!I61 -> -67.56268788
A38: dar.: | B38: Maßnahmen zur Aktivierung und beruflichen Eingliederung | D38: ='Tab 8.2_roh'!C62 -> 13549 | E38: ='Tab 8.2_roh'!D62 -> 34.47582697 | F38: ='Tab 8.2_roh'!E62 -> -73.26031182 | G38: ='Tab 8.2_roh'!F62 -> 40.92735236 | H38: ='Tab 8.2_roh'!G62 -> 19555 | I38: ='Tab 8.2_roh'!H62 -> 34.81023925 | J38: ='Tab 8.2_roh'!I62 -> -72.80704194
B39: Vermittlungsbudget | D39: ='Tab 8.2_roh'!C63 -> 12272 | E39: ='Tab 8.2_roh'!D63 -> 31.2264631 | F39: ='Tab 8.2_roh'!E63 -> -55.00971514 | G39: ='Tab 8.2_roh'!F63 -> 44.03617052 | H39: ='Tab 8.2_roh'!G63 -> 15595 | I39: ='Tab 8.2_roh'!H63 -> 27.76096554 | J39: ='Tab 8.2_roh'!I63 -> -57.56693513
A40: Berufswahl und Berufsausbildung 1) | D40: ='Tab 8.2_roh'!C64 -> 537 | E40: ='Tab 8.2_roh'!D64 -> 1.366412214 | F40: ='Tab 8.2_roh'!E64 -> -65.08452536 | G40: ='Tab 8.2_roh'!F64 -> 33.06650246 | H40: ='Tab 8.2_roh'!G64 -> 1087 | I40: ='Tab 8.2_roh'!H64 -> 1.934990031 | J40: ='Tab 8.2_roh'!I64 -> -68.14185229
A41: dar.: | B41: Berufseinstiegsbegleitung | D41: ='Tab 8.2_roh'!C65 -> 158 | E41: ='Tab 8.2_roh'!D65 -> 0.4020356234 | F41: ='Tab 8.2_roh'!E65 -> -7.058823529 | G41: ='Tab 8.2_roh'!F65 -> 43.05177112 | H41: ='Tab 8.2_roh'!G65 -> 209 | I41: ='Tab 8.2_roh'!H65 -> 0.3720450014 | J41: ='Tab 8.2_roh'!I65 -> 2.450980392
B42: Assistierte Ausbildung | D42: ='Tab 8.2_roh'!C66 -> 50 | E42: ='Tab 8.2_roh'!D66 -> 0.1272264631 | F42: ='Tab 8.2_roh'!E66 -> -66.44295302 | G42: ='Tab 8.2_roh'!F66 -> 32.67973856 | H42: ='Tab 8.2_roh'!G66 -> 103 | I42: ='Tab 8.2_roh'!H66 -> 0.1833523213 | J42: ='Tab 8.2_roh'!I66 -> -67.50788644
B43: Berufsvorbereitende Bildungsmaßnahmen | D43: ='Tab 8.2_roh'!C67 -> 106 | E43: ='Tab 8.2_roh'!D67 -> 0.2697201018 | F43: ='Tab 8.2_roh'!E67 -> -81.59722222 | G43: ='Tab 8.2_roh'!F67 -> 35.81081081 | H43: ='Tab 8.2_roh'!G67 -> 190 | I43: ='Tab 8.2_roh'!H67 -> 0.3382227286 | J43: ='Tab 8.2_roh'!I67 -> -82.45614035
B44: Einstiegsqualifizierung | D44: ='Tab 8.2_roh'!C68 -> 27 | E44: ='Tab 8.2_roh'!D68 -> 0.06870229008 | F44: ='Tab 8.2_roh'!E68 -> -64.47368421 | G44: ='Tab 8.2_roh'!F68 -> 25 | H44: ='Tab 8.2_roh'!G68 -> 81 | I44: ='Tab 8.2_roh'!H68 -> 0.1441896895 | J44: ='Tab 8.2_roh'!I68 -> -38.63636364
B45: Ausbildungsbegleitende Hilfen | D45: ='Tab 8.2_roh'!C69 -> 161 | E45: ='Tab 8.2_roh'!D69 -> 0.4096692112 | F45: ='Tab 8.2_roh'!E69 -> -66.87242798 | G45: ='Tab 8.2_roh'!F69 -> 27.01342282 | H45: ='Tab 8.2_roh'!G69 -> 435 | I45: ='Tab 8.2_roh'!H69 -> 0.7743520365 | J45: ='Tab 8.2_roh'!I69 -> -71.09634551
A46: Berufliche Weiterbildung | D46: ='Tab 8.2_roh'!C70 -> 6081 | E46: ='Tab 8.2_roh'!D70 -> 15.47328244 | F46: ='Tab 8.2_roh'!E70 -> -49.43876278 | G46: ='Tab 8.2_roh'!F70 -> 45.03777218 | H46: ='Tab 8.2_roh'!G70 -> 7421 | I46: ='Tab 8.2_roh'!H70 -> 13.21026773 | J46: ='Tab 8.2_roh'!I70 -> -53.51124475
A47: dar.: | B47: Förderung der beruflichen Weiterbildung | D47: ='Tab 8.2_roh'!C71 -> 5569 | E47: ='Tab 8.2_roh'!D71 -> 14.17048346 | F47: ='Tab 8.2_roh'!E71 -> -51.38791899 | G47: ='Tab 8.2_roh'!F71 -> 45.05298924 | H47: ='Tab 8.2_roh'!G71 -> 6792 | I47: ='Tab 8.2_roh'!H71 -> 12.09057249 | J47: ='Tab 8.2_roh'!I71 -> -55.38916256
B48: Arbeitsentgeltzuschuss zur berufl. Weiterbildung Beschäftigter | D48: ='Tab 8.2_roh'!C72 -> 512 | E48: ='Tab 8.2_roh'!D72 -> 1.302798982 | F48: ='Tab 8.2_roh'!E72 -> -10.33274956 | G48: ='Tab 8.2_roh'!F72 -> 44.87291849 | H48: ='Tab 8.2_roh'!G72 -> 629 | I48: ='Tab 8.2_roh'!H72 -> 1.119695244 | J48: ='Tab 8.2_roh'!I72 -> -14.7696477
A49: Aufnahme einer Erwerbstätigkeit | D49: ='Tab 8.2_roh'!C73 -> 3270 | E49: ='Tab 8.2_roh'!D73 -> 8.320610687 | F49: ='Tab 8.2_roh'!E73 -> -57.94212219 | G49: ='Tab 8.2_roh'!F73 -> 34.7983399 | H49: ='Tab 8.2_roh'!G73 -> 6127 | I49: ='Tab 8.2_roh'!H73 -> 10.90679294 | J49: ='Tab 8.2_roh'!I73 -> -56.53376844
A50: dar.: | B50: Förderung abhängiger Beschäftigung | D50: ='Tab 8.2_roh'!C74 -> 2587 | E50: ='Tab 8.2_roh'!D74 -> 6.582697201 | F50: ='Tab 8.2_roh'!E74 -> -60.75546117 | G50: ='Tab 8.2_roh'!F74 -> 33.26475505 | H50: ='Tab 8.2_roh'!G74 -> 5190 | I50: ='Tab 8.2_roh'!H74 -> 9.238820849 | J50: ='Tab 8.2_roh'!I74 -> -58.36007702
B51: dar.: | C51: Eingliederungszuschuss | D51: ='Tab 8.2_roh'!C75 -> 1602 | E51: ='Tab 8.2_roh'!D75 -> 4.076335878 | F51: ='Tab 8.2_roh'!E75 -> -60.29739777 | G51: ='Tab 8.2_roh'!F75 -> 32.6007326 | H51: ='Tab 8.2_roh'!G75 -> 3312 | I51: ='Tab 8.2_roh'!H75 -> 5.895756195 | J51: ='Tab 8.2_roh'!I75 -> -56.5183143
C52: Eingliederung von Langzeitarbeitslosen | D52: ='Tab 8.2_roh'!C76 -> 123 | E52: ='Tab 8.2_roh'!D76 -> 0.3129770992 | F52: ='Tab 8.2_roh'!E76 -> -65.83333333 | G52: ='Tab 8.2_roh'!F76 -> 34.16666667 | H52: ='Tab 8.2_roh'!G76 -> 237 | I52: ='Tab 8.2_roh'!H76 -> 0.4218883509 | J52: ='Tab 8.2_roh'!I76 -> -65.50218341
B53: Förderung der Selbständigkeit | D53: ='Tab 8.2_roh'!C77 -> 683 | E53: ='Tab 8.2_roh'!D77 -> 1.737913486 | F53: ='Tab 8.2_roh'!E77 -> -42.26542688 | G53: ='Tab 8.2_roh'!F77 -> 42.16049383 | H53: ='Tab 8.2_roh'!G77 -> 937 | I53: ='Tab 8.2_roh'!H77 -> 1.667972088 | J53: ='Tab 8.2_roh'!I77 -> -42.58578431
A54: Beschäftigung schaffende Maßnahmen | D54: ='Tab 8.2_roh'!C78 -> 2133 | E54: ='Tab 8.2_roh'!D78 -> 5.427480916 | F54: ='Tab 8.2_roh'!E78 -> -72.30589457 | G54: ='Tab 8.2_roh'!F78 -> 34.52014889 | H54: ='Tab 8.2_roh'!G78 -> 4046 | I54: ='Tab 8.2_roh'!H78 -> 7.202363999 | J54: ='Tab 8.2_roh'!I78 -> -68.17180617
A55: dar.: | B55: Arbeitsgelegenheiten | D55: ='Tab 8.2_roh'!C79 -> 1807 | E55: ='Tab 8.2_roh'!D79 -> 4.597964377 | F55: ='Tab 8.2_roh'!E79 -> -70.2991453 | G55: ='Tab 8.2_roh'!F79 -> 34.72328978 | H55: ='Tab 8.2_roh'!G79 -> 3397 | I55: ='Tab 8.2_roh'!H79 -> 6.047066363 | J55: ='Tab 8.2_roh'!I79 -> -66.14848032
B56: Teilhabe am Arbeitsmarkt | D56: ='Tab 8.2_roh'!C80 -> 326 | E56: ='Tab 8.2_roh'!D80 -> 0.8295165394 | F56: ='Tab 8.2_roh'!E80 -> -79.85166873 | G56: ='Tab 8.2_roh'!F80 -> 33.43589744 | H56: ='Tab 8.2_roh'!G80 -> 649 | I56: ='Tab 8.2_roh'!H80 -> 1.155297636 | J56: ='Tab 8.2_roh'!I80 -> -75.75644378
J57: © Statistik der Bundesagentur für Arbeit
A59: 1) Ohne Ergebnisse zu Teilnahmen an Berufsorientierungsmaßnahmen.
A60: 2) Die Förderungen zur Teilhabe am Arbeitsmarkt sind insgesamt bundesweit übererfasst. Für einzelne Jobcenter fällt die Übererfassung deutlich höher aus. Näheres siehe unter folgendem Link:
A61: Förderung zur Teilhabe am Arbeitsmarkt - Übererfassung

Sheet Hinweis_Schätzungen
B1: Statistik der Arbeitslosen und Arbeitsuchenden
B2: Stand: 26.03.2019
B3: Methodische Hinweise - Schätzungen in der Statistik der Arbeitslosen und Arbeitsuchenden
B5: Schätzungen in der Arbeitslosenstatistik
B6: Bei teilweisen oder vollständigen Lieferausfällen sowie unplausiblen Datenlieferungen eines Trägers werden für die betroffenen Regionen Schätzwerte für Arbeitslose bzw. Arbeitsuchende ermittelt und in die Berichterstattung einbezogen.
B7: Geschätzte Größen und Untergliederungen
B8: Schätzwerte werden für Bestand bzw. Bewegungen (Zu- und Abgang) Arbeitsloser bzw. Arbeitsuchender auf Basis eines Fortschreibungsmodells ermittelt. Das Fortschreibungsmodell basiert auf der Annahme, dass sich die Arbeitslosigkeit in Gebieten mit vergleichbarer Arbeitsmarktstruktur in ähnlicher Weise entwickelt. Fehlen für einzelne Jobcenter aktuelle Arbeitslosenzahlen, lässt sich die Entwicklung im Vergleich zum Vormonat anhand der Entwicklung in vergleichbaren Regionen abschätzen. Eine Bestandsschätzung in einem Monat führt zu einer Schätzung der Bewegungsdaten in diesem und im darauf folgenden Monat, da die gemeldeten Bewegungsdaten nicht mit der Bestandsschätzung des Vormonats vereinbar sind. Zur Ermittlung von Strukturen der Arbeitslosen werden die Schätzwerte eines Trägers (Zugang, Bestand und Abgang) nach den relativen Häufigkeiten dieser Strukturen im Vormonat auf die jeweiligen Merkmalskombinationen verteilt. Folgende Untergliederungen werden dabei berücksichtigt: - Politisch-administrative Gliederung (bis zur Gemeinde) - Administrative Gliederung der Bundesagentur für Arbeit (bis zur Geschäftsstelle) - Administrative Gliederung im Rahmen des SGB II (Jobcenter) - Rechtskreis - Alter (in 5-Jahresklassen) - Geschlecht - Staatsangehörigkeit (Deutsche/Ausländer) - Schwerbehindert (ja/nein) - Langzeitarbeitslos (ja/nein) Bei tieferen Unterstrukturen (z. B. einzelne Staatsangehörigkeiten oder einzelne Kategorien bei der Dauer der Arbeitslosigkeit) werden die Schätzwerte der Kategorie „keine Angabe“ zugeordnet.
B9: Auswirkung von Schätzungen auf die Berichterstattung
B10: Im Falle von Schätzungen können für die vom Lieferausfall betroffenen, aber nicht geschätzten Merkmale im jeweiligen Berichtsmonat grundsätzlich keine Nachweise für tiefere regionale Strukturen (AA/Jobcenter/Kreise/Gemeinden) erfolgen. Für diese Regionen ist auch die Berichterstattung von Jahressummen/-durchschnitten sowie der Vergleich mit anderen Berichtszeiträumen eingeschränkt. In übergeordneten Regionen (Deutschland, West-/Ostdeutschland, Bundesländer, Bezirke der Regionaldirektionen, Vergleichstypen, Arbeitsmarktregionen) werden Ergebnisse auch für die vom Lieferausfall betroffenen, aber nicht geschätzten Merkmale ausgewiesen. Da die nicht geschätzten Merkmalsausprägungen der Kategorie „keine Angabe“ zugeordnet werden, sind diese in den betroffenen Berichtsmonaten unterzeichnet. Daher wird von Vergleichen mit anderen Zeiträumen abgesehen.
B12: Weiterführende Informationen
B13: Weitere Informationen zu Plausibilisierung und Schätzungen in der Arbeitslosenstatistik können dem Handbuch XSozial-BA-SGB II „Statistik der Arbeitslosen und Arbeitsuchenden“, Kapitel 3, entnommern werden, abrufbar unter
B14: https://statistik.arbeitsagentur.de/DE/Navigation/Grundlagen/Datenquellen/Datenstandard-XSozial/Handbuch/Handbuecher-Nav.html

Sheet Hinweis_Ausbildungsmarkt
B1: Ausbildungsmarkt
B2: Stand: 17.07.2019
B3: Hinweise zu den Statistiken über den Ausbildungsmarkt
B5: Aktuelle Informationen
B7: August 2019 Neuer Wertebereich des Merkmals "Besuchte Schule" Ab dem Berichtsmonat August 2019 ändern sich der Wertebereich und die Häufigkeitsverteilung innerhalb des Merkmals „Besuchte Schule“ (Tabelle 5.1, 5.2, 6.). Als neue Ausprägung wird künftig auch über „Sonstige Schule“ berichtet; die Häufigkeiten für "Allgemeinbildende Schule" sinken bundesweit um 6 bis 7 % und für „Berufsbildende Schule“ um ca. 5 bis 6 %. Hintergrund dieser Änderungen ist die Anwendung der länderübergreifenden Schulartengliederung des Definitionenkatalogs zur Schulstatistik der Kultusministerkonferenz in den operativen Systemen der BA und (ab November 2019 auch) im Meldeverfahren XSozial-BA-SGB II. Ebenfalls im Zuge der operativen Anwendung dieser Klassifikation entfallen beim Merkmal „Art des Verbleibs“ (Tabelle 7.) die bisher berichteten Ausprägungen „Berufsvorbereitendes Jahr“ und „Berufsgrundbildungsjahr“. Sie sind nunmehr in der Ausprägung „Schulbildung“ enthalten.
B9: Januar 2018 Weiterentwicklung und Revision der Statistik über Berufsausbildungsstellen Ab Berichtsmonat Januar 2018 wird erstmals aus der weiterentwickelten Statistik über Berufsausbildungsstellen berichtet. Sie beinhaltet qualitative Verbesserungen und inhaltliche Erweiterungen. Die bisherigen Daten werden zudem beginnend mit dem Berichtsjahr 2006/2007 revidiert. Zum 30.09.2017, dem Abschluss des Berichtsjahres 2016/2017, weist das Neuverfahren 4.878 (-0,9 %) gemeldete Berufsausbildungsstellen weniger aus als das Altverfahren. Die betrieblichen Berufsausbildungsstellen liegen im Neuverfahren um 5.600 Stellen (1,1 %) höher, die außerbetrieblichen um 10.478 Stellen (-37,5 %) niedriger. Die unbesetzten Berufsausbildungsstellen liegen um 47 Stellen (0,1 %) unwesentlich höher als im Altverfahren. Einen ausführlichen Vergleich zwischen Neu- und Altverfahren bietet der Methodenbericht „Revision der Statistik über Berufsausbildungsstellen 2018“. Die inhaltlichen Änderungen beschreibt der Methodenbericht „Weiterentwicklung der Berufsausbildungsstellen-Statistik“ (Mai 2017). Beides findet sich unter
B10: https://statistik.arbeitsagentur.de/DE/Statischer-Content/Grundlagen/Methodik-Qualitaet/Methodenberichte/Ausbildungsstellenmarkt/Generische-Publikationen/Methodenbericht-Weiterentwicklung-Berufsausbildungsstellen-Statistik.pdf?__blob=publicationFile
B12: Berichtsjahr 2016/2017
B13: Bewerber für Berufsausbildungsstellen – Statistische Neuordnung der Versorgungsrelevanz von Maßnahmen und Praktika
B15: Bewerber für Berufsausbildungsstellen werden als versorgt gezählt, wenn sie eine Berufsausbildung oder eine Alternative zu einer Berufsausbildung aufweisen. Zu den Alternativen zählen u. a. bestimmte arbeitsmarktpolitische Maßnahmen und Praktika. Ab dem Berichtsjahr 2016/2017 zählen nur noch diejenigen Maßnahmen als versorgungsrelevant, die - einen Bildungscharakter aufweisen, indem sie die Chancen des Bewerbers auf dem Ausbildungsmarkt erhöhen oder - auf eine Ausbildung vorbereiten oder - eine Ausbildung ersetzen oder - das Ziel eines Berufsabschlusses haben. Bei Maßnahmen, die nicht das Ziel eines Berufsabschlusses aufweisen, muss eine Teilnahme von mindestens sechs Monaten vorliegen, damit die Maßnahmen als versorgungsrelevant berücksichtigt werden. Bei Praktika gilt ebenfalls eine Mindestdauer von sechs Monaten für die Zählung als Versorgungstatbestand. Die Änderung erfolgt für die Daten ab dem 1. Oktober 2016, rückwirkende Datenänderungen werden nicht vorgenommen. Bei einer simulierten Anwendung der Änderung für das Ausbildungsjahr 2015/2016 ergibt sich zum Berichtsjahresende (September 2016) eine Zunahme um ca. 1.100 unversorgte Bewerber, die bislang als Bewerber mit Alternative berücksichtigt wurden. Des weiteren ergeben sich geringfüge Verschiebungen bei dem Verbleib von geförderten zu ungeförderten Berufsausbildungen. Die Gesamtzahl der Bewerber und weitere Merkmale sind von der Änderung nicht betroffen.
B17: Allgemeines Sowohl die Agenturen für Arbeit (AA) als auch Jobcenter in gemeinsamen Einrichtungen (JC gE) und in alleiniger kommunaler Trägerschaft (JC zkT) haben Ausbildungsvermittlung nach § 35 Sozialgesetzbuch Drittes Buch (SGB III) durchzuführen. Träger der Grundsicherung können diese Aufgabe durch die AA wahrnehmen lassen (§ 16 Abs. 4 SGB II).
B19: Die Erfahrungen aus der Vergangenheit zeigen, dass der Einschaltungsgrad (gemeldete Ausbildungsstellen und gemeldete Bewerber) gemessen an Gesamtangebot und Gesamtnachfrage [1] sehr hoch ist. Ein nicht quantifizierbarer Teil der Inanspruchnahme durch Arbeitgeber und Jugendliche – insbesondere der freiwilligen Inanspruchnahme nach dem SGB III – richtet sich nach den jeweiligen Verhältnissen auf dem Ausbildungsmarkt. Bei wachsendem Nachfrageüberhang nutzen Ausbildungsbetriebe die Ausbildungsvermittlung seltener und später, die Jugendlichen jedoch häufiger und früher. Bei einem Angebotsüberhang verhält es sich umgekehrt. Daher sind direkte Rückschlüsse auf die absoluten Zahlen von Gesamtangebot und Gesamtnachfrage nicht möglich.
B20: Die Arbeitsverfahren bei den Trägern der Ausbildungsstellenvermittlung sind darauf ausgerichtet, bis zum 30. September möglichst für alle Bewerber eine Einmündung in eine Ausbildungsstelle zu erreichen oder eine Klärung des Vorhandenseins einer Alternative zur Berufsausbildung herbeizuführen. Auch danach werden die Vermittlungsbemühungen für unversorgte Bewerber fortgesetzt.
B22: [1] Gesamtangebot: bis zum 30. September abgeschlossene Ausbildungsverträge zuzüglich der zum 30. September gemeldeten, noch unbesetzten Ausbildungsstellen Gesamtnachfrage: bis zum 30. September abgeschlossene Ausbildungsverträge zuzüglich der zum 30. September gemeldeten, unversorgten Bewerber
B24: Definitionen
B26: Berichtsjahr Das Berichtsjahr ist der Zeitraum vom 1. Oktober bis zum 30. September des folgenden Jahres. Um alle Bewerber und Berufsausbildungsstellen, die während eines Berichtsjahres bei den AA und JC gemeldet waren, abzubilden, werden Bewerber und Berufsausbildungsstellen jeweils kumuliert seit Beginn des Berichtsjahres ausgewiesen. Das bedeutet, jeder Bewerber bzw. jede Berufsausbildungsstelle, die mindestens einmal während des Berichtsjahres gemeldet war, bleibt statistisch bis zum Ende des Berichtsjahres in der Grundgesamtheit enthalten (Prinzip der Anwesenheitsgesamtheit), auch wenn der Vermittlungsauftrag längst beendet wurde.
B28: Bewerber Personenbezogene Ausdrücke wie „Bewerber“ bezeichnen Personen beiderlei Geschlechts. Differenzierungen nach dem Geschlecht werden durch die Attribute „weiblich“ oder „männlich“ kenntlich gemacht.
B29: Als Bewerber für Berufsausbildungsstellen zählen diejenigen gemeldeten Personen, die im Berichtsjahr individuelle Vermittlung in eine betriebliche oder außerbetriebliche Berufsausbildungsstelle in anerkannten Ausbildungsberufen nach dem Berufsbildungsgesetz (BBiG) wünschen und deren Eignung dafür geklärt ist bzw. deren Voraussetzung dafür gegeben ist. Hierzu zählen auch Bewerber für eine Berufsausbildungsstelle in einem Berufsbildungswerk oder in einer sonstigen Einrichtung, die Ausbildungsmaßnahmen für Menschen mit Behinderungen durchführt.
B30: Zu den Bewerbern für Berufsausbildungsstellen rechnen auch solche Jugendliche, die für eine Berufsausbildung im dualen System vorgemerkt wurden, sich aber im Zuge ihres individuellen Berufswahlprozesses im Laufe des Berichtsjahres aus unterschiedlichen Gründen für andere Ausbildungs-/ Bildungsalternativen – wie z. B. Schulbildung, Studium, Aufnahme einer Berufsausbildung außerhalb des dualen Systems oder auch eine Beschäftigung – entscheiden. Unter den gemeldeten Bewerbern befinden sich auch Personen, die die Schule nicht im laufenden Berichtsjahr, sondern im Vorjahr oder in früheren Jahren verlassen haben und somit zusätzlich zum Nachfragepotential des aktuellen Schulentlassjahres eine Ausbildung aufnehmen wollen.
B31: Folgende Statusgruppen zur Ausbildungsuche werden unterschieden:
B32: Als einmündender Bewerber wird berücksichtigt, wer im Laufe des Berichtsjahres oder später eine Ausbildung aufnimmt.
B33: Andere ehemalige Bewerber haben keine weitere aktive Hilfe bei der Ausbildungsuche nachgefragt, ohne dass der Grund explizit bekannt ist. Wird die Ausbildungsuche fortgesetzt, obwohl der Bewerber bereits eine alternative Möglichkeit zur Ausbildung hat, wird dieser Kunde der Gruppe Bewerber mit Alternative zum 30.09. zugeordnet. Zu den Alternativen gehören z. B. Schulbildung, Berufsgrundschuljahr, Berufsvorbereitungsjahr, Berufsvorbereitende Bildungsmaßnahmen, Einstiegsqualifizierung Jugendlicher oder freiwillige soziale Dienste.
B34: Zu den unversorgten Bewerbern rechnen Kunden, für die weder die Einmündung in eine Berufsausbildung, noch ein weiterer Schulbesuch, eine Teilnahme an einer Fördermaßnahme oder eine andere Alternative zum 30.09. bekannt ist und für die Vermittlungsbemühungen laufen.
B36: Berufsausbildungsstellen Als Berufsausbildungsstellen zählen alle mit einem Auftrag zur Vermittlung gemeldeten und im Berichtjahr zu besetzenden betrieblichen und außerbetrieblichen Berufsausbildungsstellen für anerkannte Ausbildungsberufe nach dem BBiG, einschließlich der Ausbildungsplätze in Berufsbildungswerken und sonstigen Einrichtungen, die Ausbildungsmaßnahmen für Menschen mit Behinderungen (§ 102 SGB III) durchführen. Als betriebliche Berufsausbildungsstellen zählen gemeldete Berufsausbildungsstellen abzüglich Berufsausbildungsstellen in außerbetrieblichen Einrichtungen, abzüglich Berufsausbildungsstellen für Rehabilitanden mit Ausnahme der nach § 241 Abs. 2 SGB III geförderten Ausbildungsstellen.
B38: Erhebungszeitraum Die Daten werden monatlich mit Bezug auf einen bestimmten Stichtag (Mitte des Monats am allgemeinen Stichtag der Arbeitslosenstatistik) aufbereitet. Ausnahme ist der Zähltag zum Ende des Berichtsjahres im Berichtsmonat September, der 30. September. Für AA und JC gE werden die bis einschließlich zu diesem Tag gelieferten Daten berücksichtigt. Bei den JC zkT wird für das Berichtsjahresende auch die Datenlieferung zum Stichtag Oktober einbezogen, um Informationen berücksichtigen zu können, die zwischen dem regulären Zähltag Mitte September und dem 30. September erfasst wurden. Ergänzende Informationen finden Sie im Methodenbericht „Einheitlicher Datenstand zum Berichtsjahreswechsel und Revision der Ergebnisse zum Ende des Berichtsjahres 2008/2009“
B39: https://statistik.arbeitsagentur.de/DE/Statischer-Content/Grundlagen/Methodik-Qualitaet/Methodenberichte/Ausbildungsstellenmarkt/Generische-Publikationen/Methodenbericht-Einheitlicher-Datenstand-zum-Berichtsjahreswechsel.pdf?__blob=publicationFile
B41: Historie Die regionale Zuordnung von Berufsausbildungsstellen erfolgt bis zum Berichtsjahr 2004/2005 nach dem Ort der betreuenden Dienststelle, ab 2005/2006 nach dem Arbeitsort. Bewerber für Berufsausbildungsstellen werden ab September 2003 nach dem Wohnort ausgewertet. Ab dem Berichtsjahr 2006/2007 wird für Bewerber ein differenzierter Status (der Ausbildungsuche) verarbeitet (bis 2005/2006: „nicht vermittelte Bewerber“). Ab dem Berichtsjahr 2007/2008 erfolgt eine tagesgenaue Erfassung von Bewerbern für Berufsausbildungsstellen und ihren Eigenschaften. Ab dem Berichtsjahr 2008/2009 werden in den Statistiken zu Bewerbern für Berufsausbildungsstellen die durch Addition ermittelten Gesamtergebnisse (einschließlich der Daten der JC zkT) publiziert. Eine alleinige Ausweisung der Ergebnisse aus den JC zkT ist aufgrund der kleinen Fallzahlen auf regionaler Ebene für den Ausbildungsmarkt nicht repräsentativ. Mit Beginn des Berichtsjahres 2015/2016 wird in den Statistiken über Berufsausbildungsstellen und Bewerber für Berufsausbildungsstellen die Neustrukturierung der berufskundlichen Gruppen berücksichtigt. Damit werden auch Ausbildungswege, die neben dem Abschluss in einem anerkannten Ausbildungsberuf noch einen weiteren Abschluss ermöglichen („Abiturientenausbildungen“) zu den statistisch relevanten Ausbildungsberufen gezählt.
B43: Einschränkung wichtiger Merkmale Die Einführung des operativen Vermittlungs- Beratungs- und Informationssystems der Bundesagentur für Arbeit (VerBIS) im Jahr 2006 ging mit konzeptionellen Änderungen einher. Die Dimensionen „Status der Ausbildungsuche“ sowie „Verbleibsart“ sind daher grundsätzlich nicht vergleichbar mit den entsprechenden Dimensionen der Berichtsjahre vor Oktober 2006. Eine Ausnahme bilden die „unversorgten Bewerber“ sowie die „einmündenden Bewerber“. Diese sind jeweils im Berichtsmonat September uneingeschränkt vergleichbar zu den entsprechenden Statusgruppen der Vorjahre. Die tagesgenaue Berücksichtigung von Bewerberinformationen kann aus technischen Gründen erst ab Oktober 2007 erfolgen. Insofern sind die Ergebnisse des Berichtsjahres 2006/2007 nur mit leichten Einschränkungen vergleichbar mit den Ergebnissen ab Oktober 2007. Die Gesamtsumme aus Daten der AA/JC gE und der JC zkT enthält in geringem Umfang Überschneidungen, d. h. Bewerber, die sowohl von AA/JC gE als auch von JC zkT bei der Ausbildungsstellensuche unterstützt und gemeldet wurden und im Gesamtergebnis doppelt nachgewiesen werden. Solche Überschneidungen entstehen etwa in Folge des Eintretens von Hilfebedürftigkeit i. S. des SGB II, nachdem der Bewerber über eine AA eine Ausbildung suchte, bzw. umgekehrt bei Wegfall der Bedürftigkeit. Sie sind somit durchaus systemkonform. Anzahl und Struktur der Überschneidungen belegen die Richtigkeit der Einbeziehung in die Berichterstattung, ohne dass die Beurteilung des Gesamtangebotes nachhaltig eingeschränkt würde. Ergänzende Informationen zu Überschneidungen bei den gemeldeten Bewerbern sowie bei JC zkT gemeldeten unbesetzten Berufsausbildungsstellen sind in den Tabellen „Bewerber und Berufsausbildungsstellen - Analysedaten (Monatszahlen)“
B44: http://statistik.arbeitsagentur.de/SiteGlobals/Forms/Suche/Einzelheftsuche_Formular.html?nn=1459822&topic_f=analyse
B45: enthalten.
B46: Die Angaben zu den Berufsausbildungsstellen enthalten keine Daten von JC zkT. Nach Einschätzung der Statistik der BA dürften bei den JC zkT nur wenige ungeförderte Ausbildungsstellen nach dem Berufsbildungsgesetz (BBiG) gemeldet sein, die nicht gleichzeitig bei den AA/JC gE erfasst sind. Deshalb wird der Bewerberzahl einschließlich JC zkT die Zahl der Berufsausbildungsstellen ohne JC zkT gegenübergestellt. Auch auf regionaler Ebene tritt insoweit keine nennenswerte Verzerrung ein, wenn ausschließlich die bei den AA und JC gE gemeldeten Berufsausbildungsstellen verwendet werden. Dagegen würde eine Berücksichtigung nur der bei den AA und JC gE gemeldeten Bewerber zu ernsthaften Verfälschungen führen.

Sheet Hinweis_Arbeitslosengeld
B1: Statistik über Arbeitslosengeld und Sperrzeiten
B2: Stand: März 2020
B3: Methodische Hinweise zur Statistik über Arbeitslosengeld und Sperrzeiten
B4: Kurzbeschreibung
B5: Die Ergebnisse aus der Statistik über Arbeitslosengeld werden als wichtige Indikatoren für die Beurteilung der Lage auf dem nationalen Arbeitsmarkt, zur Konjunkturbeobachtung und für Finanzprognosen herangezogen. Die Zahlen über Empfänger von Arbeitslosengeld nach dem SGB III und deren Restanspruchsdauer, die auch einen voraussichtlichen Übergang zu einem Leistungsbezug nach dem SGB II erkennen lassen, sind von hohem politischen und öffentlichen Interesse. Sie werden auch für die Haushaltsplanungen der Bundesagentur für Arbeit genutzt. Die Statistik über Arbeitslosengeld wird im März 2020 revidiert. Wesentliche Neuerung ist die differenzierte Darstellung von Personengruppen. Dadurch wird zukünftig präzise über Anspruchsberechtigte, Anspruchsberechtigte in Sperrzeit, Leistungsbeziehende, Leistungsbeziehende von Arbeitslosengeld bei Arbeitslosigkeit und Leistungsbeziehende von Arbeitslosengeld bei Weiterbildung berichtet.
B10: Anspruchsberechtigt ist, wer Arbeitslosengeld bei Arbeitslosigkeit oder bei Weiterbildung als leistungsbeziehende Person tatsächlich bezieht oder dessen Leistungsbezug aufgrund des Eintritts einer Sperrzeit ruht. Neben Sperrzeiten zählen sonstige Ruhenszeiten sowie Versagens- und Entziehungszeiten zu Ereignissen, die eine mindernde Wirkung auf die Leistungsdauer nach sich ziehen können.
B12: Anspruch auf Arbeitslosengeld bei Arbeitslosigkeit haben Antragsteller nach § 137 Abs. 1 SGB III, die arbeitslos sind, sich bei der Agentur für Arbeit arbeitslos gemeldet und die Anwartschaftszeit erfüllt haben. Die Höhe des Arbeitslosengeldes beträgt 60 % bzw. 67 % des zuletzt erhaltenen pauschalierten Nettoarbeitsentgelts (§ 149 SGB III). Die Anspruchsdauer beträgt mindestens sechs Monate, bei älteren Arbeitslosen kann sie bis zu 24 Monaten betragen. Sie richtet sich nach der Dauer des Versicherungspflichtverhältnisses und dem Alter des oder der Arbeitslosen (§ 147 SGB III). Arbeitslos sind Personen nach § 16 Abs. 1 SGB III, die vorübergehend nicht in einem Beschäftigungsverhältnis stehen (Beschäftigungslosigkeit), eine versicherungspflichtige Beschäftigung suchen, um Beschäftigungslosigkeit zu beenden (Eigenbemühungen), und dabei den Vermittlungsbemühungen der Agentur für Arbeit zur Verfügung stehen (Verfügbarkeit). In folgenden Fallkonstellationen zählen Bezieher von Arbeitslosengeld nicht als arbeitslos: 1. Minderung der Leistungsfähigkeit i. S. v. § 145 SGB III 2. Leistungsfortzahlung anlässlich einer Arbeitsunfähigkeit nach § 146 SGB III 3. Teilnahme an einer Maßnahme nach § 45 SGB III (Maßnahmen zur Aktivierung und beruflichen Eingliederung)
B14: Arbeitslosengeld bei Weiterbildung (AlgW), früher Unterhaltsgeld (Uhg), erhalten Personen, die Anspruch auf Arbeitslosengeld haben und sich in einer Weiterbildungsmaßnahme gemäß § 81 SGB III befinden. Arbeitslosigkeit ist für den Anspruch auf AlgW keine zwingende Voraussetzung, wenn diese Voraussetzungen alleine wegen der Weiterbildungsmaßnahme nicht erfüllt sind (§ 136 Abs. 1 Nr. 2 SGB III). Die Höhe des AlgW entspricht der des Arbeitslosengeldes bei Arbeitslosigkeit.
B16: Sperrzeiten treten ein, wenn sich Antragstellende oder Beziehende von Arbeitslosengeld bzw. Arbeitslosengeld bei Weiterbildung (AlgW) ohne wichtigen Grund versicherungswidrig verhalten haben. Dann ruht der Leistungsbezug für einen gesetzlich festgelegten Zeitraum. Gründe für versicherungswidriges Verhalten sind Arbeitsaufgabe, Ablehnung einer angebotenen Arbeit, unzureichende Bemühungen eine neue Anstellung zu finden, Ablehnung oder Abbruch einer beruflichen Eingliederungsmaßnahme, Meldeversäumnis und verspätete Arbeitsuchendmeldung (siehe § 159 Abs. 1 SGB III). Summieren sich die Sperrzeitdauern auf 21 Wochen, erlischt der Leistungsanspruch der Person (§ 161 Abs. 1 Nr. 2 SGB III).
B18: Zugänge in und Abgänge aus dem Bezug von Arbeitslosengeld bilden die Zahl der im Laufe des Berichtszeitraums begonnenen oder beendeten Leistungsfälle in einer Leistungsartgruppe ab; in einem Berichtszeitraum können mehrere Abgänge/Zugänge eines Empfängers von Arbeitslosengeld erfolgt sein, die alle zu zählen sind (Fallkonzept).
B20: Abgrenzung der Statistik über Arbeitslosengeld gegenüber monatlichen Abrechnungsergebnissen von Einnahmen und Ausgaben des BA-Haushalts im SGB III
B21: Während die Statistik über Arbeitslosengeld ausschließlich monatliche Geldbeträge solcher Empfänger von Arbeitslosengeld einbezieht, die zum statistischen Stichtag bestandsrelevant sind, bezieht die haushalterische Ausgabensumme in der Regel alle Ausgaben eines Zeitraums ein, also auch für Leistungsbeziehende, die nicht bestandsrelevant sind. Zudem werden die Zahlungsflüsse dem jeweiligen Monat zugerechnet, in dem die Zahlung erfolgt. In der Statistik über Arbeitslosengeld werden Bestände oder Zugänge dem Monat zugeordnet, für den ein Leistungsanspruch auf Arbeitslosengeld besteht.
B23: Weiterführende Informationen
B24: Weitergehende Informationen finden Sie im Methodenbericht zur Revision der Statistik über Arbeitslosengeld, im Glossar der Statistik der BA sowie im Qualitätsbericht zur Statistik über Arbeitslosengeld nach dem SGB III:
B25: Methodenbericht zur Revision der Statistik über Arbeitslosengeld
B26: Methodenbericht zur Revision der Statistik über Arbeitslosengeld - Revisionseffekte
B27: Glossar der Statistik der Bundesagentur für Arbeit (BA)
B28: Qualitätsberichte zur Statistik über Arbeitslosengeld (SGB III)
B30: Historie (Auszug) Die Daten wurden bis Dezember 2006 im DV-Verfahren coLei Alg/Alhi-Uhg (Computerunterstützte Leistungsgewährung) erhoben, das ab Oktober 2005 stufenweise von COLIBRI (Computerunterstütztes Leistungsberechnungs- und Informationssystem) abgelöst wurde. Die Bestandsdaten, die bis Dezember 2002 in der Statistischen Datenbank der Bundesagentur für Arbeit (STADA) erhoben wurden, sind uneingeschränkt vergleichbar. Ab Januar 2003 wurden sie mit einem neuen Verfahren im DataWarehouse (DWH) der Statistik aufbereitet. Ein Vergleich dieser Bestände mit denen der Statistischen Datenbank vor 2003 ist nur bedingt möglich. Die Bewegungsdaten werden erst seit Juli 2003 im DataWarehouse (DWH) der Statistik aufbereitet. Daten vor diesem Zeitpunkt liegen nicht vor.

Sheet Hinweis_Alg_Revision
E1: Arbeitslosengeld
E2: Stand: 24.08.2020
B3: Methodische Hinweise - Revision der Statistik über Arbeitslosengeld
B4: Die Statistik über Arbeitslosengeld nach dem SGB III wurde im März 2020 revidiert. Wesentliche Neuerung ist die differenzierte Darstellung von Personengruppen. Dadurch wird zukünftig präzise über Anspruchsberechtigte insgesamt sowie in Sperrzeit und Leistungsbeziehenden von Arbeitslosengeld bei Arbeitslosigkeit und bei Weiterbildung berichtet. Ziel der Revision der Arbeitslosengeldstatistik ist, eine umfassende und stringente Abbildung der statistischen Größen mit einem möglichst einfachen Darstellungssystem einzuführen.
B5: Schematische Darstellung der Berichtssystematik
B7: In der Abbildung werden die Personengruppen der bisherigen und zukünftigen Berichtssystematik schematisch gegenübergestellt. In der Arbeitslosengeldstatistik wird zukünftig von Anspruchsberechtigten gesprochen, die sich gemäß der neuen Systematik in Leistungsbeziehende und Anspruchsberechtigte in Sperrzeiten unterteilen. Anspruchsberechtigt ist, wer Arbeitslosengeld bei Arbeitslosigkeit oder bei Weiterbildung als leistungsbeziehende Person tatsächlich bezieht oder dessen Leistungsbezug aufgrund des Eintritts einer Sperrzeit, Ruhenszeiten mit Minderung der Anspruchsdauer oder Versagens- und Entziehenszeiten mit Minderungswirkung ruht.
B8: Quantitative Veränderungen
B9: Deutschland
B10: Jahresdurchschnitt 2019
B12: Altes Messkonzept | E12: Nebenstehend sind die Veränderungen infolge der Revision anhand des Bestandes 2019 dargestellt. Insgesamt ergeben sich keine gravierenden Veränderungen in der Berichterstattung. Im Fokus der Berichterstattung stehen die Leistungsbeziehenden von Arbeitslosengeld bei Arbeitslosigkeit. Daneben werden Anspruchs-berechtigte und Anspruchsberechtigte in Sperrzeit als Eckwerte in die Berichterstattung aufgenommen.
B13: Empfänger von Arbeitslosengeld | C13: 816298.4167
B14: bei Arbeitslosigkeit | C14: 749923
B15: bei Weiterbildung | C15: 66375.41667
B17: Neues Messkonzept
B18: Anspruchsberechtigte (AB) | C18: 836765.0833
B19: Leistungsbeziehende (LB) | C19: 810292.25
B20: Alg-A Leistungsbeziehende | C20: 743943.5833
B21: Alg-W Leistungsbeziehende | C21: 66348.66667
B22: Anspruchsberechtigte in Sperrzeit | C22: 26472.83333
B24: Alg-A Arbeitslosengeld bei Arbeitslosigkeit
B25: Alg-W Arbeitslosengeld bei Weiterbildung
B27: Die Revision wirkt sich in den Regionen unterschiedlich aus. Informationen zu den quantitativen Veränderungen bis auf Kreis- und Agenturebene sind über die Interentseite der Statistik der Bundesagentur für Arbeit abrufbar:
B28: Gegenüberstellung_bisheriges_neues_Messkonzept.xlsx
B30: Weiterführende Informationen
B31: Methodenbericht zur Revision der Statistik über Arbeitslosengeld
B32: Methodenbericht zur Revision der Statistik über Arbeitslosengeld - Revisionseffekte

Sheet Hinweis_SGBII_erw-tät_ELB
B1: Grundsicherung für Arbeitsuchende (SGB II)
B2: Stand: 17.04.2020
B3: Methodische Hinweise zur Erwerbstätigkeit von erwerbsfähigen Leistungsberechtigten
B4: Erwerbstätige erwerbsfähige Leistungsberechtigte
B5: Erwerbstätige erwerbsfähige Leistungsberechtigte – oder kurz: erwerbstätige ELB – sind erwerbsfähige Regelleistungsberechtigte in der Grundsicherung für Arbeitsuchende, die Arbeitslosengeld II beziehen und zugleich über zu berücksichtigendes Einkommen aus abhängiger Erwerbstätigkeit (Bruttoeinkommen) und/oder über verfügbares Einkommen aus selbständiger Tätigkeit (Betriebsgewinn) verfügen.
B7: Abhängig erwerbstätige ELB – Differenzierung nach Einkommensgrößenklassen Die Teilgruppe der abhängig erwerbstätigen ELB wird in der Berichterstattung unter anderem nach der Höhe des zu berücksichtigenden Einkommens aus Erwerbstätigkeit differenziert. Hierfür werden seit dem 01.07.2019 die folgenden Bruttoentgeltgrenzen verwendet: - bis 450,00 Euro: geringfügige Beschäftigungen (Minijobs), Zahlung von pauschalierten Sozialabgaben durch den Arbeitgeber - 450,01 Euro bis 1.300,00 Euro: Übergangsbereich der sog. Midi-Jobs mit reduzierten Arbeitnehmerbeiträgen zur Sozialversicherung - ab 1.300,01 Euro: reguläre sozialversicherungspflichtige Beschäftigungsverhältnisse Bis zum 30.06.2019 galten folgende Bruttoentgeltgrenzen: bis 450,00 Euro / 450,01 Euro bis 850,00 Euro / ab 850,01 Euro. Bis zum 31.12.2012 galten folgende Bruttoentgeltgrenzen: bis 400,00 Euro / 400,01 Euro bis 800,00 / ab 800,01 Euro
B9: Abhängig erwerbstätige ELB – Differenzierung nach Merkmalen der Beschäftigungsstatistik Über eine integrierte Auswertung der Grundsicherungsstatistik SGB II mit der Beschäftigungsstatistik werden diejenigen abhängig erwerbstätigen ELB identifiziert, die zum Betrachtungszeitpunkt sozialversicherungspflichtig oder ausschließlich geringfügig beschäftigt sind. Für diese „beschäftigten ELB" können dadurch ergänzende Strukturinformationen gewonnen werden, z. B. zur Arbeitszeit, dem Wirtschaftszweig, dem Beruf oder der Ausbildung.
B11: Selbstständig erwerbstätige ELB Selbstständig erwerbstätige ELB werden anhand ihres verfügbaren Erwerbseinkommens bzw. Betriebsgewinns identifiziert. Bis März 2015 wurden hierfür das zu berücksichtigende Einkommen bzw. die Betriebseinnahmen verwendet. Statistische Analysen zeigen jedoch, dass die Betriebseinnahmen über die Datenquellen hinweg uneinheitlich erfasst und übermittelt wurden. Dagegen ist der Betriebsgewinn eine verlässliche Größe, die datenquellenübergreifende Vergleiche ermöglicht. Eine Differenzierung nach der Höhe des Betriebsgewinns ist ebenfalls möglich. Beachten Sie hierzu auch den Methodenbericht „Erwerbstätige Arbeitslosengeld II-Bezieher: Anpassung bei Messung und Datenquelle" unter:
B12: http://statistik.arbeitsagentur.de/DE/Statischer-Content/Grundlagen/Methodik-Qualitaet/Methodenberichte/Grundsicherung-Arbeitsuchende-SGBII/Generische-Publikationen/Methodenbericht-Erwerbstaetige-AlgII-Bezieher.pdf?__blob=publicationFile
B14: Datengrundlagen und Datenverfügbarkeit Die Statistik der Grundsicherung für Arbeitsuchende basiert auf Prozessdaten der Jobcenter, also auf den Daten der IT-Verfahren zur Gewährung der Leistungen zur Sicherung des Lebensunterhaltes nach dem SGB II. In den gemeinsamen Einrichtungen (gE) wird das Fachverfahren ALLEGRO eingesetzt, das seit Juli 2015 das Altverfahren A2LL vollständig abgelöst hat. Zugelassene kommunale Träger (zkT) verwenden eigene IT-Verfahren und übermitteln ihre Einzeldaten gemäß § 51b SGB II über den vereinbarten Datenstandard XSozial-BA-SGB II. Eine zuverlässige Differenzierung nach Einkommen aus Erwerbstätigkeit ist für gE ab dem Berichtsmonat Januar 2007, für zkT ab Juni 2009 möglich. Fehlende oder unvollständige Informationen werden ab der Ebene der Bundesländer durch ein lineares Hochrechnungsverfahren ausgeglichen. Auswertungen aus der Grundsicherungsstatistik SGB II werden grundsätzlich auf Basis der Daten mit einer Wartezeit von drei Monaten vorgenommen. Auswertungen für erwerbstätige ELB nach Merkmalen der Beschäftigungsstatistik haben eine Wartezeit von sechs Monaten.

Sheet Hinweise_Allgemein
B1: Übergreifend
B2: Stand: 07.05.2019
B3: Methodische Hinweise
B5: Aktueller Hinweis zur Arbeitslosenstatistik Die Jobcenter in gemeinsamer Einrichtung haben mit einer Überprüfung von Bewerber-Datensätzen mit möglicherweise fehlerhaftem Arbeitsmarkt-Status begonnen. Dies kann sich erhöhend auf die Zahl der Arbeitslosen im Rechtskreis SGB II auswirken. Bundesweit sind die Auswirkungen derzeit nicht nennenswert.
B7: Alleinerziehende In der Arbeitslosenstatistik wird das Merkmal Alleinerziehend durch eine Befragung des Arbeitslosen bzw. des Arbeitsuchenden ermittelt. Insofern liegt eine andere Erfassungslogik zugrunde als in der Grundsicherungsstatistik, die auf die (leistungsrelevanten) erfassten Lebensumstände zugreift (z.B. minderjähriges Kind und kein Partner in der Bedarfsgemeinschaft). Deshalb sind die arbeitslosen Alleinerziehenden im Rechtskreis SGB II nicht exakt deckungsgleich mit den arbeitslosen erwerbsfähigen Alleinerziehenden.
B9: MINT-Berufe Das spezifische Berufsaggregat "MINT- Berufe" umfasst alle Tätigkeiten, für deren Ausübung ein hoher Anteil an Kenntnissen aus den Bereichen Mathematik, Informatik, Naturwissenschaften und/oder Technik erforderlich ist. Dabei wird auch das Bauen und Instandhalten technischer Anlagen und Geräte als zentraler Bestandteil einer Tätigkeit zu den MINT-Qualifikationen gezählt. Das Berufsaggregat "MINT-Berufe" umfasst neben den hochqualifizierten MINT-Berufen auch die sogenannten mittelqualifizierten MINT-Berufe.
B10: Spezifische Berufsaggregate auf Grundlage der KldB 2010
B12: Arbeitslose Nichtleistungsempfänger im Rechtskreis SGB III Arbeitslosigkeit im Rechtskreis SGB III ohne Leistungsanspruch kann verschiedene Gründe haben: Die arbeitslose Person hat (noch) keinen Anspruch auf Arbeitslosengeld erworben, weil entweder die vorangegangene Phase der Erwerbstätigkeit nicht ausreicht (Anwartschaftszeit nicht erfüllt) oder noch keine sozialversicherungspflichtige Beschäftigung bestanden hat. Die Person hat ihren Anspruch auf Arbeitslosengeld bereits aufgebraucht, ist nicht hilfebedürftig und bezieht deshalb kein Arbeitslosengeld II. Dies ist dann der Fall, wenn Vermögen oder laufendes Einkommen im Haushalt zu hoch ausfallen. Personen, die Arbeitslosengeld II bezogen haben und bei denen die Hilfebedürftigkeit endet (beispielsweise weil der Partner eine Beschäftigung aufnimmt), werden zu Nichtleistungsempfängern, wenn sie sich weiterhin den Vermittlungsbemühungen der Agentur zur Verfügung stellen. Sie werden dann nicht mehr dem Rechtskreis SGB II, sondern dem Rechtskreis SGB III zugeordnet. Arbeitslose, die im RK SGB II betreut werden, können sich nachträglich als Nichtleistungsempfänger erweisen, wenn der Antrag auf Leistungen aus der Grundsicherung letztlich abgelehnt und die Zuständigkeit des Rechtskreises SGB III festgestellt wird. Diese Person wird nicht als erwerbsfähiger Leistungsberechtigter, aber mindestens bis zur Ablehnung des Leistungsantrags als Person im Rechtskreis SGB II erfasst. Arbeitslose Leistungsempfänger im Rechtskreis SGB III erhalten Arbeitslosengeld und ggf. ab 1. Januar 2017 aufstockend Arbeitslosengeld II. Aufgrund von zeitverzögerten Umstellungen auf den Rechtskreis SGB II erhält eine geringe Zahl Leistungen aus der Grundsicherung für Arbeitsuchende. Es handelt sich bei der Gruppe der arbeitslosen Nichtleistungsempfänger im Rechtskreis SGB III nicht um die Abgrenzung eines operativ erfassten Merkmals, sondern um eine aus verschiedenen Statistiken abgeleitete Größe. Unter Verknüpfung der Daten aus der integrierten Arbeitslosen-und der SGB III-Leistungsstatistik und zusätzlich der integrierten Grundsicherungsstatistik ist es möglich, für jeden Arbeitslosen im Rechtskreis SGBIII zu überprüfen, ob dieser Arbeitslosengeld nach dem SGB III bezieht und/oder leistungsanpruchsberechtigt nach dem SGB II ist. Wurde eine Person bei keiner dieser Abfragen gefunden, erfolgt die Zuordnung zur Gruppe der Nichtleistungsempfänger.

Sheet Statistik-Infoseite
G2: Stand: 06.08.2020
A3: Statistik-Infoseite
A6: Im Internet stehen statistische Informationen unterteilt nach folgenden Themenbereichen zur Verfügung:
B8: Fachstatistiken:
B9: Arbeitsuche, Arbeitslosigkeit und Unterbeschäftigung
B10: Ausbildungsmarkt
B11: Beschäftigung
B12: Einnahmen/Ausgaben
B13: Förderung und berufliche Rehabilitation
B14: Gemeldete Arbeitsstellen
B15: Grundsicherung für Arbeitsuchende (SGB II)
B16: Leistungen SGB III
B18: Themen im Fokus:
B19: Berufe
B20: Bildung
B21: Corona
B22: Demografie
B23: Eingliederungsbilanzen
B24: Entgelt
B25: Fachkräftebedarf
B26: Familien und Kinder
B27: Frauen und Männer
B28: Langzeitarbeitslosigkeit
B29: Menschen mit Behinderungen
B30: Migration
B31: Regionale Mobilität
B32: Wirtschaftszweige
B33: Zeitarbeit
A35: Die Methodischen Hinweise der Statistik bieten ergänzende Informationen.
A37: Die Qualitätsberichte der Statistik erläutern die Entstehung und Aussagekraft der jeweiligen Fachstatistik.
A39: Das Glossar enthält Erläuterungen zu allen statistisch relevanten Begriffen, die in den verschiedenen Produkten der Statistik der BA Verwendung finden.
A42: Abkürzungen und Zeichen, die in den Produkten der Statistik der BA vorkommen, werden im
A43: Abkürzungsverzeichnis | C43: bzw. der Zeichenerklärung der Statistik der BA erläutert.
